Invoice_Payment_Date,Org_Level_2_Desc,Supplier_Name,Nominal_Desc,Invoice_Line_Net_Amount,Internal_Category_Code
01/04/2015,"STRATEGY & COMMISSIONING - CHILDREN, DISABILITIES & PUBLIC HEALTH",Guys & St Thomas NHS Foundation Trust,PAYMENT TO HEALTH AUTHORITIES,"608,907.00",Healthcare.Services.NA
01/04/2015,"STRATEGY & COMMISSIONING - CHILDREN, DISABILITIES & PUBLIC HEALTH",Guys & St Thomas NHS Foundation Trust,PAYMENT TO HEALTH AUTHORITIES,"199,476.00",Healthcare.Services.NA
01/04/2015,ADULT SOCIAL CARE,Medequip Assistive Technology Ltd,SPECIALIST EQUIPMENT FOR SERVICE PROVISION,"101,587.44",Social Community Care Supplies & Service.Supplies.Equipment
01/04/2015,CAPITAL CC,T Brown Group Ltd_d,BUILDING ALTERATIONS AND MATERIALS,"93,213.07",Building Construction Materials.Heating & Air Conditioning.NA
01/04/2015,CAPITAL CC,Jerram Falkus Construction Ltd,"MAINTENANCE - EQUIPMENT, FURNITURE AND MATERIALS","62,926.00","Works - Construction, Repair & Maint.Buildings.Construction"
01/04/2015,CAPITAL CC,Mitie Property Services (UK) Ltd_d,"MAINTENANCE - EQUIPMENT, FURNITURE AND MATERIALS","56,711.52","Works - Construction, Repair & Maint.Buildings.Construction"
01/04/2015,FINANCE,Swiss Post Solutions Ltd,PRINTING,"40,972.58",Facilities & Management Services.Printing.NA
01/04/2015,CORPORATE AFFAIRS,PricewaterhouseCoopers LLP,AUDIT FEES,"36,100.00",Financial Services.Audit.NA
01/04/2015,BUSINESS TRANSFORMATION,Ssentif Ltd,ICT MAINTENANCE AND SUPPORT,"26,250.00",Information Communication Technology.Services.Cloud Services
01/04/2015,CAPITAL CC,Virgin Media Business,ICT HARDWARE,"22,437.50",Information Communication Technology.Hardware.NA
01/04/2015,CAPITAL CC,Mears Ltd,FACILITIES MANAGEMENT,"22,118.88","Works - Construction, Repair & Maint.Buildings.Repair & Maintenance"
01/04/2015,ADULT SOCIAL CARE,Elizabeth Peters Care Homes Ltd,RESIDENTIAL PLACEMENTS - PRIVATE CONTRACTORS PAYMENT,"21,578.57",Social Community Care Supplies & Service.Adult.Residential Care
01/04/2015,CAPITAL CC,Mears Ltd,FACILITIES MANAGEMENT,"20,248.84","Works - Construction, Repair & Maint.Buildings.Repair & Maintenance"
01/04/2015,BUSINESS TRANSFORMATION,Virgin Media Business,LAND LINE TELEPHONE COSTS,"18,762.50",Information Communication Technology.Telecommunications.NA
01/04/2015,FINANCE,Corona Energy,GAS,"18,080.80",Utilities.Gas.NA
01/04/2015,FINANCE,Corona Energy,GAS,"17,282.20",Utilities.Gas.NA
01/04/2015,"STRATEGY & COMMISSIONING - CHILDREN, DISABILITIES & PUBLIC HEALTH",SH24 C.I.C,CONSULTANCY FEES,"16,372.00",Consultancy.Business.NA
01/04/2015,"REGENERATION, PLANNING & NEIGHBOURHOODS",Tyco Integrated Systems Ltd,PROFESSIONAL SERVICES - GENERAL,"16,267.00",Facilities & Management Services.Security.Closed-Circuit Television
01/04/2015,FINANCE,Corona Energy,GAS,"16,205.56",Utilities.Gas.NA
01/04/2015,FINANCE,PricewaterhouseCoopers LLP,AUDIT FEES,"16,150.00",Financial Services.Audit.NA
01/04/2015,FINANCE,Corona Energy,GAS,"16,133.74",Utilities.Gas.NA
01/04/2015,HOUSING MANAGEMENT SERVICES,The Great Outdoor Gym Company Ltd,"MAINTENANCE - EQUIPMENT, FURNITURE AND MATERIALS","14,050.00",Sports & Playground Equipment & Maint.Sports Equipment.NA
01/04/2015,"STRATEGY & COMMISSIONING - CHILDREN, DISABILITIES & PUBLIC HEALTH",SH24 C.I.C,CONSULTANCY FEES,"12,279.00",Consultancy.Business.NA
01/04/2015,FINANCE,Corona Energy,GAS,"10,347.41",Utilities.Gas.NA
01/04/2015,FINANCE,Corona Energy,GAS,"10,260.61",Utilities.Gas.NA
01/04/2015,FINANCE,British Gas Business,ELECTRICITY,"9,861.70",Utilities.Electricity.NA
01/04/2015,FINANCE,British Gas Business,ELECTRICITY,"9,860.12",Utilities.Electricity.NA
01/04/2015,FINANCE,British Gas Business,ELECTRICITY,"9,849.50",Utilities.Electricity.NA
01/04/2015,FINANCE,British Gas Business,ELECTRICITY,"9,849.42",Utilities.Electricity.NA
01/04/2015,FINANCE,British Gas Business,ELECTRICITY,"9,819.49",Utilities.Electricity.NA
01/04/2015,FINANCE,British Gas Business,ELECTRICITY,"9,812.07",Utilities.Electricity.NA
01/04/2015,FINANCE,British Gas Business,ELECTRICITY,"9,806.62",Utilities.Electricity.NA
01/04/2015,FINANCE,British Gas Business,ELECTRICITY,"9,791.11",Utilities.Electricity.NA
01/04/2015,FINANCE,British Gas Business,ELECTRICITY,"9,706.90",Utilities.Electricity.NA
01/04/2015,FINANCE,Corona Energy,GAS,"9,250.75",Utilities.Gas.NA
01/04/2015,FINANCE,British Gas Business,ELECTRICITY,"9,170.03",Utilities.Electricity.NA
01/04/2015,FINANCE,British Gas Business,ELECTRICITY,"8,358.63",Utilities.Electricity.NA
01/04/2015,FINANCE,British Gas Business,ELECTRICITY,"8,273.22",Utilities.Electricity.NA
01/04/2015,ADULT SOCIAL CARE,229 Mitcham Lane Ltd,RESIDENTIAL PLACEMENTS - PRIVATE CONTRACTORS PAYMENT,"8,050.00",Social Community Care Supplies & Service.Adult.Residential Care
01/04/2015,"REGENERATION, PLANNING & NEIGHBOURHOODS",Barrettine Group,"PURCHASE - EQUIPMENT, FURNITURE AND MATERIALS","7,377.33",Building Construction Materials.Paint & Finishing.NA
01/04/2015,CAPITAL CC,Euro Contracts (London) Ltd,GRANTS AND CONTRIBUTIONS,"7,091.00",Financial Services.Grants.NA
01/04/2015,FINANCE,Corona Energy,GAS,"6,884.69",Utilities.Gas.NA
01/04/2015,FINANCE,British Gas Business,ELECTRICITY,"6,519.07",Utilities.Electricity.NA
01/04/2015,FINANCE,British Gas Business,ELECTRICITY,"6,508.94",Utilities.Electricity.NA
01/04/2015,CHILDREN'S SERVICES,Netpex Ltd_d,IN HOUSE FOSTER CARE PLACEMENTS - PRIVATE CONTRACTORS PAYMENT,"6,500.20",Social Community Care Supplies & Service.Children.Fostering
01/04/2015,CHILDREN'S SERVICES,Krossroads,SUPPORTED OTHER ACCOMMODATION - PRIVATE CONTRACTORS PAYMENT,"6,448.00",Social Community Care Supplies & Service.Adult.Homeless Support
01/04/2015,ADULT SOCIAL CARE,CMG Homes Ltd,RESIDENTIAL PLACEMENTS - PRIVATE CONTRACTORS PAYMENT,"6,395.74",Social Community Care Supplies & Service.Adult.Residential Care
01/04/2015,FINANCE,Corona Energy,GAS,"6,349.23",Utilities.Gas.NA
01/04/2015,FINANCE,British Gas Business,ELECTRICITY,"6,121.84",Utilities.Electricity.NA
01/04/2015,FINANCE,British Gas Business,ELECTRICITY,"5,930.65",Utilities.Electricity.NA
01/04/2015,FINANCE,Corona Energy,GAS,"5,913.91",Utilities.Gas.NA
01/04/2015,ADULT SOCIAL CARE,Manon House,RESIDENTIAL PLACEMENTS - PRIVATE CONTRACTORS PAYMENT,"5,757.14",Social Community Care Supplies & Service.Adult.Residential Care
01/04/2015,ADULT SOCIAL CARE,Manon House,RESIDENTIAL PLACEMENTS - PRIVATE CONTRACTORS PAYMENT,"5,757.14",Social Community Care Supplies & Service.Adult.Residential Care
01/04/2015,ADULT SOCIAL CARE,High View Care Services Ltd,RESIDENTIAL PLACEMENTS - PRIVATE CONTRACTORS PAYMENT,"5,757.14",Social Community Care Supplies & Service.Adult.Residential Care
01/04/2015,ADULT SOCIAL CARE,Newham House Supporting People Ltd,SUPPORTED OTHER ACCOMMODATION - PRIVATE CONTRACTORS PAYMENT,"5,484.79",Social Community Care Supplies & Service.Adult.Residential Care
01/04/2015,ADULT SOCIAL CARE,Newham House Supporting People Ltd,SUPPORTED OTHER ACCOMMODATION - PRIVATE CONTRACTORS PAYMENT,"5,484.79",Social Community Care Supplies & Service.Adult.Residential Care
01/04/2015,FINANCE,Corona Energy,GAS,"5,435.92",Utilities.Gas.NA
01/04/2015,ADULT SOCIAL CARE,Md Homes,NURSING HOMES - PRIVATE CONTRACTORS PAYMENT,"5,425.00",Social Community Care Supplies & Service.Adult.Nursing Homes
01/04/2015,FINANCE,British Gas Business,ELECTRICITY,"5,175.54",Utilities.Electricity.NA
01/04/2015,ADULT SOCIAL CARE,229 Mitcham Lane Ltd,RESIDENTIAL PLACEMENTS - PRIVATE CONTRACTORS PAYMENT,"5,092.86",Social Community Care Supplies & Service.Adult.Residential Care
01/04/2015,ADULT SOCIAL CARE,229 Mitcham Lane Ltd,RESIDENTIAL PLACEMENTS - PRIVATE CONTRACTORS PAYMENT,"5,092.86",Social Community Care Supplies & Service.Adult.Residential Care
01/04/2015,ADULT SOCIAL CARE,229 Mitcham Lane Ltd,RESIDENTIAL PLACEMENTS - PRIVATE CONTRACTORS PAYMENT,"5,092.86",Social Community Care Supplies & Service.Adult.Residential Care
01/04/2015,ADULT SOCIAL CARE,229 Mitcham Lane Ltd,RESIDENTIAL PLACEMENTS - PRIVATE CONTRACTORS PAYMENT,"5,092.86",Social Community Care Supplies & Service.Adult.Residential Care
01/04/2015,ADULT SOCIAL CARE,Leonard Cheshire Disability,RESIDENTIAL PLACEMENTS - PRIVATE CONTRACTORS PAYMENT,"5,082.98",Social Community Care Supplies & Service.Adult.Nursing Homes
01/04/2015,CAPITAL CC,Saltash Enterprises Ltd,GRANTS AND CONTRIBUTIONS,"5,022.50",Building Construction Materials.Bathrooms.NA
01/04/2015,FINANCE,Corona Energy,GAS,"4,968.65",Utilities.Gas.NA
01/04/2015,ADULT SOCIAL CARE,Surrey Mental Health Ltd,RESIDENTIAL PLACEMENTS - PRIVATE CONTRACTORS PAYMENT,"4,960.00",Social Community Care Supplies & Service.Adult.Residential Care
01/04/2015,ADULT SOCIAL CARE,Christ the King Residential Care Homes Ltd,RESIDENTIAL PLACEMENTS - PRIVATE CONTRACTORS PAYMENT,"4,871.43",Social Community Care Supplies & Service.Adult.Residential Homes for Older People
01/04/2015,ADULT SOCIAL CARE,Deepdene Care Ltd,RESIDENTIAL PLACEMENTS - PRIVATE CONTRACTORS PAYMENT,"4,867.44",Social Community Care Supplies & Service.Adult.Residential Care
01/04/2015,ADULT SOCIAL CARE,229 Mitcham Lane Ltd,RESIDENTIAL PLACEMENTS - PRIVATE CONTRACTORS PAYMENT,"4,782.86",Social Community Care Supplies & Service.Adult.Residential Care
01/04/2015,CAPITAL CC,Saltash Enterprises Ltd,GRANTS AND CONTRIBUTIONS,"4,745.00",Building Construction Materials.Bathrooms.NA
01/04/2015,CAPITAL CC,Saltash Enterprises Ltd,GRANTS AND CONTRIBUTIONS,"4,642.34",Building Construction Materials.Bathrooms.NA
01/04/2015,FINANCE,Lambert Smith Hampton Group Ltd,CYCLICAL/PLANNED MAINTENANCE - BUILDING,"4,615.01",Consultancy.Technical & Feasibility.NA
01/04/2015,CAPITAL CC,Saltash Enterprises Ltd,GRANTS AND CONTRIBUTIONS,"4,603.25",Building Construction Materials.Bathrooms.NA
01/04/2015,FINANCE,British Gas Business,ELECTRICITY,"4,583.38",Utilities.Electricity.NA
01/04/2015,FINANCE,Corona Energy,GAS,"4,561.95",Utilities.Gas.NA
01/04/2015,FINANCE,Corona Energy,GAS,"4,443.88",Utilities.Gas.NA
01/04/2015,ADULT SOCIAL CARE,High View Care Services Ltd,RESIDENTIAL PLACEMENTS - PRIVATE CONTRACTORS PAYMENT,"4,428.57",Social Community Care Supplies & Service.Adult.Residential Care
01/04/2015,ADULT SOCIAL CARE,Rosenmanor Residential Care Home,RESIDENTIAL PLACEMENTS - PRIVATE CONTRACTORS PAYMENT,"4,273.57",Social Community Care Supplies & Service.Adult.Residential Care
01/04/2015,FINANCE,Corona Energy,GAS,"4,248.30",Utilities.Gas.NA
01/04/2015,ADULT SOCIAL CARE,Cognithan Ltd,RESIDENTIAL PLACEMENTS - PRIVATE CONTRACTORS PAYMENT,"4,207.14",Social Community Care Supplies & Service.Adult.Nursing Homes
01/04/2015,ADULT SOCIAL CARE,Cognithan Ltd,RESIDENTIAL PLACEMENTS - PRIVATE CONTRACTORS PAYMENT,"4,207.14",Social Community Care Supplies & Service.Adult.Nursing Homes
01/04/2015,FINANCE,Corona Energy,GAS,"4,161.05",Utilities.Gas.NA
01/04/2015,CAPITAL CC,Saltash Enterprises Ltd,GRANTS AND CONTRIBUTIONS,"4,101.50",Building Construction Materials.Bathrooms.NA
01/04/2015,FINANCE,Corona Energy,GAS,"4,079.40",Utilities.Gas.NA
01/04/2015,FINANCE,Corona Energy,GAS,"4,030.23",Utilities.Gas.NA
01/04/2015,ADULT SOCIAL CARE,Care Unlimited,NURSING HOMES - PRIVATE CONTRACTORS PAYMENT,"4,018.13",Social Community Care Supplies & Service.Adult.Nursing Homes
01/04/2015,FINANCE,British Gas Business,ELECTRICITY,"4,015.90",Utilities.Electricity.NA
01/04/2015,ADULT SOCIAL CARE,Md Homes,NURSING HOMES - PRIVATE CONTRACTORS PAYMENT,"3,985.71",Social Community Care Supplies & Service.Adult.Nursing Homes
01/04/2015,ADULT SOCIAL CARE,High View Care Services Ltd,RESIDENTIAL PLACEMENTS - PRIVATE CONTRACTORS PAYMENT,"3,985.71",Social Community Care Supplies & Service.Adult.Residential Care
01/04/2015,ADULT SOCIAL CARE,High View Care Services Ltd,RESIDENTIAL PLACEMENTS - PRIVATE CONTRACTORS PAYMENT,"3,985.71",Social Community Care Supplies & Service.Adult.Residential Care
01/04/2015,FINANCE,Corona Energy,GAS,"3,957.12",Utilities.Gas.NA
01/04/2015,FINANCE,Corona Energy,GAS,"3,945.29",Utilities.Gas.NA
01/04/2015,ADULT SOCIAL CARE,Care Unlimited,NURSING HOMES - PRIVATE CONTRACTORS PAYMENT,"3,882.53",Social Community Care Supplies & Service.Adult.Nursing Homes
01/04/2015,ADULT SOCIAL CARE,South London & Maudsley (nhs) Trust,RESIDENTIAL PLACEMENTS - PRIVATE CONTRACTORS PAYMENT,"3,844.40",Social Community Care Supplies & Service.Adult.Mental Health Services
01/04/2015,FINANCE,Corona Energy,GAS,"3,818.45",Utilities.Gas.NA
01/04/2015,CHILDREN'S SERVICES,Netpex Ltd_d,IN HOUSE FOSTER CARE PLACEMENTS - PRIVATE CONTRACTORS PAYMENT,"3,800.16",Social Community Care Supplies & Service.Children.Fostering
01/04/2015,ADULT SOCIAL CARE,Cognithan Ltd,RESIDENTIAL PLACEMENTS - PRIVATE CONTRACTORS PAYMENT,"3,764.29",Social Community Care Supplies & Service.Adult.Nursing Homes
01/04/2015,ADULT SOCIAL CARE,Cognithan Ltd,RESIDENTIAL PLACEMENTS - PRIVATE CONTRACTORS PAYMENT,"3,764.29",Social Community Care Supplies & Service.Adult.Nursing Homes
01/04/2015,ADULT SOCIAL CARE,Cognithan Ltd,RESIDENTIAL PLACEMENTS - PRIVATE CONTRACTORS PAYMENT,"3,764.29",Social Community Care Supplies & Service.Adult.Nursing Homes
01/04/2015,ADULT SOCIAL CARE,Cognithan Ltd,RESIDENTIAL PLACEMENTS - PRIVATE CONTRACTORS PAYMENT,"3,764.29",Social Community Care Supplies & Service.Adult.Nursing Homes
01/04/2015,ADULT SOCIAL CARE,Deepdene Care Ltd,RESIDENTIAL PLACEMENTS - PRIVATE CONTRACTORS PAYMENT,"3,764.29",Social Community Care Supplies & Service.Adult.Residential Care
01/04/2015,ADULT SOCIAL CARE,P E Modile t/a Laglin House,RESIDENTIAL PLACEMENTS - PRIVATE CONTRACTORS PAYMENT,"3,764.29",Social Community Care Supplies & Service.Adult.Residential Care
01/04/2015,ADULT SOCIAL CARE,P E Modile t/a Laglin House,RESIDENTIAL PLACEMENTS - PRIVATE CONTRACTORS PAYMENT,"3,764.29",Social Community Care Supplies & Service.Adult.Residential Care
01/04/2015,ADULT SOCIAL CARE,P E Modile t/a Laglin House,RESIDENTIAL PLACEMENTS - PRIVATE CONTRACTORS PAYMENT,"3,764.29",Social Community Care Supplies & Service.Adult.Residential Care
01/04/2015,ADULT SOCIAL CARE,P E Modile t/a Laglin House,RESIDENTIAL PLACEMENTS - PRIVATE CONTRACTORS PAYMENT,"3,764.29",Social Community Care Supplies & Service.Adult.Residential Care
01/04/2015,FINANCE,British Gas Business,ELECTRICITY,"3,698.99",Utilities.Electricity.NA
01/04/2015,ADULT SOCIAL CARE,Rosenmanor Residential Care Home,RESIDENTIAL PLACEMENTS - PRIVATE CONTRACTORS PAYMENT,"3,631.43",Social Community Care Supplies & Service.Adult.Residential Care
01/04/2015,FINANCE,Corona Energy,GAS,"3,593.57",Utilities.Gas.NA
01/04/2015,FINANCE,Corona Energy,GAS,"3,583.00",Utilities.Gas.NA
01/04/2015,FINANCE,British Gas Business,ELECTRICITY,"3,576.22",Utilities.Electricity.NA
01/04/2015,ADULT SOCIAL CARE,Surrey Mental Health Ltd,RESIDENTIAL PLACEMENTS - PRIVATE CONTRACTORS PAYMENT,"3,542.86",Social Community Care Supplies & Service.Adult.Residential Care
01/04/2015,ADULT SOCIAL CARE,Astra Homes Ltd,RESIDENTIAL PLACEMENTS - PRIVATE CONTRACTORS PAYMENT,"3,490.16",Social Community Care Supplies & Service.Adult.Residential Care
01/04/2015,ADULT SOCIAL CARE,Lifeways Community Care Ltd,SUPPORTED OTHER ACCOMMODATION - PRIVATE CONTRACTORS PAYMENT,"3,461.61",Social Community Care Supplies & Service.Adult.Sheltered Accommodation
01/04/2015,CHILDREN'S SERVICES,Synergy Fostering Ltd,IN HOUSE FOSTER CARE PLACEMENTS - PRIVATE CONTRACTORS PAYMENT,"3,424.20",Social Community Care Supplies & Service.Children.Fostering
01/04/2015,CHILDREN'S SERVICES,Unique Personnel (Uk) Ltd,PRIVATE CONTRACTORS PAYMENT - OTHER,"3,396.87",Social Community Care Supplies & Service.Disabled Children.NA
01/04/2015,ADULT SOCIAL CARE,Rosedene Nursing Home,NURSING HOMES - PRIVATE CONTRACTORS PAYMENT,"3,396.18",Social Community Care Supplies & Service.Adult.Nursing Homes
01/04/2015,"REGENERATION, PLANNING & NEIGHBOURHOODS",Veolia ES (UK) Ltd,REFUSE COLLECTION,"3,392.12",Environmental Services.Waste Management.Waste Collection
01/04/2015,FINANCE,Corona Energy,GAS,"3,372.72",Utilities.Gas.NA
01/04/2015,CHILDREN'S SERVICES,Charlie Chaplin Adventure Playground,PRIVATE CONTRACTORS PAYMENT - OTHER,"3,359.52",Social Community Care Supplies & Service.Disabled Children.Play Services
01/04/2015,ADULT SOCIAL CARE,One Step At a Time,SUPPORTED OTHER ACCOMMODATION - PRIVATE CONTRACTORS PAYMENT,"3,339.14",Social Community Care Supplies & Service.Adult.Sheltered Accommodation
01/04/2015,ADULT SOCIAL CARE,Astra Homes Ltd,RESIDENTIAL PLACEMENTS - PRIVATE CONTRACTORS PAYMENT,"3,321.43",Social Community Care Supplies & Service.Adult.Residential Care
01/04/2015,ADULT SOCIAL CARE,Astra Homes Ltd,RESIDENTIAL PLACEMENTS - PRIVATE CONTRACTORS PAYMENT,"3,321.43",Social Community Care Supplies & Service.Adult.Residential Care
01/04/2015,CAPITAL CC,DACS Care & Repair,GRANTS AND CONTRIBUTIONS,"3,268.00",Financial Services.Grants.NA
01/04/2015,ADULT SOCIAL CARE,Laurel Residential Homes Ltd,RESIDENTIAL PLACEMENTS - PRIVATE CONTRACTORS PAYMENT,"3,257.48",Social Community Care Supplies & Service.Adult.Residential Care
01/04/2015,FINANCE,Corona Energy,GAS,"3,247.73",Utilities.Gas.NA
01/04/2015,FINANCE,Corona Energy,GAS,"3,223.04",Utilities.Gas.NA
01/04/2015,ADULT SOCIAL CARE,Crownwise Ltd,RESIDENTIAL PLACEMENTS - PRIVATE CONTRACTORS PAYMENT,"3,171.30",Social Community Care Supplies & Service.Adult.Residential Care
01/04/2015,ADULT SOCIAL CARE,West London Mission,RESIDENTIAL PLACEMENTS - PRIVATE CONTRACTORS PAYMENT,"3,118.38",Social Community Care Supplies & Service.Adult.Residential Care
01/04/2015,ADULT SOCIAL CARE,West London Mission,RESIDENTIAL PLACEMENTS - PRIVATE CONTRACTORS PAYMENT,"3,118.33",Social Community Care Supplies & Service.Adult.Residential Care
01/04/2015,ADULT SOCIAL CARE,Astra Homes Ltd,RESIDENTIAL PLACEMENTS - PRIVATE CONTRACTORS PAYMENT,"3,100.00",Social Community Care Supplies & Service.Adult.Residential Care
01/04/2015,ADULT SOCIAL CARE,Astra Homes Ltd,RESIDENTIAL PLACEMENTS - PRIVATE CONTRACTORS PAYMENT,"3,100.00",Social Community Care Supplies & Service.Adult.Residential Care
01/04/2015,ADULT SOCIAL CARE,Rosenmanor Residential Care Home,RESIDENTIAL PLACEMENTS - PRIVATE CONTRACTORS PAYMENT,"3,100.00",Social Community Care Supplies & Service.Adult.Residential Care
01/04/2015,ADULT SOCIAL CARE,Allied Care Ltd,RESIDENTIAL PLACEMENTS - PRIVATE CONTRACTORS PAYMENT,"3,081.13",Social Community Care Supplies & Service.Adult.Residential Care
01/04/2015,ADULT SOCIAL CARE,Deepdene Care Ltd,RESIDENTIAL PLACEMENTS - PRIVATE CONTRACTORS PAYMENT,"3,073.30",Social Community Care Supplies & Service.Adult.Residential Care
01/04/2015,FINANCE,Corona Energy,GAS,"3,072.69",Utilities.Gas.NA
01/04/2015,ADULT SOCIAL CARE,Astra Homes Ltd,RESIDENTIAL PLACEMENTS - PRIVATE CONTRACTORS PAYMENT,"3,055.71",Social Community Care Supplies & Service.Adult.Residential Care
01/04/2015,ADULT SOCIAL CARE,Care Unlimited,NURSING HOMES - PRIVATE CONTRACTORS PAYMENT,"3,030.69",Social Community Care Supplies & Service.Adult.Nursing Homes
01/04/2015,ADULT SOCIAL CARE,Lakeside Nursing & Residential Home,NURSING HOMES - PRIVATE CONTRACTORS PAYMENT,"3,030.69",Social Community Care Supplies & Service.Adult.Residential Care
01/04/2015,BUSINESS & CUSTOMER SERVICES,Dun & Bradstreet Ltd,LEGAL FEES,"3,000.00",Legal Services.General Support.NA
01/04/2015,FINANCE,Corona Energy,GAS,"2,992.78",Utilities.Gas.NA
01/04/2015,FINANCE,Corona Energy,GAS,"2,982.27",Utilities.Gas.NA
01/04/2015,FINANCE,Volkswagen Group Leasing,VEHICLE LEASES,"2,976.30",Vehicle Management.Leasing.NA
01/04/2015,ADULT SOCIAL CARE,Newham House Supporting People Ltd,SUPPORTED OTHER ACCOMMODATION - PRIVATE CONTRACTORS PAYMENT,"2,937.91",Social Community Care Supplies & Service.Adult.Residential Care
01/04/2015,ADULT SOCIAL CARE,Newham House Supporting People Ltd,SUPPORTED OTHER ACCOMMODATION - PRIVATE CONTRACTORS PAYMENT,"2,937.91",Social Community Care Supplies & Service.Adult.Residential Care
01/04/2015,ADULT SOCIAL CARE,Newham House Supporting People Ltd,SUPPORTED OTHER ACCOMMODATION - PRIVATE CONTRACTORS PAYMENT,"2,937.91",Social Community Care Supplies & Service.Adult.Residential Care
01/04/2015,ADULT SOCIAL CARE,Newham House Supporting People Ltd,SUPPORTED OTHER ACCOMMODATION - PRIVATE CONTRACTORS PAYMENT,"2,937.91",Social Community Care Supplies & Service.Adult.Residential Care
01/04/2015,ADULT SOCIAL CARE,Newham House Supporting People Ltd,SUPPORTED OTHER ACCOMMODATION - PRIVATE CONTRACTORS PAYMENT,"2,937.91",Social Community Care Supplies & Service.Adult.Residential Care
01/04/2015,ADULT SOCIAL CARE,Rosenmanor Residential Care Home,RESIDENTIAL PLACEMENTS - PRIVATE CONTRACTORS PAYMENT,"2,921.75",Social Community Care Supplies & Service.Adult.Residential Care
01/04/2015,CHILDREN'S SERVICES,Netpex Ltd_d,IN HOUSE FOSTER CARE PLACEMENTS - PRIVATE CONTRACTORS PAYMENT,"2,920.12",Social Community Care Supplies & Service.Children.Fostering
01/04/2015,ADULT SOCIAL CARE,Southside Partnership,RESIDENTIAL PLACEMENTS - PRIVATE CONTRACTORS PAYMENT,"2,894.16",Social Community Care Supplies & Service.Adult.Mental Health Services
01/04/2015,CHILDREN'S SERVICES,Compass Fostering London & Eastern Ltd,IN HOUSE FOSTER CARE PLACEMENTS - PRIVATE CONTRACTORS PAYMENT,"2,892.90",Social Community Care Supplies & Service.Children.Fostering
01/04/2015,FINANCE,Corona Energy,GAS,"2,892.29",Utilities.Gas.NA
01/04/2015,ADULT SOCIAL CARE,HC-One Ltd,NURSING HOMES - PRIVATE CONTRACTORS PAYMENT,"2,885.61",Social Community Care Supplies & Service.Adult.Residential Homes for Older People
01/04/2015,ADULT SOCIAL CARE,Crownwise Ltd,RESIDENTIAL PLACEMENTS - PRIVATE CONTRACTORS PAYMENT,"2,883.00",Social Community Care Supplies & Service.Adult.Residential Care
01/04/2015,ADULT SOCIAL CARE,Cognithan Ltd,RESIDENTIAL PLACEMENTS - PRIVATE CONTRACTORS PAYMENT,"2,878.57",Social Community Care Supplies & Service.Adult.Nursing Homes
01/04/2015,ADULT SOCIAL CARE,Cognithan Ltd,RESIDENTIAL PLACEMENTS - PRIVATE CONTRACTORS PAYMENT,"2,878.57",Social Community Care Supplies & Service.Adult.Nursing Homes
01/04/2015,ADULT SOCIAL CARE,Crownwise Ltd,RESIDENTIAL PLACEMENTS - PRIVATE CONTRACTORS PAYMENT,"2,878.57",Social Community Care Supplies & Service.Adult.Residential Care
01/04/2015,ADULT SOCIAL CARE,Crownwise Ltd,RESIDENTIAL PLACEMENTS - PRIVATE CONTRACTORS PAYMENT,"2,878.57",Social Community Care Supplies & Service.Adult.Residential Care
01/04/2015,ADULT SOCIAL CARE,Astra Homes Ltd,RESIDENTIAL PLACEMENTS - PRIVATE CONTRACTORS PAYMENT,"2,878.57",Social Community Care Supplies & Service.Adult.Residential Care
01/04/2015,ADULT SOCIAL CARE,Astra Homes Ltd,RESIDENTIAL PLACEMENTS - PRIVATE CONTRACTORS PAYMENT,"2,878.57",Social Community Care Supplies & Service.Adult.Residential Care
01/04/2015,ADULT SOCIAL CARE,Alice Lodge,RESIDENTIAL PLACEMENTS - PRIVATE CONTRACTORS PAYMENT,"2,878.57",Social Community Care Supplies & Service.Adult.Residential Care
01/04/2015,ADULT SOCIAL CARE,Astra Homes Ltd,RESIDENTIAL PLACEMENTS - PRIVATE CONTRACTORS PAYMENT,"2,873.61",Social Community Care Supplies & Service.Adult.Residential Care
01/04/2015,FINANCE,Corona Energy,GAS,"2,869.34",Utilities.Gas.NA
01/04/2015,FINANCE,Corona Energy,GAS,"2,821.84",Utilities.Gas.NA
01/04/2015,ADULT SOCIAL CARE,Assisi Community Care,RESIDENTIAL PLACEMENTS - PRIVATE CONTRACTORS PAYMENT,"2,790.00",Social Community Care Supplies & Service.Adult.Residential Homes for Older People
01/04/2015,ADULT SOCIAL CARE,Deepdene Care Ltd,RESIDENTIAL PLACEMENTS - PRIVATE CONTRACTORS PAYMENT,"2,745.71",Social Community Care Supplies & Service.Adult.Residential Care
01/04/2015,ADULT SOCIAL CARE,Thornton Lodge Ltd,RESIDENTIAL PLACEMENTS - PRIVATE CONTRACTORS PAYMENT,"2,701.43",Social Community Care Supplies & Service.Adult.Domiciliary Care
01/04/2015,ADULT SOCIAL CARE,London Cyrenians Housing,SUPPORTED OTHER ACCOMMODATION - PRIVATE CONTRACTORS PAYMENT,"2,701.43",Social Community Care Supplies & Service.Adult.Mental Health Services
01/04/2015,ADULT SOCIAL CARE,London Cyrenians Housing,SUPPORTED OTHER ACCOMMODATION - PRIVATE CONTRACTORS PAYMENT,"2,701.43",Social Community Care Supplies & Service.Adult.Mental Health Services
01/04/2015,ADULT SOCIAL CARE,London Cyrenians Housing,SUPPORTED OTHER ACCOMMODATION - PRIVATE CONTRACTORS PAYMENT,"2,701.43",Social Community Care Supplies & Service.Adult.Mental Health Services
01/04/2015,ADULT SOCIAL CARE,London Cyrenians Housing,SUPPORTED OTHER ACCOMMODATION - PRIVATE CONTRACTORS PAYMENT,"2,701.43",Social Community Care Supplies & Service.Adult.Mental Health Services
01/04/2015,ADULT SOCIAL CARE,London Cyrenians Housing,SUPPORTED OTHER ACCOMMODATION - PRIVATE CONTRACTORS PAYMENT,"2,701.43",Social Community Care Supplies & Service.Adult.Mental Health Services
01/04/2015,ADULT SOCIAL CARE,London Cyrenians Housing,SUPPORTED OTHER ACCOMMODATION - PRIVATE CONTRACTORS PAYMENT,"2,701.43",Social Community Care Supplies & Service.Adult.Mental Health Services
01/04/2015,ADULT SOCIAL CARE,Crownwise Ltd,RESIDENTIAL PLACEMENTS - PRIVATE CONTRACTORS PAYMENT,"2,677.07",Social Community Care Supplies & Service.Adult.Residential Care
01/04/2015,ADULT SOCIAL CARE,Crownwise Ltd,RESIDENTIAL PLACEMENTS - PRIVATE CONTRACTORS PAYMENT,"2,677.07",Social Community Care Supplies & Service.Adult.Residential Care
01/04/2015,ADULT SOCIAL CARE,Thornton Lodge Ltd,RESIDENTIAL PLACEMENTS - PRIVATE CONTRACTORS PAYMENT,"2,657.14",Social Community Care Supplies & Service.Adult.Domiciliary Care
01/04/2015,ADULT SOCIAL CARE,Thornton Lodge Ltd,RESIDENTIAL PLACEMENTS - PRIVATE CONTRACTORS PAYMENT,"2,657.14",Social Community Care Supplies & Service.Adult.Domiciliary Care
01/04/2015,ADULT SOCIAL CARE,Four Seasons Health Care Ltd,NURSING HOMES - PRIVATE CONTRACTORS PAYMENT,"2,657.14",Social Community Care Supplies & Service.Adult.Nursing Homes
01/04/2015,ADULT SOCIAL CARE,Astra Homes Ltd,RESIDENTIAL PLACEMENTS - PRIVATE CONTRACTORS PAYMENT,"2,657.14",Social Community Care Supplies & Service.Adult.Residential Care
01/04/2015,FINANCE,Corona Energy,GAS,"2,634.04",Utilities.Gas.NA
01/04/2015,FINANCE,Corona Energy,GAS,"2,630.98",Utilities.Gas.NA
01/04/2015,ADULT SOCIAL CARE,Homeleigh,RESIDENTIAL PLACEMENTS - PRIVATE CONTRACTORS PAYMENT,"2,623.49",Social Community Care Supplies & Service.Adult.Residential Care
01/04/2015,ADULT SOCIAL CARE,Four Seasons Health Care Ltd,NURSING HOMES - PRIVATE CONTRACTORS PAYMENT,"2,567.46",Social Community Care Supplies & Service.Adult.Nursing Homes
01/04/2015,ADULT SOCIAL CARE,Medequip Assistive Technology Ltd,SPECIALIST EQUIPMENT FOR SERVICE PROVISION,"2,550.00",Social Community Care Supplies & Service.Supplies.Equipment
01/04/2015,FINANCE,Corona Energy,GAS,"2,539.48",Utilities.Gas.NA
01/04/2015,FINANCE,Corona Energy,GAS,"2,536.10",Utilities.Gas.NA
01/04/2015,FINANCE,Corona Energy,GAS,"2,507.54",Utilities.Gas.NA
01/04/2015,FINANCE,British Gas Business,ELECTRICITY,"2,501.88",Utilities.Electricity.NA
01/04/2015,ADULT SOCIAL CARE,Thornton Lodge Ltd,RESIDENTIAL PLACEMENTS - PRIVATE CONTRACTORS PAYMENT,"2,480.00",Social Community Care Supplies & Service.Adult.Domiciliary Care
01/04/2015,ADULT SOCIAL CARE,Amber Care (East Anglia) Ltd,DAYCARE - PRIVATE CONTRACTORS PAYMENT,"2,475.22",Social Community Care Supplies & Service.Adult.Day Care
01/04/2015,ADULT SOCIAL CARE,Astra Homes Ltd,RESIDENTIAL PLACEMENTS - PRIVATE CONTRACTORS PAYMENT,"2,460.07",Social Community Care Supplies & Service.Adult.Residential Care
01/04/2015,ADULT SOCIAL CARE,The Orders of St John Care Trust,RESIDENTIAL PLACEMENTS - PRIVATE CONTRACTORS PAYMENT,"2,449.00",Social Community Care Supplies & Service.Adult.Residential Care
01/04/2015,CHILDREN'S SERVICES,XCEL 2000 Fostercare Services Ltd,SUPPORTED OTHER ACCOMMODATION - PRIVATE CONTRACTORS PAYMENT,"2,435.71",Social Community Care Supplies & Service.Children.Fostering
01/04/2015,ADULT SOCIAL CARE,Christ the King Residential Care Homes Ltd,RESIDENTIAL PLACEMENTS - PRIVATE CONTRACTORS PAYMENT,"2,435.71",Social Community Care Supplies & Service.Adult.Residential Homes for Older People
01/04/2015,EDUCATION & LEARNING,School Business Services,CONSULTANCY FEES,"2,428.00",Consultancy.Business.NA
01/04/2015,ADULT SOCIAL CARE,Janes House-C Bisessar,RESIDENTIAL PLACEMENTS - PRIVATE CONTRACTORS PAYMENT,"2,405.51",Social Community Care Supplies & Service.Adult.Residential Care
01/04/2015,FINANCE,Corona Energy,GAS,"2,399.85",Utilities.Gas.NA
01/04/2015,ADULT SOCIAL CARE,Astra Homes Ltd,RESIDENTIAL PLACEMENTS - PRIVATE CONTRACTORS PAYMENT,"2,384.96",Social Community Care Supplies & Service.Adult.Residential Care
01/04/2015,FINANCE,Corona Energy,GAS,"2,383.56",Utilities.Gas.NA
01/04/2015,FINANCE,Corona Energy,GAS,"2,369.64",Utilities.Gas.NA
01/04/2015,FINANCE,Corona Energy,GAS,"2,358.51",Utilities.Gas.NA
01/04/2015,FINANCE,Corona Energy,GAS,"2,345.60",Utilities.Gas.NA
01/04/2015,FINANCE,Corona Energy,GAS,"2,341.13",Utilities.Gas.NA
01/04/2015,FINANCE,British Gas Business,ELECTRICITY,"2,331.44",Utilities.Electricity.NA
01/04/2015,FINANCE,Corona Energy,GAS,"2,330.54",Utilities.Gas.NA
01/04/2015,FINANCE,Corona Energy,GAS,"2,325.02",Utilities.Gas.NA
01/04/2015,ADULT SOCIAL CARE,Thornton Lodge Ltd,RESIDENTIAL PLACEMENTS - PRIVATE CONTRACTORS PAYMENT,"2,302.86",Social Community Care Supplies & Service.Adult.Domiciliary Care
01/04/2015,ADULT SOCIAL CARE,Thornton Lodge Ltd,RESIDENTIAL PLACEMENTS - PRIVATE CONTRACTORS PAYMENT,"2,302.86",Social Community Care Supplies & Service.Adult.Domiciliary Care
01/04/2015,FINANCE,Corona Energy,GAS,"2,290.22",Utilities.Gas.NA
01/04/2015,FINANCE,Corona Energy,GAS,"2,284.21",Utilities.Gas.NA
01/04/2015,ADULT SOCIAL CARE,Clarendon Nursing Home,NURSING HOMES - PRIVATE CONTRACTORS PAYMENT,"2,272.52",Social Community Care Supplies & Service.Adult.Nursing Homes
01/04/2015,ADULT SOCIAL CARE,Castlebar Health Care Ltd,RESIDENTIAL PLACEMENTS - PRIVATE CONTRACTORS PAYMENT,"2,265.26",Social Community Care Supplies & Service.Adult.Nursing Homes
01/04/2015,FINANCE,Corona Energy,GAS,"2,236.18",Utilities.Gas.NA
01/04/2015,CHILDREN'S SERVICES,Future Foundations Ltd,SUPPORTED OTHER ACCOMMODATION - PRIVATE CONTRACTORS PAYMENT,"2,214.27",Social Community Care Supplies & Service.Adult.Homeless Support
01/04/2015,FINANCE,Corona Energy,GAS,"2,156.19",Utilities.Gas.NA
01/04/2015,CHILDREN'S SERVICES,Quality Protects Children Ltd,PRIVATE CONTRACTORS PAYMENT - OTHER,"2,100.00",Social Community Care Supplies & Service.Children.NA
01/04/2015,ADULT SOCIAL CARE,Emm Lane & Westbank Care Home,RESIDENTIAL PLACEMENTS - PRIVATE CONTRACTORS PAYMENT,"2,094.36",Social Community Care Supplies & Service.Adult.Residential Care
01/04/2015,CORPORATE AFFAIRS,PricewaterhouseCoopers LLP,AUDIT FEES,"2,090.00",Financial Services.Audit.NA
01/04/2015,FINANCE,British Gas Business,ELECTRICITY,"2,083.33",Utilities.Electricity.NA
01/04/2015,ADULT SOCIAL CARE,Care Unlimited,NURSING HOMES - PRIVATE CONTRACTORS PAYMENT,"2,060.13",Social Community Care Supplies & Service.Adult.Nursing Homes
01/04/2015,FINANCE,British Gas Business,ELECTRICITY,"2,056.56",Utilities.Electricity.NA
01/04/2015,FINANCE,British Gas Business,ELECTRICITY,"2,026.31",Utilities.Electricity.NA
01/04/2015,ADULT SOCIAL CARE,Astra Homes Ltd,RESIDENTIAL PLACEMENTS - PRIVATE CONTRACTORS PAYMENT,"2,020.36",Social Community Care Supplies & Service.Adult.Residential Care
01/04/2015,FINANCE,Corona Energy,GAS,"2,012.87",Utilities.Gas.NA
01/04/2015,FINANCE,Corona Energy,GAS,"2,005.80",Utilities.Gas.NA
01/04/2015,FINANCE,Corona Energy,GAS,"1,971.44",Utilities.Gas.NA
01/04/2015,ADULT SOCIAL CARE,Astra Homes Ltd,RESIDENTIAL PLACEMENTS - PRIVATE CONTRACTORS PAYMENT,"1,964.96",Social Community Care Supplies & Service.Adult.Residential Care
01/04/2015,FINANCE,Corona Energy,GAS,"1,939.45",Utilities.Gas.NA
01/04/2015,FINANCE,Corona Energy,GAS,"1,923.09",Utilities.Gas.NA
01/04/2015,FINANCE,Corona Energy,GAS,"1,904.22",Utilities.Gas.NA
01/04/2015,FINANCE,Corona Energy,GAS,"1,899.06",Utilities.Gas.NA
01/04/2015,ADULT SOCIAL CARE,Terrance House,RESIDENTIAL PLACEMENTS - PRIVATE CONTRACTORS PAYMENT,"1,857.83",Social Community Care Supplies & Service.Adult.Residential Care
01/04/2015,FINANCE,British Gas Business,ELECTRICITY,"1,851.73",Utilities.Electricity.NA
01/04/2015,FINANCE,Corona Energy,GAS,"1,851.39",Utilities.Gas.NA
01/04/2015,ADULT SOCIAL CARE,Crownwise Ltd,RESIDENTIAL PLACEMENTS - PRIVATE CONTRACTORS PAYMENT,"1,842.77",Social Community Care Supplies & Service.Adult.Residential Care
01/04/2015,FINANCE,British Gas Business,ELECTRICITY,"1,805.99",Utilities.Electricity.NA
01/04/2015,ADULT SOCIAL CARE,TOPAZ Social Work CIC,CONSULTANCY FEES,"1,804.00",Consultancy.Business.NA
01/04/2015,FINANCE,Corona Energy,GAS,"1,789.73",Utilities.Gas.NA
01/04/2015,FINANCE,British Gas Business,ELECTRICITY,"1,779.41",Utilities.Electricity.NA
01/04/2015,FINANCE,Corona Energy,GAS,"1,765.17",Utilities.Gas.NA
01/04/2015,FINANCE,British Gas Business,ELECTRICITY,"1,756.61",Utilities.Electricity.NA
01/04/2015,ADULT SOCIAL CARE,Astra Homes Ltd,SUPPORTED OTHER ACCOMMODATION - PRIVATE CONTRACTORS PAYMENT,"1,727.14",Social Community Care Supplies & Service.Adult.Residential Care
01/04/2015,FINANCE,Corona Energy,GAS,"1,722.96",Utilities.Gas.NA
01/04/2015,ADULT SOCIAL CARE,Newham House Supporting People Ltd,SUPPORTED OTHER ACCOMMODATION - PRIVATE CONTRACTORS PAYMENT,"1,717.00",Social Community Care Supplies & Service.Adult.Residential Care
01/04/2015,"REGENERATION, PLANNING & NEIGHBOURHOODS",Veolia ES (UK) Ltd,REFUSE COLLECTION,"1,715.60",Environmental Services.Waste Management.Waste Collection
01/04/2015,ADULT SOCIAL CARE,One Step At a Time,SUPPORTED OTHER ACCOMMODATION - PRIVATE CONTRACTORS PAYMENT,"1,705.89",Social Community Care Supplies & Service.Adult.Sheltered Accommodation
01/04/2015,FINANCE,Corona Energy,GAS,"1,695.25",Utilities.Gas.NA
01/04/2015,ADULT SOCIAL CARE,Astra Homes Ltd,SUPPORTED OTHER ACCOMMODATION - PRIVATE CONTRACTORS PAYMENT,"1,682.86",Social Community Care Supplies & Service.Adult.Residential Care
01/04/2015,ADULT SOCIAL CARE,Astra Homes Ltd,SUPPORTED OTHER ACCOMMODATION - PRIVATE CONTRACTORS PAYMENT,"1,660.71",Social Community Care Supplies & Service.Adult.Residential Care
01/04/2015,FINANCE,British Gas Business,ELECTRICITY,"1,651.19",Utilities.Electricity.NA
01/04/2015,CHILDREN'S SERVICES,Beulah House Hotel,BED & BREAKFAST - PRIVATE CONTRACTORS PAYMENT,"1,650.00","Social Community Care Supplies & Service.Adult.Temporary Accommodation, Short Stay"
01/04/2015,CHILDREN'S SERVICES,Beulah House Hotel,BED & BREAKFAST - PRIVATE CONTRACTORS PAYMENT,"1,650.00","Social Community Care Supplies & Service.Adult.Temporary Accommodation, Short Stay"
01/04/2015,FINANCE,Corona Energy,GAS,"1,646.52",Utilities.Gas.NA
01/04/2015,FINANCE,British Gas Business,ELECTRICITY,"1,646.36",Utilities.Electricity.NA
01/04/2015,FINANCE,Corona Energy,GAS,"1,645.07",Utilities.Gas.NA
01/04/2015,FINANCE,Corona Energy,GAS,"1,625.96",Utilities.Gas.NA
01/04/2015,FINANCE,Corona Energy,GAS,"1,621.81",Utilities.Gas.NA
01/04/2015,FINANCE,Corona Energy,GAS,"1,618.29",Utilities.Gas.NA
01/04/2015,ADULT SOCIAL CARE,Crownwise Ltd,RESIDENTIAL PLACEMENTS - PRIVATE CONTRACTORS PAYMENT,"1,612.13",Social Community Care Supplies & Service.Adult.Residential Care
01/04/2015,FINANCE,Corona Energy,GAS,"1,610.53",Utilities.Gas.NA
01/04/2015,ADULT SOCIAL CARE,Medequip Assistive Technology Ltd,SPECIALIST EQUIPMENT FOR SERVICE PROVISION,"1,608.00",Social Community Care Supplies & Service.Supplies.Equipment
01/04/2015,FINANCE,Corona Energy,GAS,"1,580.11",Utilities.Gas.NA
01/04/2015,ADULT SOCIAL CARE,Astra Homes Ltd,SUPPORTED OTHER ACCOMMODATION - PRIVATE CONTRACTORS PAYMENT,"1,574.36",Social Community Care Supplies & Service.Adult.Residential Care
01/04/2015,FINANCE,Corona Energy,GAS,"1,542.95",Utilities.Gas.NA
01/04/2015,CHILDREN'S SERVICES,Krossroads,SUPPORTED OTHER ACCOMMODATION - PRIVATE CONTRACTORS PAYMENT,"1,532.00",Social Community Care Supplies & Service.Adult.Homeless Support
01/04/2015,FINANCE,Corona Energy,GAS,"1,515.37",Utilities.Gas.NA
01/04/2015,FINANCE,Corona Energy,GAS,"1,468.64",Utilities.Gas.NA
01/04/2015,ADULT SOCIAL CARE,Crownwise Ltd,RESIDENTIAL PLACEMENTS - PRIVATE CONTRACTORS PAYMENT,"1,463.55",Social Community Care Supplies & Service.Adult.Residential Care
01/04/2015,FINANCE,Corona Energy,GAS,"1,444.49",Utilities.Gas.NA
01/04/2015,FINANCE,British Gas Business,ELECTRICITY,"1,426.94",Utilities.Electricity.NA
01/04/2015,FINANCE,Corona Energy,GAS,"1,418.10",Utilities.Gas.NA
01/04/2015,FINANCE,Corona Energy,GAS,"1,416.32",Utilities.Gas.NA
01/04/2015,FINANCE,British Gas Business,ELECTRICITY,"1,409.89",Utilities.Electricity.NA
01/04/2015,"REGENERATION, PLANNING & NEIGHBOURHOODS",Hays Specialist Recruitment,AGENCY STAFF,"1,400.00",Human Resources.Temporary & Agency Staff.NA
01/04/2015,FINANCE,Lambert Smith Hampton Group Ltd,CYCLICAL/PLANNED MAINTENANCE - BUILDING,"1,382.60",Consultancy.Technical & Feasibility.NA
01/04/2015,FINANCE,British Gas Business,ELECTRICITY,"1,382.49",Utilities.Electricity.NA
01/04/2015,FINANCE,Corona Energy,GAS,"1,378.49",Utilities.Gas.NA
01/04/2015,FINANCE,Corona Energy,GAS,"1,369.59",Utilities.Gas.NA
01/04/2015,FINANCE,British Gas Business,ELECTRICITY,"1,356.83",Utilities.Electricity.NA
01/04/2015,FINANCE,British Gas Business,ELECTRICITY,"1,343.78",Utilities.Electricity.NA
01/04/2015,FINANCE,Corona Energy,GAS,"1,328.90",Utilities.Gas.NA
01/04/2015,FINANCE,Corona Energy,GAS,"1,324.85",Utilities.Gas.NA
01/04/2015,ADULT SOCIAL CARE,Medequip Assistive Technology Ltd,SPECIALIST EQUIPMENT FOR SERVICE PROVISION,"1,302.00",Social Community Care Supplies & Service.Supplies.Equipment
01/04/2015,FINANCE,Corona Energy,GAS,"1,294.43",Utilities.Gas.NA
01/04/2015,ADULT SOCIAL CARE,Medequip Assistive Technology Ltd,SPECIALIST EQUIPMENT FOR SERVICE PROVISION,"1,290.54",Social Community Care Supplies & Service.Supplies.Equipment
01/04/2015,ADULT SOCIAL CARE,Medequip Assistive Technology Ltd,SPECIALIST EQUIPMENT FOR SERVICE PROVISION,"1,290.54",Social Community Care Supplies & Service.Supplies.Equipment
01/04/2015,ADULT SOCIAL CARE,One Step At a Time,SUPPORTED OTHER ACCOMMODATION - PRIVATE CONTRACTORS PAYMENT,"1,286.06",Social Community Care Supplies & Service.Adult.Sheltered Accommodation
01/04/2015,FINANCE,Corona Energy,GAS,"1,283.76",Utilities.Gas.NA
01/04/2015,FINANCE,Corona Energy,GAS,"1,280.19",Utilities.Gas.NA
01/04/2015,ADULT SOCIAL CARE,Medequip Assistive Technology Ltd,SPECIALIST EQUIPMENT FOR SERVICE PROVISION,"1,260.00",Social Community Care Supplies & Service.Supplies.Equipment
01/04/2015,FINANCE,British Gas Business,ELECTRICITY,"1,259.91",Utilities.Electricity.NA
01/04/2015,"REGENERATION, PLANNING & NEIGHBOURHOODS",Hays Specialist Recruitment,AGENCY STAFF,"1,242.50",Human Resources.Temporary & Agency Staff.NA
01/04/2015,FINANCE,British Gas Business,ELECTRICITY,"1,229.98",Utilities.Electricity.NA
01/04/2015,FINANCE,British Gas Business,ELECTRICITY,"1,207.72",Utilities.Electricity.NA
01/04/2015,FINANCE,British Gas Business,ELECTRICITY,"1,205.59",Utilities.Electricity.NA
01/04/2015,ADULT SOCIAL CARE,Astra Homes Ltd,SUPPORTED OTHER ACCOMMODATION - PRIVATE CONTRACTORS PAYMENT,"1,197.93",Social Community Care Supplies & Service.Adult.Residential Care
01/04/2015,FINANCE,Corona Energy,GAS,"1,196.60",Utilities.Gas.NA
01/04/2015,FINANCE,British Gas Business,ELECTRICITY,"1,183.38",Utilities.Electricity.NA
01/04/2015,ADULT SOCIAL CARE,Action for Blind People,PRIVATE CONTRACTORS PAYMENT - OTHER,"1,176.00",Social Community Care Supplies & Service.Adult.Day Care
01/04/2015,FINANCE,British Gas Business,ELECTRICITY,"1,155.67",Utilities.Electricity.NA
01/04/2015,ADULT SOCIAL CARE,Astra Homes Ltd,SUPPORTED OTHER ACCOMMODATION - PRIVATE CONTRACTORS PAYMENT,"1,142.66",Social Community Care Supplies & Service.Adult.Residential Care
01/04/2015,"REGENERATION, PLANNING & NEIGHBOURHOODS",Wanderers Football Club,ARTS AND LEISURE COSTS,"1,138.70",Arts & Leisure Services.Sport & Fitness.NA
01/04/2015,FINANCE,Corona Energy,GAS,"1,125.38",Utilities.Gas.NA
01/04/2015,FINANCE,British Gas Business,ELECTRICITY,"1,109.46",Utilities.Electricity.NA
01/04/2015,ADULT SOCIAL CARE,Astra Homes Ltd,SUPPORTED OTHER ACCOMMODATION - PRIVATE CONTRACTORS PAYMENT,"1,108.03",Social Community Care Supplies & Service.Adult.Residential Care
01/04/2015,FINANCE,British Gas Business,ELECTRICITY,"1,059.04",Utilities.Electricity.NA
01/04/2015,ADULT SOCIAL CARE,Astra Homes Ltd,SUPPORTED OTHER ACCOMMODATION - PRIVATE CONTRACTORS PAYMENT,"1,054.89",Social Community Care Supplies & Service.Adult.Residential Care
01/04/2015,FINANCE,British Gas Business,ELECTRICITY,"1,038.30",Utilities.Electricity.NA
01/04/2015,FINANCE,Corona Energy,GAS,"1,037.21",Utilities.Gas.NA
01/04/2015,FINANCE,Corona Energy,GAS,"1,028.80",Utilities.Gas.NA
01/04/2015,FINANCE,British Gas Business,ELECTRICITY,"1,014.13",Utilities.Electricity.NA
01/04/2015,FINANCE,British Gas Business,ELECTRICITY,"1,012.85",Utilities.Electricity.NA
01/04/2015,FINANCE,British Gas Business,ELECTRICITY,"1,010.80",Utilities.Electricity.NA
01/04/2015,FINANCE,Corona Energy,GAS,"1,006.53",Utilities.Gas.NA
01/04/2015,STRATEGY & COMMISSIONING - HOUSING & COMMUNITIES,Streatham Darby & Joan Club,STAFF DEVELOPMENT AND TRAINING,"1,000.00",Social Community Care Supplies & Service.Adult.NA
01/04/2015,FINANCE,British Gas Business,ELECTRICITY,980.19,Utilities.Electricity.NA
01/04/2015,ADULT SOCIAL CARE,Astra Homes Ltd,SUPPORTED OTHER ACCOMMODATION - PRIVATE CONTRACTORS PAYMENT,965.87,Social Community Care Supplies & Service.Adult.Residential Care
01/04/2015,ADULT SOCIAL CARE,Amber Care (East Anglia) Ltd,CLIENT TRANSPORT,948.20,Social Community Care Supplies & Service.Adult.Residential Care
01/04/2015,FINANCE,Corona Energy,GAS,942.86,Utilities.Gas.NA
01/04/2015,ADULT SOCIAL CARE,One Step At a Time,SUPPORTED OTHER ACCOMMODATION - PRIVATE CONTRACTORS PAYMENT,936.20,Social Community Care Supplies & Service.Adult.Sheltered Accommodation
01/04/2015,FINANCE,British Gas Business,ELECTRICITY,934.88,Utilities.Electricity.NA
01/04/2015,ADULT SOCIAL CARE,Astra Homes Ltd,SUPPORTED OTHER ACCOMMODATION - PRIVATE CONTRACTORS PAYMENT,921.14,Social Community Care Supplies & Service.Adult.Residential Care
01/04/2015,BUSINESS & CUSTOMER SERVICES,PHS Group Plc,CYCLICAL/PLANNED MAINTENANCE - BUILDING,919.30,Catering.Vending Machines & Dispensers.NA
01/04/2015,FINANCE,British Gas Business,ELECTRICITY,913.36,Utilities.Electricity.NA
01/04/2015,FINANCE,Corona Energy,GAS,903.96,Utilities.Gas.NA
01/04/2015,FINANCE,British Gas Business,ELECTRICITY,903.12,Utilities.Electricity.NA
01/04/2015,FINANCE,British Gas Business,ELECTRICITY,880.03,Utilities.Electricity.NA
01/04/2015,FINANCE,British Gas Business,ELECTRICITY,874.98,Utilities.Electricity.NA
01/04/2015,FINANCE,British Gas Business,ELECTRICITY,873.35,Utilities.Electricity.NA
01/04/2015,ADULT SOCIAL CARE,Newham House Supporting People Ltd,SUPPORTED OTHER ACCOMMODATION - PRIVATE CONTRACTORS PAYMENT,863.57,Social Community Care Supplies & Service.Adult.Residential Care
01/04/2015,ADULT SOCIAL CARE,Newham House Supporting People Ltd,SUPPORTED OTHER ACCOMMODATION - PRIVATE CONTRACTORS PAYMENT,863.57,Social Community Care Supplies & Service.Adult.Residential Care
01/04/2015,ADULT SOCIAL CARE,Newham House Supporting People Ltd,SUPPORTED OTHER ACCOMMODATION - PRIVATE CONTRACTORS PAYMENT,863.57,Social Community Care Supplies & Service.Adult.Residential Care
01/04/2015,ADULT SOCIAL CARE,Newham House Supporting People Ltd,SUPPORTED OTHER ACCOMMODATION - PRIVATE CONTRACTORS PAYMENT,863.57,Social Community Care Supplies & Service.Adult.Residential Care
01/04/2015,ADULT SOCIAL CARE,Newham House Supporting People Ltd,SUPPORTED OTHER ACCOMMODATION - PRIVATE CONTRACTORS PAYMENT,863.57,Social Community Care Supplies & Service.Adult.Residential Care
01/04/2015,ADULT SOCIAL CARE,Newham House Supporting People Ltd,SUPPORTED OTHER ACCOMMODATION - PRIVATE CONTRACTORS PAYMENT,863.57,Social Community Care Supplies & Service.Adult.Residential Care
01/04/2015,ADULT SOCIAL CARE,Newham House Supporting People Ltd,SUPPORTED OTHER ACCOMMODATION - PRIVATE CONTRACTORS PAYMENT,863.57,Social Community Care Supplies & Service.Adult.Residential Care
01/04/2015,ADULT SOCIAL CARE,Newham House Supporting People Ltd,SUPPORTED OTHER ACCOMMODATION - PRIVATE CONTRACTORS PAYMENT,863.57,Social Community Care Supplies & Service.Adult.Residential Care
01/04/2015,ADULT SOCIAL CARE,Newham House Supporting People Ltd,SUPPORTED OTHER ACCOMMODATION - PRIVATE CONTRACTORS PAYMENT,863.57,Social Community Care Supplies & Service.Adult.Residential Care
01/04/2015,ADULT SOCIAL CARE,Newham House Supporting People Ltd,SUPPORTED OTHER ACCOMMODATION - PRIVATE CONTRACTORS PAYMENT,863.57,Social Community Care Supplies & Service.Adult.Residential Care
01/04/2015,ADULT SOCIAL CARE,Riverside ECHG,SUPPORTED OTHER ACCOMMODATION - PRIVATE CONTRACTORS PAYMENT,860.87,Social Community Care Supplies & Service.Adult.Residential Care
01/04/2015,FINANCE,Corona Energy,GAS,856.84,Utilities.Gas.NA
01/04/2015,FINANCE,British Gas Business,ELECTRICITY,855.36,Utilities.Electricity.NA
01/04/2015,FINANCE,British Gas Business,ELECTRICITY,835.09,Utilities.Electricity.NA
01/04/2015,FINANCE,British Gas Business,ELECTRICITY,830.50,Utilities.Electricity.NA
01/04/2015,FINANCE,Corona Energy,GAS,822.76,Utilities.Gas.NA
01/04/2015,FINANCE,Corona Energy,GAS,809.09,Utilities.Gas.NA
01/04/2015,FINANCE,British Gas Business,ELECTRICITY,806.50,Utilities.Electricity.NA
01/04/2015,FINANCE,British Gas Business,ELECTRICITY,796.44,Utilities.Electricity.NA
01/04/2015,FINANCE,British Gas Business,ELECTRICITY,793.35,Utilities.Electricity.NA
01/04/2015,CHILDREN'S SERVICES,Charlie Chaplin Adventure Playground,SECTION 17 - PRIVATE CONTRACTORS PAYMENT,777.54,Social Community Care Supplies & Service.Disabled Children.Play Services
01/04/2015,FINANCE,British Gas Business,ELECTRICITY,770.17,Utilities.Electricity.NA
01/04/2015,FINANCE,Corona Energy,GAS,769.15,Utilities.Gas.NA
01/04/2015,ADULT SOCIAL CARE,Hexagon Housing Association Ltd,RESIDENTIAL PLACEMENTS - PRIVATE CONTRACTORS PAYMENT,763.57,"Social Community Care Supplies & Service.Adult.Temporary Accommodation, Long Stay"
01/04/2015,FINANCE,British Gas Business,ELECTRICITY,759.60,Utilities.Electricity.NA
01/04/2015,CHILDREN'S SERVICES,Medacs Homecare,SECTION 17 - PRIVATE CONTRACTORS PAYMENT,757.58,Social Community Care Supplies & Service.Adult.Domiciliary Care
01/04/2015,FINANCE,British Gas Business,ELECTRICITY,757.20,Utilities.Electricity.NA
01/04/2015,FINANCE,Corona Energy,GAS,748.58,Utilities.Gas.NA
01/04/2015,FINANCE,British Gas Business,ELECTRICITY,733.86,Utilities.Electricity.NA
01/04/2015,FINANCE,British Gas Business,ELECTRICITY,727.04,Utilities.Electricity.NA
01/04/2015,FINANCE,British Gas Business,ELECTRICITY,724.00,Utilities.Electricity.NA
01/04/2015,FINANCE,Corona Energy,GAS,718.12,Utilities.Gas.NA
01/04/2015,FINANCE,British Gas Business,ELECTRICITY,714.99,Utilities.Electricity.NA
01/04/2015,CORPORATE AFFAIRS,Swiss Post Solutions Ltd,POSTAGE AND COURIER SERVICES,714.78,Mail Services.Postage.NA
01/04/2015,"REGENERATION, PLANNING & NEIGHBOURHOODS",Haymarket Publishing Services Ltd,MEMBERSHIP AND SUBSCRIPTIONS,705.00,Financial Services.Subscriptions.NA
01/04/2015,FINANCE,Corona Energy,GAS,702.61,Utilities.Gas.NA
01/04/2015,STRATEGY & COMMISSIONING - HOUSING & COMMUNITIES,Lambeth Asian Centre,STAFF DEVELOPMENT AND TRAINING,700.00,Social Community Care Supplies & Service.Adult.Black & Minority Ethnic Services
01/04/2015,FINANCE,British Gas Business,ELECTRICITY,685.89,Utilities.Electricity.NA
01/04/2015,FINANCE,British Gas Business,ELECTRICITY,679.03,Utilities.Electricity.NA
01/04/2015,FINANCE,British Gas Business,ELECTRICITY,678.34,Utilities.Electricity.NA
01/04/2015,FINANCE,Corona Energy,GAS,672.89,Utilities.Gas.NA
01/04/2015,FINANCE,British Gas Business,ELECTRICITY,669.36,Utilities.Electricity.NA
01/04/2015,FINANCE,Corona Energy,GAS,663.13,Utilities.Gas.NA
01/04/2015,FINANCE,British Gas Business,ELECTRICITY,663.00,Utilities.Electricity.NA
01/04/2015,FINANCE,British Gas Business,ELECTRICITY,662.95,Utilities.Electricity.NA
01/04/2015,FINANCE,Corona Energy,GAS,662.24,Utilities.Gas.NA
01/04/2015,FINANCE,Corona Energy,GAS,651.99,Utilities.Gas.NA
01/04/2015,FINANCE,Corona Energy,GAS,645.86,Utilities.Gas.NA
01/04/2015,FINANCE,British Gas Business,ELECTRICITY,631.86,Utilities.Electricity.NA
01/04/2015,FINANCE,Corona Energy,GAS,622.83,Utilities.Gas.NA
01/04/2015,FINANCE,Corona Energy,GAS,619.38,Utilities.Gas.NA
01/04/2015,FINANCE,British Gas Business,ELECTRICITY,607.73,Utilities.Electricity.NA
01/04/2015,FINANCE,British Gas Business,ELECTRICITY,607.26,Utilities.Electricity.NA
01/04/2015,FINANCE,British Gas Business,ELECTRICITY,601.56,Utilities.Electricity.NA
01/04/2015,EDUCATION & LEARNING,Danila Narcisi Calvo,ARTS AND LEISURE COSTS,600.00,Arts & Leisure Services.Museums & Art.NA
01/04/2015,CHILDREN'S SERVICES,Charlie Chaplin Adventure Playground,SECTION 17 - PRIVATE CONTRACTORS PAYMENT,596.26,Social Community Care Supplies & Service.Disabled Children.Play Services
01/04/2015,CHILDREN'S SERVICES,Charlie Chaplin Adventure Playground,SECTION 17 - PRIVATE CONTRACTORS PAYMENT,596.26,Social Community Care Supplies & Service.Disabled Children.Play Services
01/04/2015,FINANCE,Corona Energy,GAS,584.71,Utilities.Gas.NA
01/04/2015,FINANCE,Corona Energy,GAS,570.74,Utilities.Gas.NA
01/04/2015,CORPORATE AFFAIRS,General Council of the Bar,MEMBERSHIP AND SUBSCRIPTIONS,566.00,Financial Services.Subscriptions.NA
01/04/2015,FINANCE,British Gas Business,ELECTRICITY,563.09,Utilities.Electricity.NA
01/04/2015,EDUCATION & LEARNING,Quest 88 Ltd,"PURCHASE - EQUIPMENT, FURNITURE AND MATERIALS",557.50,Social Community Care Supplies & Service.Supplies.NA
01/04/2015,FINANCE,British Gas Business,ELECTRICITY,554.88,Utilities.Electricity.NA
01/04/2015,FINANCE,British Gas Business,ELECTRICITY,550.76,Utilities.Electricity.NA
01/04/2015,FINANCE,Corona Energy,GAS,550.38,Utilities.Gas.NA
01/04/2015,FINANCE,British Gas Business,ELECTRICITY,549.56,Utilities.Electricity.NA
01/04/2015,FINANCE,British Gas Business,ELECTRICITY,549.00,Utilities.Electricity.NA
01/04/2015,FINANCE,British Gas Business,ELECTRICITY,548.63,Utilities.Electricity.NA
01/04/2015,FINANCE,British Gas Business,ELECTRICITY,548.62,Utilities.Electricity.NA
01/04/2015,FINANCE,Corona Energy,GAS,547.44,Utilities.Gas.NA
01/04/2015,FINANCE,British Gas Business,ELECTRICITY,546.15,Utilities.Electricity.NA
01/04/2015,FINANCE,Corona Energy,GAS,545.19,Utilities.Gas.NA
01/04/2015,FINANCE,Corona Energy,GAS,542.85,Utilities.Gas.NA
01/04/2015,FINANCE,Corona Energy,GAS,540.02,Utilities.Gas.NA
01/04/2015,BUSINESS TRANSFORMATION,Specialist Computer Centers Plc,ICT HARDWARE,540.00,Information Communication Technology.Hardware.NA
01/04/2015,FINANCE,Corona Energy,GAS,539.47,Utilities.Gas.NA
01/04/2015,FINANCE,Corona Energy,GAS,535.12,Utilities.Gas.NA
01/04/2015,FINANCE,Corona Energy,GAS,525.35,Utilities.Gas.NA
01/04/2015,"REGENERATION, PLANNING & NEIGHBOURHOODS",Diamond Couriers Ltd,POSTAGE AND COURIER SERVICES,525.33,Mail Services.Couriers.NA
01/04/2015,FINANCE,Corona Energy,GAS,524.81,Utilities.Gas.NA
01/04/2015,FINANCE,Corona Energy,GAS,522.79,Utilities.Gas.NA
01/04/2015,FINANCE,Corona Energy,GAS,510.18,Utilities.Gas.NA
01/04/2015,FINANCE,British Gas Business,ELECTRICITY,509.11,Utilities.Electricity.NA
01/04/2015,FINANCE,Corona Energy,GAS,508.70,Utilities.Gas.NA
01/04/2015,FINANCE,British Gas Business,ELECTRICITY,507.88,Utilities.Electricity.NA
01/04/2015,FINANCE,Corona Energy,GAS,507.19,Utilities.Gas.NA
01/04/2015,FINANCE,British Gas Business,ELECTRICITY,507.03,Utilities.Electricity.NA
01/04/2015,FINANCE,Corona Energy,GAS,502.68,Utilities.Gas.NA
01/04/2015,FINANCE,British Gas Business,ELECTRICITY,500.59,Utilities.Electricity.NA
01/04/2015,"STRATEGY & COMMISSIONING - CHILDREN, DISABILITIES & PUBLIC HEALTH","Training, Consultancy & Practice Ltd",STAFF DEVELOPMENT AND TRAINING,500.00,Human Resources.Training & Conferences.Training
01/04/2015,ADULT SOCIAL CARE,Assisi Community Care,RESIDENTIAL CARE INCOME,(538.07),Social Community Care Supplies & Service.Adult.Residential Homes for Older People
01/04/2015,ADULT SOCIAL CARE,Crownwise Ltd,RESIDENTIAL CARE INCOME,(548.92),Social Community Care Supplies & Service.Adult.Residential Care
01/04/2015,ADULT SOCIAL CARE,Crownwise Ltd,RESIDENTIAL CARE INCOME,(548.92),Social Community Care Supplies & Service.Adult.Residential Care
01/04/2015,ADULT SOCIAL CARE,Crownwise Ltd,RESIDENTIAL CARE INCOME,(548.92),Social Community Care Supplies & Service.Adult.Residential Care
01/04/2015,ADULT SOCIAL CARE,Astra Homes Ltd,RESIDENTIAL CARE INCOME,(548.92),Social Community Care Supplies & Service.Adult.Residential Care
01/04/2015,ADULT SOCIAL CARE,The Orders of St John Care Trust,RESIDENTIAL CARE INCOME,(548.92),Social Community Care Supplies & Service.Adult.Residential Care
01/04/2015,ADULT SOCIAL CARE,Astra Homes Ltd,RESIDENTIAL CARE INCOME,(559.73),Social Community Care Supplies & Service.Adult.Residential Care
01/04/2015,ADULT SOCIAL CARE,Thornton Lodge Ltd,RESIDENTIAL CARE INCOME,(605.83),Social Community Care Supplies & Service.Adult.Domiciliary Care
01/04/2015,CHILDREN'S SERVICES,Quality Protects Children Ltd,PRIVATE CONTRACTORS PAYMENT - OTHER,(700.00),Social Community Care Supplies & Service.Children.NA
01/04/2015,FINANCE,Corona Energy,GAS,"(1,144.66)",Utilities.Gas.NA
01/04/2015,FINANCE,Corona Energy,GAS,"(1,275.16)",Utilities.Gas.NA
01/04/2015,ADULT SOCIAL CARE,Astra Homes Ltd,SUPPORTED OTHER ACCOMMODATION - PRIVATE CONTRACTORS PAYMENT,"(1,293.08)",Social Community Care Supplies & Service.Adult.Residential Care
01/04/2015,FINANCE,Corona Energy,GAS,"(1,575.32)",Utilities.Gas.NA
01/04/2015,CHILDREN'S SERVICES,Beulah House Hotel,BED & BREAKFAST - PRIVATE CONTRACTORS PAYMENT,"(1,650.00)","Social Community Care Supplies & Service.Adult.Temporary Accommodation, Short Stay"
01/04/2015,FINANCE,Corona Energy,GAS,"(1,966.10)",Utilities.Gas.NA
01/04/2015,FINANCE,Corona Energy,GAS,"(2,405.66)",Utilities.Gas.NA
01/04/2015,FINANCE,Corona Energy,GAS,"(2,517.15)",Utilities.Gas.NA
01/04/2015,ADULT SOCIAL CARE,Surrey Mental Health Ltd,RESIDENTIAL PLACEMENTS - PRIVATE CONTRACTORS PAYMENT,"(3,208.00)",Social Community Care Supplies & Service.Adult.Residential Care
01/04/2015,ADULT SOCIAL CARE,P E Modile t/a Laglin House,RESIDENTIAL PLACEMENTS - PRIVATE CONTRACTORS PAYMENT,"(7,650.00)",Social Community Care Supplies & Service.Adult.Residential Care
02/04/2015,"REGENERATION, PLANNING & NEIGHBOURHOODS",City Suburban Tree Surgeons Ltd,GROUNDS MAINTENANCE,"189,885.67",Horticultural.Tree Trimming.NA
02/04/2015,"REGENERATION, PLANNING & NEIGHBOURHOODS",City Suburban Tree Surgeons Ltd,GROUNDS MAINTENANCE,"132,927.91",Horticultural.Tree Trimming.NA
02/04/2015,HOUSING MANAGEMENT SERVICES,Significant Ltd,BUILDING ALTERATIONS AND MATERIALS,"27,387.90",Building Construction Materials.Signage.NA
02/04/2015,CHILDREN'S SERVICES,SWAAY Child and Adolescent Services Ltd,RESIDENTIAL PLACEMENTS - PRIVATE CONTRACTORS PAYMENT,"19,573.40",Social Community Care Supplies & Service.Adult.Residential Homes for Older People
02/04/2015,EDUCATION & LEARNING,Kelly Executive,CLIENT TRANSPORT,"17,446.00",Public Transport.Taxi Services.NA
02/04/2015,CHILDREN'S SERVICES,Springfield Road Ltd,RESIDENTIAL PLACEMENTS - PRIVATE CONTRACTORS PAYMENT,"14,392.68",Social Community Care Supplies & Service.Adult.Residential Homes for Older People
02/04/2015,CHILDREN'S SERVICES,Springfield Road Ltd,RESIDENTIAL PLACEMENTS - PRIVATE CONTRACTORS PAYMENT,"14,392.68",Social Community Care Supplies & Service.Adult.Residential Homes for Older People
02/04/2015,CAPITAL CC,Appleyards Ltd t/a Artelia UK,CONSULTANCY FEES,"13,196.00",Consultancy.Business.NA
02/04/2015,CHILDREN'S SERVICES,Springfield Road Ltd,RESIDENTIAL PLACEMENTS - PRIVATE CONTRACTORS PAYMENT,"12,999.84",Social Community Care Supplies & Service.Adult.Residential Homes for Older People
02/04/2015,STRATEGY & COMMISSIONING - NEIGHBOURHOODS,West London Mission,PRIVATE CONTRACTORS PAYMENT - OTHER,"12,996.00",Social Community Care Supplies & Service.Adult.Residential Care
02/04/2015,CHILDREN'S SERVICES,Children of All Nations,FOSTERING AGENCY PLACEMENTS - PRIVATE CONTRACTORS PAYMENT,"4,519.67",Social Community Care Supplies & Service.Children.Fostering
02/04/2015,BUSINESS TRANSFORMATION,Specialist Computer Centers Plc,ICT HARDWARE,"4,030.00",Information Communication Technology.Hardware.NA
02/04/2015,CHILDREN'S SERVICES,National Fostering Agency,FOSTERING AGENCY PLACEMENTS - PRIVATE CONTRACTORS PAYMENT,"3,228.80",Social Community Care Supplies & Service.Children.Fostering
02/04/2015,CHILDREN'S SERVICES,Children of All Nations,FOSTERING AGENCY PLACEMENTS - PRIVATE CONTRACTORS PAYMENT,"2,989.28",Social Community Care Supplies & Service.Children.Fostering
02/04/2015,CHILDREN'S SERVICES,Children of All Nations,IN HOUSE FOSTER CARE PLACEMENTS - PRIVATE CONTRACTORS PAYMENT,"2,878.57",Social Community Care Supplies & Service.Children.Fostering
02/04/2015,CHILDREN'S SERVICES,Swanstaff Recruitment Ltd,STAFF RECRUITMENT COSTS,"2,038.29",Human Resources.Recruitment & Assessment.NA
02/04/2015,BUSINESS TRANSFORMATION,Specialist Computer Centers Plc,ICT HARDWARE,"1,612.00",Information Communication Technology.Hardware.NA
02/04/2015,POLICY & COMMUNICATIONS,The RTK Ltd,CONSULTANCY FEES,"1,592.00",Consultancy.Technical & Feasibility.NA
02/04/2015,"REGENERATION, PLANNING & NEIGHBOURHOODS",Hays Specialist Recruitment,AGENCY STAFF,"1,400.00",Human Resources.Temporary & Agency Staff.NA
02/04/2015,HOUSING NEEDS,Kindly Properties,BED & BREAKFAST - PRIVATE CONTRACTORS PAYMENT,"1,395.00",Housing Management.Letting Agents.NA
02/04/2015,FINANCE,Adair Auto Services Ltd,VEHICLE REPAIRS AND MAINTENANCE,"1,261.92",Vehicle Management.Maintenance.NA
02/04/2015,NO RECOURSE TO PUBLIC FUNDS,S Stavrou,BED & BREAKFAST - PRIVATE CONTRACTORS PAYMENT,"1,260.00","Social Community Care Supplies & Service.Adult.Temporary Accommodation, Short Stay"
02/04/2015,NO RECOURSE TO PUBLIC FUNDS,Indigo Property Management Ltd,SUPPORTED OTHER ACCOMMODATION - PRIVATE CONTRACTORS PAYMENT,"1,129.00",Social Community Care Supplies & Service.Adult.Homeless Support
02/04/2015,NO RECOURSE TO PUBLIC FUNDS,S Stavrou,BED & BREAKFAST - PRIVATE CONTRACTORS PAYMENT,"1,120.00","Social Community Care Supplies & Service.Adult.Temporary Accommodation, Short Stay"
02/04/2015,EDUCATION & LEARNING,Catsfield Services Ltd,CONSULTANCY FEES,"1,050.00",Human Resources.Temporary & Agency Staff.Social & Community Care
02/04/2015,NO RECOURSE TO PUBLIC FUNDS,S Stavrou,BED & BREAKFAST - PRIVATE CONTRACTORS PAYMENT,980.00,"Social Community Care Supplies & Service.Adult.Temporary Accommodation, Short Stay"
02/04/2015,NO RECOURSE TO PUBLIC FUNDS,S Stavrou,BED & BREAKFAST - PRIVATE CONTRACTORS PAYMENT,980.00,"Social Community Care Supplies & Service.Adult.Temporary Accommodation, Short Stay"
02/04/2015,NO RECOURSE TO PUBLIC FUNDS,S Stavrou,BED & BREAKFAST - PRIVATE CONTRACTORS PAYMENT,980.00,"Social Community Care Supplies & Service.Adult.Temporary Accommodation, Short Stay"
02/04/2015,NO RECOURSE TO PUBLIC FUNDS,S Stavrou,BED & BREAKFAST - PRIVATE CONTRACTORS PAYMENT,980.00,"Social Community Care Supplies & Service.Adult.Temporary Accommodation, Short Stay"
02/04/2015,NO RECOURSE TO PUBLIC FUNDS,Alpha UK Properties Ltd,BED & BREAKFAST - PRIVATE CONTRACTORS PAYMENT,840.00,"Social Community Care Supplies & Service.Adult.Temporary Accommodation, Long Stay"
02/04/2015,CHILDREN'S SERVICES,A A Guest Houses,RESIDENTIAL PLACEMENTS - PRIVATE CONTRACTORS PAYMENT,840.00,Social Community Care Supplies & Service.Adult.Residential Homes for Older People
02/04/2015,CHILDREN'S SERVICES,A A Guest Houses,RESIDENTIAL PLACEMENTS - PRIVATE CONTRACTORS PAYMENT,840.00,Social Community Care Supplies & Service.Adult.Residential Homes for Older People
02/04/2015,NO RECOURSE TO PUBLIC FUNDS,S Stavrou,BED & BREAKFAST - PRIVATE CONTRACTORS PAYMENT,840.00,"Social Community Care Supplies & Service.Adult.Temporary Accommodation, Short Stay"
02/04/2015,NO RECOURSE TO PUBLIC FUNDS,Alpha UK Properties Ltd,PAYMENT TO PRIVATE SECTOR LANDLORDS (PSL),785.00,Housing Management.Letting Agents.NA
02/04/2015,NO RECOURSE TO PUBLIC FUNDS,Alpha UK Properties Ltd,BED & BREAKFAST - PRIVATE CONTRACTORS PAYMENT,696.00,"Social Community Care Supplies & Service.Adult.Temporary Accommodation, Long Stay"
02/04/2015,EDUCATION & LEARNING,Catsfield Services Ltd,CONSULTANCY FEES,525.00,Human Resources.Temporary & Agency Staff.Social & Community Care
02/04/2015,EDUCATION & LEARNING,Catsfield Services Ltd,CONSULTANCY FEES,525.00,Human Resources.Temporary & Agency Staff.Social & Community Care
02/04/2015,EDUCATION & LEARNING,Catsfield Services Ltd,CONSULTANCY FEES,525.00,Human Resources.Temporary & Agency Staff.Social & Community Care
02/04/2015,EDUCATION & LEARNING,Catsfield Services Ltd,CONSULTANCY FEES,525.00,Human Resources.Temporary & Agency Staff.Social & Community Care
02/04/2015,EDUCATION & LEARNING,Catsfield Services Ltd,CONSULTANCY FEES,525.00,Human Resources.Temporary & Agency Staff.Social & Community Care
02/04/2015,EDUCATION & LEARNING,Catsfield Services Ltd,CONSULTANCY FEES,525.00,Human Resources.Temporary & Agency Staff.Social & Community Care
02/04/2015,CAPITAL CC,Appleyards Ltd t/a Artelia UK,PROFESSIONAL SERVICES - GENERAL,"(3,750.00)",Consultancy.Business.NA
07/04/2015,BUSINESS TRANSFORMATION,Capgemini UK Plc,ICT MAINTENANCE AND SUPPORT,"289,374.07",Information Communication Technology.Services.Maintenance & Support
07/04/2015,MAJOR CAPITAL PROGRAMMES,Focus Education (Lambeth) Ltd,PROFESSIONAL SERVICES - GENERAL,"209,560.61",Education.School Services.NA
07/04/2015,MAJOR CAPITAL PROGRAMMES,Focus Education (Lambeth) Ltd,PFI AND PPP SCHEMES,"209,346.10",Education.School Services.NA
07/04/2015,MAJOR CAPITAL PROGRAMMES,Focus Education (Lambeth) Ltd,PFI AND PPP SCHEMES,"209,346.10",Education.School Services.NA
07/04/2015,STRATEGY & COMMISSIONING - HOUSING & COMMUNITIES,Greenwich Leisure Ltd,ARTS AND LEISURE COSTS,"120,362.42",Social Community Care Supplies & Service.Disabled Children.Leisure Early Years
07/04/2015,"STRATEGY & COMMISSIONING - CHILDREN, DISABILITIES & PUBLIC HEALTH",Women In Prison,PAYMENT TO HEALTH AUTHORITIES,"86,878.00",Healthcare.Public Health.NA
07/04/2015,CAPITAL CC,F M Conway Ltd_d,"MAINTENANCE - EQUIPMENT, FURNITURE AND MATERIALS","86,121.67","Works - Construction, Repair & Maint.Roads.Repair & Maintenance"
07/04/2015,MAJOR CAPITAL PROGRAMMES,Focus Education (Lambeth) Ltd,PROFESSIONAL SERVICES - GENERAL,"68,463.69",Education.School Services.NA
07/04/2015,CHILDREN'S SERVICES,London Borough of Wandsworth_d,PRIVATE CONTRACTORS PAYMENT - OTHER,"47,925.80",Social Community Care Supplies & Service.Children.Residential Care
07/04/2015,ADULT SOCIAL CARE,Mosaic Clubhouse,PAYMENTS TO VOLUNTARY SECTOR,"39,291.67",Social Community Care Supplies & Service.Disabled Children.Volunteering Youth Support Services
07/04/2015,"STRATEGY & COMMISSIONING - CHILDREN, DISABILITIES & PUBLIC HEALTH",Terence Higgins Enterprises,PAYMENT TO HEALTH AUTHORITIES,"38,309.50",Healthcare.Public Health.NA
07/04/2015,BUSINESS & CUSTOMER SERVICES,Capita Business Services Ltd,ICT SOFTWARE,"26,483.10",Information Communication Technology.Software.NA
07/04/2015,"STRATEGY & COMMISSIONING - CHILDREN, DISABILITIES & PUBLIC HEALTH",Terence Higgins Enterprises,PAYMENT TO HEALTH AUTHORITIES,"26,343.50",Healthcare.Public Health.NA
07/04/2015,ADULT SOCIAL CARE,Allied Healthcare (UK) Ltd,DOMICILIARY CARE - THIRD PARTY,"25,026.32",Social Community Care Supplies & Service.Adult.Domiciliary Care
07/04/2015,STRATEGY & COMMISSIONING - HOUSING & COMMUNITIES,Streatham Common Community Operations Ltd_d,FACILITIES MANAGEMENT,"25,000.00",Facilities & Management Services.Property Management.NA
07/04/2015,CAPITAL CC,Pellings LLP,BUILDING ALTERATIONS AND MATERIALS,"24,953.32","Works - Construction, Repair & Maint.Consultancy.NA"
07/04/2015,CAPITAL CC,Pellings LLP,CONSULTANCY FEES,"24,953.32","Works - Construction, Repair & Maint.Consultancy.NA"
07/04/2015,HOUSING MANAGEMENT SERVICES,Frankham Consultancy Group Ltd,CONSULTANCY FEES,"20,474.32","Works - Construction, Repair & Maint.Consultancy.NA"
07/04/2015,CAPITAL CC,Morrison Facilities Services Ltd_d,FACILITIES MANAGEMENT,"20,179.70","Works - Construction, Repair & Maint.Buildings.Repair & Maintenance"
07/04/2015,MAJOR CAPITAL PROGRAMMES,Focus Education (Lambeth) Ltd,PROFESSIONAL SERVICES - GENERAL,"19,724.46",Education.School Services.NA
07/04/2015,CAPITAL CC,Mitie Property Services (UK) Ltd_d,BUILDING ALTERATIONS AND MATERIALS,"19,051.71","Works - Construction, Repair & Maint.Buildings.Construction"
07/04/2015,BUSINESS TRANSFORMATION,Virgin Media Business,LAND LINE TELEPHONE COSTS,"18,762.50",Information Communication Technology.Telecommunications.NA
07/04/2015,"STRATEGY & COMMISSIONING - CHILDREN, DISABILITIES & PUBLIC HEALTH",Terence Higgins Enterprises,PAYMENT TO HEALTH AUTHORITIES,"17,611.00",Healthcare.Public Health.NA
07/04/2015,STRATEGY & COMMISSIONING - HOUSING & COMMUNITIES,Bbh-lsl (Fundco 4) Ltd,"MAINTENANCE - EQUIPMENT, FURNITURE AND MATERIALS","16,311.35","Works - Construction, Repair & Maint.Buildings.Construction"
07/04/2015,HOUSING MANAGEMENT SERVICES,Clifford Devlin Ltd_d,FACILITIES MANAGEMENT,"14,988.00","Works - Construction, Repair & Maint.Buildings.Repair & Maintenance"
07/04/2015,CAPITAL CC,Project Centre Ltd,"MAINTENANCE - EQUIPMENT, FURNITURE AND MATERIALS","12,850.00","Works - Construction, Repair & Maint.Roads.NA"
07/04/2015,CORPORATE AFFAIRS,P E Wilson & Co,LEGAL FEES,"12,000.00",Legal Services.Advocacy.NA
07/04/2015,BUSINESS TRANSFORMATION,Virgin Media Business,ICT MAINTENANCE AND SUPPORT,"11,328.00",Information Communication Technology.Services.NA
07/04/2015,BUSINESS & CUSTOMER SERVICES,Bbh-lsl (Fundco 4) Ltd,PAYMENT TO PRIVATE SECTOR LANDLORDS (PSL),"10,133.00",Housing Management.Letting Agents.NA
07/04/2015,CORPORATE AFFAIRS,Bishop Lloyd & Jackson,LEGAL FEES,"10,000.00",Legal Services.Advocacy.NA
07/04/2015,EDUCATION & LEARNING,Healthcare & Transport Services,CLIENT TRANSPORT,"8,709.15",Public Transport.Taxi Services.NA
07/04/2015,CORPORATE AFFAIRS,Brixton Advice Centre,LEGAL FEES,"8,500.00",Social Community Care Supplies & Service.Adult.Advice & Counselling Services
07/04/2015,CHILDREN'S SERVICES,Future Fostering Ltd,IN HOUSE FOSTER CARE PLACEMENTS - PRIVATE CONTRACTORS PAYMENT,"7,971.43",Social Community Care Supplies & Service.Children.Fostering
07/04/2015,HOUSING MANAGEMENT SERVICES,KNK Building Services Ltd_d,RESPONSIVE REPAIRS - MECHANICAL AND ELECTRICAL,"7,762.50",Building Construction Materials.Paint & Finishing.NA
07/04/2015,CORPORATE AFFAIRS,Anthony Gold Solicitors,LEGAL FEES,"7,000.00",Legal Services.Advocacy.NA
07/04/2015,CORPORATE AFFAIRS,Belshaw & Curtin Solicitors,LEGAL FEES,"6,000.00",Legal Services.Advocacy.NA
07/04/2015,CHILDREN'S SERVICES,Ewings & Co Solicitors,LEGAL FEES,"5,401.40",Legal Services.Advocacy.NA
07/04/2015,CORPORATE AFFAIRS,Fisher Meredith Solicitors,LEGAL FEES,"5,000.00",Social Community Care Supplies & Service.Adult.Advice & Counselling Services
07/04/2015,CHILDREN'S SERVICES,National Fostering Agency,FOSTERING AGENCY PLACEMENTS - PRIVATE CONTRACTORS PAYMENT,"4,999.99",Social Community Care Supplies & Service.Children.Fostering
07/04/2015,ADULT SOCIAL CARE,Spring Lake Care Home Ltd,RESPITE CARE - PRIVATE CONTRACTORS PAYMENT,"4,908.60",Social Community Care Supplies & Service.Adult.Residential Care
07/04/2015,ADULT SOCIAL CARE,Mosaic Clubhouse,PAYMENTS TO VOLUNTARY SECTOR,"4,625.00",Social Community Care Supplies & Service.Disabled Children.Volunteering Youth Support Services
07/04/2015,"REGENERATION, PLANNING & NEIGHBOURHOODS",Southwark Newspaper Ltd,"ADVERTISING, PUBLICITY AND MARKETING","4,600.00",Facilities & Management Services.Advertising.Statutory
07/04/2015,"STRATEGY & COMMISSIONING - CHILDREN, DISABILITIES & PUBLIC HEALTH",The Appropriate Adult Service Ltd,PRIVATE CONTRACTORS PAYMENT - OTHER,"4,547.50",Social Community Care Supplies & Service.Adult.Advice & Counselling Services
07/04/2015,CAPITAL CC,Faithful & Gould,CONSULTANCY FEES,"4,500.00",Consultancy.Procurement.NA
07/04/2015,ADULT SOCIAL CARE,Tunstall Group Ltd,ICT MAINTENANCE AND SUPPORT,"4,166.25",Information Communication Technology.Call Systems.NA
07/04/2015,CHILDREN'S SERVICES,Wainwright and Cummins Solicitors,LEGAL FEES,"4,005.60",Social Community Care Supplies & Service.Adult.Advice & Counselling Services
07/04/2015,CORPORATE AFFAIRS,Lyons Davidson Solicitors,LEGAL FEES,"4,000.00",Legal Services.Advocacy.NA
07/04/2015,HUMAN RESOURCES AND ORGANISATIONAL DEVELOPMENT,Bournemouth University,STAFF DEVELOPMENT AND TRAINING,"3,800.00",Human Resources.Training & Conferences.Training
07/04/2015,CHILDREN'S SERVICES,National Fostering Agency,FOSTERING AGENCY PLACEMENTS - PRIVATE CONTRACTORS PAYMENT,"3,454.33",Social Community Care Supplies & Service.Children.Fostering
07/04/2015,CHILDREN'S SERVICES,National Fostering Agency,FOSTERING AGENCY PLACEMENTS - PRIVATE CONTRACTORS PAYMENT,"3,454.33",Social Community Care Supplies & Service.Children.Fostering
07/04/2015,CHILDREN'S SERVICES,National Fostering Agency,FOSTERING AGENCY PLACEMENTS - PRIVATE CONTRACTORS PAYMENT,"3,454.33",Social Community Care Supplies & Service.Children.Fostering
07/04/2015,CHILDREN'S SERVICES,National Fostering Agency,FOSTERING AGENCY PLACEMENTS - PRIVATE CONTRACTORS PAYMENT,"3,449.99",Social Community Care Supplies & Service.Children.Fostering
07/04/2015,CHILDREN'S SERVICES,National Fostering Agency,FOSTERING AGENCY PLACEMENTS - PRIVATE CONTRACTORS PAYMENT,"3,387.99",Social Community Care Supplies & Service.Children.Fostering
07/04/2015,CHILDREN'S SERVICES,National Fostering Agency,FOSTERING AGENCY PLACEMENTS - PRIVATE CONTRACTORS PAYMENT,"3,255.00",Social Community Care Supplies & Service.Children.Fostering
07/04/2015,CHILDREN'S SERVICES,National Fostering Agency,FOSTERING AGENCY PLACEMENTS - PRIVATE CONTRACTORS PAYMENT,"3,255.00",Social Community Care Supplies & Service.Children.Fostering
07/04/2015,CHILDREN'S SERVICES,National Fostering Agency,FOSTERING AGENCY PLACEMENTS - PRIVATE CONTRACTORS PAYMENT,"3,255.00",Social Community Care Supplies & Service.Children.Fostering
07/04/2015,CHILDREN'S SERVICES,Coral Community Assessments Ltd,LEGAL FEES,"3,250.10",Social Community Care Supplies & Service.Adult.NA
07/04/2015,CAPITAL CC,Pace Jefford Moore Architects,CONSULTANCY FEES,"3,250.00","Works - Construction, Repair & Maint.Consultancy.NA"
07/04/2015,ADULT SOCIAL CARE,Oasis Care & Training Agency,DOMICILIARY CARE - THIRD PARTY,"3,220.00",Social Community Care Supplies & Service.Adult.Domiciliary Care
07/04/2015,ADULT SOCIAL CARE,Amicus Horizon Ltd,SUPPORTED OTHER ACCOMMODATION - PRIVATE CONTRACTORS PAYMENT,"3,216.42",Social Community Care Supplies & Service.Adult.Homeless Support
07/04/2015,POLICY & COMMUNICATIONS,Peter John,PAYMENTS TO VOLUNTARY SECTOR,"3,200.00",Human Resources.Training & Conferences.Training
07/04/2015,CHILDREN'S SERVICES,National Fostering Agency,FOSTERING AGENCY PLACEMENTS - PRIVATE CONTRACTORS PAYMENT,"3,189.90",Social Community Care Supplies & Service.Children.Fostering
07/04/2015,CHILDREN'S SERVICES,National Fostering Agency,FOSTERING AGENCY PLACEMENTS - PRIVATE CONTRACTORS PAYMENT,"3,189.90",Social Community Care Supplies & Service.Children.Fostering
07/04/2015,STRATEGY & COMMISSIONING - HOUSING & COMMUNITIES,Max Associates Holdings Ltd,ARTS AND LEISURE COSTS,"3,180.00",Arts & Leisure Services.Sport & Fitness.NA
07/04/2015,CHILDREN'S SERVICES,National Fostering Agency,FOSTERING AGENCY PLACEMENTS - PRIVATE CONTRACTORS PAYMENT,"3,168.20",Social Community Care Supplies & Service.Children.Fostering
07/04/2015,CHILDREN'S SERVICES,National Fostering Agency,FOSTERING AGENCY PLACEMENTS - PRIVATE CONTRACTORS PAYMENT,"3,157.35",Social Community Care Supplies & Service.Children.Fostering
07/04/2015,CHILDREN'S SERVICES,National Fostering Agency,FOSTERING AGENCY PLACEMENTS - PRIVATE CONTRACTORS PAYMENT,"3,157.35",Social Community Care Supplies & Service.Children.Fostering
07/04/2015,CHILDREN'S SERVICES,National Fostering Agency,FOSTERING AGENCY PLACEMENTS - PRIVATE CONTRACTORS PAYMENT,"3,105.27",Social Community Care Supplies & Service.Children.Fostering
07/04/2015,CHILDREN'S SERVICES,National Fostering Agency,FOSTERING AGENCY PLACEMENTS - PRIVATE CONTRACTORS PAYMENT,"3,036.76",Social Community Care Supplies & Service.Children.Fostering
07/04/2015,ADULT SOCIAL CARE,Mosaic Clubhouse,PAYMENTS TO VOLUNTARY SECTOR,"3,000.00",Social Community Care Supplies & Service.Disabled Children.Volunteering Youth Support Services
07/04/2015,CAPITAL CC,Gardiner & Theobald LLP,PROFESSIONAL SERVICES - GENERAL,"3,000.00",Consultancy.Property.NA
07/04/2015,CHILDREN'S SERVICES,National Fostering Agency,FOSTERING AGENCY PLACEMENTS - PRIVATE CONTRACTORS PAYMENT,"2,969.56",Social Community Care Supplies & Service.Children.Fostering
07/04/2015,MAJOR CAPITAL PROGRAMMES,Eversheds LLP,LEGAL FEES,"2,965.50",Legal Services.Advocacy.NA
07/04/2015,CHILDREN'S SERVICES,Ewings & Co Solicitors,LEGAL FEES,"2,822.52",Legal Services.Advocacy.NA
07/04/2015,CORPORATE AFFAIRS,Brixton Advice Centre,LEGAL FEES,"2,786.29",Social Community Care Supplies & Service.Adult.Advice & Counselling Services
07/04/2015,ADULT SOCIAL CARE,Druglink,RESIDENTIAL PLACEMENTS - PRIVATE CONTRACTORS PAYMENT,"2,700.00",Social Community Care Supplies & Service.Adult.Residential Care
07/04/2015,ADULT SOCIAL CARE,Druglink,RESIDENTIAL PLACEMENTS - PRIVATE CONTRACTORS PAYMENT,"2,700.00",Social Community Care Supplies & Service.Adult.Residential Care
07/04/2015,CHILDREN'S SERVICES,National Fostering Agency,FOSTERING AGENCY PLACEMENTS - PRIVATE CONTRACTORS PAYMENT,"2,675.85",Social Community Care Supplies & Service.Children.Fostering
07/04/2015,CAPITAL CC,Pace Jefford Moore Architects,CONSULTANCY FEES,"2,650.00","Works - Construction, Repair & Maint.Consultancy.NA"
07/04/2015,ADULT SOCIAL CARE,Oasis Care & Training Agency,DOMICILIARY CARE - THIRD PARTY,"2,595.04",Social Community Care Supplies & Service.Adult.Domiciliary Care
07/04/2015,CORPORATE AFFAIRS,Anthony Gold Solicitors,LEGAL FEES,"2,581.31",Legal Services.Advocacy.NA
07/04/2015,FINANCE,Allstar Business Solutions Ltd,TRANSPORT FUEL,"2,566.90",Vehicle Management.Fuel.NA
07/04/2015,CHILDREN'S SERVICES,JW Solutions,PROFESSIONAL SERVICES - GENERAL,"2,490.59","Works - Construction, Repair & Maint.Engineering.NA"
07/04/2015,FINANCE,Allstar Business Solutions Ltd,TRANSPORT FUEL,"2,455.66",Vehicle Management.Fuel.NA
07/04/2015,HUMAN RESOURCES AND ORGANISATIONAL DEVELOPMENT,Georgina Woudstra Ltd,STAFF DEVELOPMENT AND TRAINING,"2,455.00",Human Resources.Training & Conferences.Training
07/04/2015,HOUSING MANAGEMENT SERVICES,KNK Building Services Ltd_d,RESPONSIVE REPAIRS - BUILDING,"2,444.83",Building Construction Materials.Paint & Finishing.NA
07/04/2015,FINANCE,Allstar Business Solutions Ltd,TRANSPORT FUEL,"2,441.99",Vehicle Management.Fuel.NA
07/04/2015,ADULT SOCIAL CARE,Mount Carmel,RESIDENTIAL PLACEMENTS - PRIVATE CONTRACTORS PAYMENT,"2,400.00",Social Community Care Supplies & Service.Adult.Alcohol & Drug Rehabilitation
07/04/2015,FINANCE,Allstar Business Solutions Ltd,TRANSPORT FUEL,"2,330.30",Vehicle Management.Fuel.NA
07/04/2015,FINANCE,Allstar Business Solutions Ltd,TRANSPORT FUEL,"2,307.15",Vehicle Management.Fuel.NA
07/04/2015,FINANCE,Allstar Business Solutions Ltd,TRANSPORT FUEL,"2,185.41",Vehicle Management.Fuel.NA
07/04/2015,HOUSING MANAGEMENT SERVICES,KNK Building Services Ltd_d,RESPONSIVE REPAIRS - BUILDING,"2,180.83",Building Construction Materials.Paint & Finishing.NA
07/04/2015,FINANCE,Allstar Business Solutions Ltd,TRANSPORT FUEL,"2,175.21",Vehicle Management.Fuel.NA
07/04/2015,ADULT SOCIAL CARE,L K Recruitment Ltd,DOMICILIARY CARE - THIRD PARTY,"2,119.60",Social Community Care Supplies & Service.Adult.Domiciliary Care
07/04/2015,ADULT SOCIAL CARE,Oasis Care & Training Agency,DOMICILIARY CARE - THIRD PARTY,"2,119.52",Social Community Care Supplies & Service.Adult.Domiciliary Care
07/04/2015,ADULT SOCIAL CARE,Oasis Care & Training Agency,DOMICILIARY CARE - THIRD PARTY,"2,084.84",Social Community Care Supplies & Service.Adult.Domiciliary Care
07/04/2015,CHILDREN'S SERVICES,National Fostering Agency,FOSTERING AGENCY PLACEMENTS - PRIVATE CONTRACTORS PAYMENT,"2,059.48",Social Community Care Supplies & Service.Children.Fostering
07/04/2015,CHILDREN'S SERVICES,HMCTS,LEGAL FEES,"2,055.00",Legal Services.General Support.NA
07/04/2015,ADULT SOCIAL CARE,Bluebird Care Lambeth,DOMICILIARY CARE - THIRD PARTY,"2,050.00",Social Community Care Supplies & Service.Adult.Domiciliary Care
07/04/2015,CORPORATE AFFAIRS,Lyons Davidson Solicitors,LEGAL FEES,"2,000.00",Legal Services.Advocacy.NA
07/04/2015,ADULT SOCIAL CARE,Oasis Care & Training Agency,DOMICILIARY CARE - THIRD PARTY,"1,961.12",Social Community Care Supplies & Service.Adult.Domiciliary Care
07/04/2015,FINANCE,Allstar Business Solutions Ltd,TRANSPORT FUEL,"1,939.18",Vehicle Management.Fuel.NA
07/04/2015,CORPORATE AFFAIRS,CIPFA Business Ltd,MEMBERSHIP AND SUBSCRIPTIONS,"1,915.00",Financial Services.Subscriptions.NA
07/04/2015,FINANCE,Allstar Business Solutions Ltd,TRANSPORT FUEL,"1,897.04",Vehicle Management.Fuel.NA
07/04/2015,FINANCE,Allstar Business Solutions Ltd,TRANSPORT FUEL,"1,883.10",Vehicle Management.Fuel.NA
07/04/2015,ADULT SOCIAL CARE,Oasis Care & Training Agency,DOMICILIARY CARE - THIRD PARTY,"1,877.84",Social Community Care Supplies & Service.Adult.Domiciliary Care
07/04/2015,BUSINESS & CUSTOMER SERVICES,Bbh-lsl (Fundco 4) Ltd,PAYMENT TO PRIVATE SECTOR LANDLORDS (PSL),"1,862.00",Housing Management.Letting Agents.NA
07/04/2015,CHILDREN'S SERVICES,National Fostering Agency,RESIDENTIAL PLACEMENTS - PRIVATE CONTRACTORS PAYMENT,"1,860.00",Social Community Care Supplies & Service.Children.Fostering
07/04/2015,CHILDREN'S SERVICES,Whatever Design Ltd,DESIGN AND PHOTOGRAPHIC COSTS,"1,851.00",Facilities & Management Services.Design & Photography.NA
07/04/2015,CHILDREN'S SERVICES,Karibu Education Centre,CATERING AND VENDING SUPPLIES,"1,851.00",Catering.Food & Beverages.NA
07/04/2015,CHILDREN'S SERVICES,Tahmina Rahman,LEGAL FEES,"1,850.00",Legal Services.Legal Opinion.NA
07/04/2015,FINANCE,Allstar Business Solutions Ltd,TRANSPORT FUEL,"1,847.76",Vehicle Management.Fuel.NA
07/04/2015,ADULT SOCIAL CARE,Oasis Care & Training Agency,DOMICILIARY CARE - THIRD PARTY,"1,825.12",Social Community Care Supplies & Service.Adult.Domiciliary Care
07/04/2015,ADULT SOCIAL CARE,Oasis Care & Training Agency,DOMICILIARY CARE - THIRD PARTY,"1,825.04",Social Community Care Supplies & Service.Adult.Domiciliary Care
07/04/2015,ADULT SOCIAL CARE,Oasis Care & Training Agency,DOMICILIARY CARE - THIRD PARTY,"1,825.04",Social Community Care Supplies & Service.Adult.Domiciliary Care
07/04/2015,ADULT SOCIAL CARE,Oasis Care & Training Agency,DOMICILIARY CARE - THIRD PARTY,"1,825.04",Social Community Care Supplies & Service.Adult.Domiciliary Care
07/04/2015,FINANCE,Allstar Business Solutions Ltd,TRANSPORT FUEL,"1,817.10",Vehicle Management.Fuel.NA
07/04/2015,BUSINESS & CUSTOMER SERVICES,Capita Business Services Ltd,ICT SOFTWARE,"1,800.00",Information Communication Technology.Software.NA
07/04/2015,ADULT SOCIAL CARE,Kenward Trust,RESIDENTIAL PLACEMENTS - PRIVATE CONTRACTORS PAYMENT,"1,776.86",Social Community Care Supplies & Service.Adult.Alcohol & Drug Rehabilitation
07/04/2015,"REGENERATION, PLANNING & NEIGHBOURHOODS",Southwark Newspaper Ltd,"ADVERTISING, PUBLICITY AND MARKETING","1,770.00",Facilities & Management Services.Advertising.Statutory
07/04/2015,FINANCE,Allstar Business Solutions Ltd,TRANSPORT FUEL,"1,762.74",Vehicle Management.Fuel.NA
07/04/2015,FINANCE,Allstar Business Solutions Ltd,TRANSPORT FUEL,"1,749.67",Vehicle Management.Fuel.NA
07/04/2015,FINANCE,Allstar Business Solutions Ltd,TRANSPORT FUEL,"1,747.56",Vehicle Management.Fuel.NA
07/04/2015,FINANCE,Allstar Business Solutions Ltd,TRANSPORT FUEL,"1,731.65",Vehicle Management.Fuel.NA
07/04/2015,FINANCE,Allstar Business Solutions Ltd,TRANSPORT FUEL,"1,721.26",Vehicle Management.Fuel.NA
07/04/2015,FINANCE,Allstar Business Solutions Ltd,TRANSPORT FUEL,"1,691.62",Vehicle Management.Fuel.NA
07/04/2015,ADULT SOCIAL CARE,Oasis Care & Training Agency,DOMICILIARY CARE - THIRD PARTY,"1,674.74",Social Community Care Supplies & Service.Adult.Domiciliary Care
07/04/2015,ADULT SOCIAL CARE,Druglink,RESIDENTIAL PLACEMENTS - PRIVATE CONTRACTORS PAYMENT,"1,653.48",Social Community Care Supplies & Service.Adult.Residential Care
07/04/2015,ADULT SOCIAL CARE,Spring Lake Care Home Ltd,CLIENT TRANSPORT,"1,636.20",Social Community Care Supplies & Service.Adult.Residential Care
07/04/2015,FINANCE,Allstar Business Solutions Ltd,TRANSPORT FUEL,"1,605.66",Vehicle Management.Fuel.NA
07/04/2015,ADULT SOCIAL CARE,Thames Homecare Ltd,DOMICILIARY CARE - THIRD PARTY,"1,586.36",Social Community Care Supplies & Service.Adult.Domiciliary Care
07/04/2015,ADULT SOCIAL CARE,Thames Homecare Ltd,DOMICILIARY CARE - THIRD PARTY,"1,547.53",Social Community Care Supplies & Service.Adult.Domiciliary Care
07/04/2015,ADULT SOCIAL CARE,Stockwellcare Support Services Ltd,DOMICILIARY CARE - THIRD PARTY,"1,527.06",Healthcare.Public Health.NA
07/04/2015,"REGENERATION, PLANNING & NEIGHBOURHOODS",Specialist Computer Centers Plc,ICT HARDWARE,"1,513.00",Information Communication Technology.Hardware.NA
07/04/2015,ADULT SOCIAL CARE,Unique Personnel (Uk) Ltd,DOMICILIARY CARE - THIRD PARTY,"1,512.00",Social Community Care Supplies & Service.Disabled Children.NA
07/04/2015,ADULT SOCIAL CARE,Thames Homecare Ltd,DOMICILIARY CARE - THIRD PARTY,"1,505.70",Social Community Care Supplies & Service.Adult.Domiciliary Care
07/04/2015,EDUCATION & LEARNING,Katherine Eddy,LEGAL FEES,"1,500.00",Legal Services.Advocacy.NA
07/04/2015,FINANCE,Allstar Business Solutions Ltd,TRANSPORT FUEL,"1,483.55",Vehicle Management.Fuel.NA
07/04/2015,ADULT SOCIAL CARE,Oasis Care & Training Agency,DOMICILIARY CARE - THIRD PARTY,"1,402.80",Social Community Care Supplies & Service.Adult.Domiciliary Care
07/04/2015,ADULT SOCIAL CARE,Oasis Care & Training Agency,DOMICILIARY CARE - THIRD PARTY,"1,402.80",Social Community Care Supplies & Service.Adult.Domiciliary Care
07/04/2015,CHILDREN'S SERVICES,National Fostering Agency,FOSTERING AGENCY PLACEMENTS - PRIVATE CONTRACTORS PAYMENT,"1,390.51",Social Community Care Supplies & Service.Children.Fostering
07/04/2015,ADULT SOCIAL CARE,Stockwellcare Support Services Ltd,DOMICILIARY CARE - THIRD PARTY,"1,379.28",Healthcare.Public Health.NA
07/04/2015,ADULT SOCIAL CARE,Stockwellcare Support Services Ltd,DOMICILIARY CARE - THIRD PARTY,"1,379.28",Healthcare.Public Health.NA
07/04/2015,ADULT SOCIAL CARE,Thames Homecare Ltd,DOMICILIARY CARE - THIRD PARTY,"1,368.28",Social Community Care Supplies & Service.Adult.Domiciliary Care
07/04/2015,ADULT SOCIAL CARE,Holistic Community Care Ltd,DOMICILIARY CARE - THIRD PARTY,"1,346.08",Social Community Care Supplies & Service.Adult.Domiciliary Care
07/04/2015,ADULT SOCIAL CARE,Holistic Community Care Ltd,DOMICILIARY CARE - THIRD PARTY,"1,346.08",Social Community Care Supplies & Service.Adult.Domiciliary Care
07/04/2015,ADULT SOCIAL CARE,Holistic Community Care Ltd,DOMICILIARY CARE - THIRD PARTY,"1,346.08",Social Community Care Supplies & Service.Adult.Domiciliary Care
07/04/2015,ADULT SOCIAL CARE,Holistic Community Care Ltd,DOMICILIARY CARE - THIRD PARTY,"1,336.32",Social Community Care Supplies & Service.Adult.Domiciliary Care
07/04/2015,ADULT SOCIAL CARE,Holistic Community Care Ltd,DOMICILIARY CARE - THIRD PARTY,"1,333.72",Social Community Care Supplies & Service.Adult.Domiciliary Care
07/04/2015,FINANCE,Allstar Business Solutions Ltd,TRANSPORT FUEL,"1,322.83",Vehicle Management.Fuel.NA
07/04/2015,FINANCE,Allstar Business Solutions Ltd,TRANSPORT FUEL,"1,322.63",Vehicle Management.Fuel.NA
07/04/2015,ADULT SOCIAL CARE,Holistic Community Care Ltd,DOMICILIARY CARE - THIRD PARTY,"1,303.11",Social Community Care Supplies & Service.Adult.Domiciliary Care
07/04/2015,FINANCE,Allstar Business Solutions Ltd,TRANSPORT FUEL,"1,302.34",Vehicle Management.Fuel.NA
07/04/2015,ADULT SOCIAL CARE,Holistic Community Care Ltd,DOMICILIARY CARE - THIRD PARTY,"1,289.64",Social Community Care Supplies & Service.Adult.Domiciliary Care
07/04/2015,FINANCE,Allstar Business Solutions Ltd,TRANSPORT FUEL,"1,285.28",Vehicle Management.Fuel.NA
07/04/2015,ADULT SOCIAL CARE,Oasis Care & Training Agency,DOMICILIARY CARE - THIRD PARTY,"1,269.36",Social Community Care Supplies & Service.Adult.Domiciliary Care
07/04/2015,ADULT SOCIAL CARE,Oasis Care & Training Agency,DOMICILIARY CARE - THIRD PARTY,"1,266.72",Social Community Care Supplies & Service.Adult.Domiciliary Care
07/04/2015,"STRATEGY & COMMISSIONING - CHILDREN, DISABILITIES & PUBLIC HEALTH",Ebony Horse Club_d,OPEN SPACES WORKS,"1,264.46","Works - Construction, Repair & Maint.Open Spaces.NA"
07/04/2015,ADULT SOCIAL CARE,Thames Homecare Ltd,DOMICILIARY CARE - THIRD PARTY,"1,260.73",Social Community Care Supplies & Service.Adult.Domiciliary Care
07/04/2015,NO RECOURSE TO PUBLIC FUNDS,Galaxy Lettings Ltd,BED & BREAKFAST - PRIVATE CONTRACTORS PAYMENT,"1,204.00","Social Community Care Supplies & Service.Adult.Temporary Accommodation, Short Stay"
07/04/2015,NO RECOURSE TO PUBLIC FUNDS,Galaxy Lettings Ltd,BED & BREAKFAST - PRIVATE CONTRACTORS PAYMENT,"1,204.00","Social Community Care Supplies & Service.Adult.Temporary Accommodation, Short Stay"
07/04/2015,"REGENERATION, PLANNING & NEIGHBOURHOODS",Guys & St Thomas NHS Foundation Trust,PROFESSIONAL SERVICES - GENERAL,"1,200.00",Social Community Care Supplies & Service.Adult.NA
07/04/2015,ADULT SOCIAL CARE,Newham House Supporting People Ltd,DAYCARE - PRIVATE CONTRACTORS PAYMENT,"1,191.73",Social Community Care Supplies & Service.Adult.Residential Care
07/04/2015,HUMAN RESOURCES AND ORGANISATIONAL DEVELOPMENT,Adult Matters Ltd,STAFF DEVELOPMENT AND TRAINING,"1,190.00",Human Resources.Training & Conferences.Training
07/04/2015,ADULT SOCIAL CARE,L K Recruitment Ltd,DOMICILIARY CARE - THIRD PARTY,"1,160.08",Social Community Care Supplies & Service.Adult.Domiciliary Care
07/04/2015,CHILDREN'S SERVICES,Catch22,RESIDENTIAL PLACEMENTS - PRIVATE CONTRACTORS PAYMENT,"1,160.00",Social Community Care Supplies & Service.Adult.Residential Care
07/04/2015,ADULT SOCIAL CARE,Bluebird Care Lambeth,DOMICILIARY CARE - THIRD PARTY,"1,130.00",Social Community Care Supplies & Service.Adult.Domiciliary Care
07/04/2015,ADULT SOCIAL CARE,Unique Personnel (Uk) Ltd,DOMICILIARY CARE - THIRD PARTY,"1,107.00",Social Community Care Supplies & Service.Disabled Children.NA
07/04/2015,FINANCE,Allstar Business Solutions Ltd,TRANSPORT FUEL,"1,094.37",Vehicle Management.Fuel.NA
07/04/2015,FINANCE,Allstar Business Solutions Ltd,TRANSPORT FUEL,"1,079.13",Vehicle Management.Fuel.NA
07/04/2015,ADULT SOCIAL CARE,Thames Homecare Ltd,DOMICILIARY CARE - THIRD PARTY,"1,039.65",Social Community Care Supplies & Service.Adult.Domiciliary Care
07/04/2015,NO RECOURSE TO PUBLIC FUNDS,Galaxy Lettings Ltd,BED & BREAKFAST - PRIVATE CONTRACTORS PAYMENT,"1,036.00","Social Community Care Supplies & Service.Adult.Temporary Accommodation, Short Stay"
07/04/2015,HOUSING MANAGEMENT SERVICES,KNK Building Services Ltd_d,RESPONSIVE REPAIRS - BUILDING,"1,030.40",Building Construction Materials.Paint & Finishing.NA
07/04/2015,ADULT SOCIAL CARE,Unique Personnel (Uk) Ltd,DOMICILIARY CARE - THIRD PARTY,"1,019.00",Social Community Care Supplies & Service.Disabled Children.NA
07/04/2015,ADULT SOCIAL CARE,Janus Solutions,DAYCARE - PRIVATE CONTRACTORS PAYMENT,"1,008.00",Healthcare.Drugs.NA
07/04/2015,ADULT SOCIAL CARE,Oasis Care & Training Agency,DOMICILIARY CARE - THIRD PARTY,"1,002.96",Social Community Care Supplies & Service.Adult.Domiciliary Care
07/04/2015,CAPITAL CC,London Letterbox Marketing,POSTAGE AND COURIER SERVICES,990.00,Mail Services.Postage.NA
07/04/2015,ADULT SOCIAL CARE,Xtracare Agency Ltd,DOMICILIARY CARE - THIRD PARTY,984.00,Social Community Care Supplies & Service.Adult.Domiciliary Care
07/04/2015,HOUSING MANAGEMENT SERVICES,KNK Building Services Ltd_d,RESPONSIVE REPAIRS - BUILDING,980.72,Building Construction Materials.Paint & Finishing.NA
07/04/2015,ADULT SOCIAL CARE,Unique Personnel (Uk) Ltd,DOMICILIARY CARE - THIRD PARTY,977.00,Social Community Care Supplies & Service.Disabled Children.NA
07/04/2015,ADULT SOCIAL CARE,Oasis Care & Training Agency,DOMICILIARY CARE - THIRD PARTY,965.32,Social Community Care Supplies & Service.Adult.Domiciliary Care
07/04/2015,ADULT SOCIAL CARE,Dunheved Lodge,RESPITE CARE - PRIVATE CONTRACTORS PAYMENT,965.00,Social Community Care Supplies & Service.Adult.Residential Care
07/04/2015,ADULT SOCIAL CARE,Dunheved Lodge,RESPITE CARE - PRIVATE CONTRACTORS PAYMENT,965.00,Social Community Care Supplies & Service.Adult.Residential Care
07/04/2015,ADULT SOCIAL CARE,Oasis Care & Training Agency,DOMICILIARY CARE - THIRD PARTY,961.60,Social Community Care Supplies & Service.Adult.Domiciliary Care
07/04/2015,ADULT SOCIAL CARE,Oasis Care & Training Agency,DOMICILIARY CARE - THIRD PARTY,952.12,Social Community Care Supplies & Service.Adult.Domiciliary Care
07/04/2015,FINANCE,Allstar Business Solutions Ltd,TRANSPORT FUEL,914.04,Vehicle Management.Fuel.NA
07/04/2015,ADULT SOCIAL CARE,D Sully & Son Ltd,PRIVATE CONTRACTORS PAYMENT - OTHER,910.71,Social Community Care Supplies & Service.Adult.Mental Health Services
07/04/2015,NO RECOURSE TO PUBLIC FUNDS,Galaxy Lettings Ltd,BED & BREAKFAST - PRIVATE CONTRACTORS PAYMENT,896.00,"Social Community Care Supplies & Service.Adult.Temporary Accommodation, Short Stay"
07/04/2015,NO RECOURSE TO PUBLIC FUNDS,Galaxy Lettings Ltd,BED & BREAKFAST - PRIVATE CONTRACTORS PAYMENT,896.00,"Social Community Care Supplies & Service.Adult.Temporary Accommodation, Short Stay"
07/04/2015,ADULT SOCIAL CARE,Unique Personnel (Uk) Ltd,DOMICILIARY CARE - THIRD PARTY,893.00,Social Community Care Supplies & Service.Disabled Children.NA
07/04/2015,CHILDREN'S SERVICES,Jon Holbrook,LEGAL FEES,878.75,Social Community Care Supplies & Service.Adult.Advice & Counselling Services
07/04/2015,ADULT SOCIAL CARE,Unique Personnel (Uk) Ltd,DOMICILIARY CARE - THIRD PARTY,868.00,Social Community Care Supplies & Service.Disabled Children.NA
07/04/2015,ADULT SOCIAL CARE,Unique Personnel (Uk) Ltd,DOMICILIARY CARE - THIRD PARTY,866.00,Social Community Care Supplies & Service.Disabled Children.NA
07/04/2015,CHILDREN'S SERVICES,Bindmans LLP,LEGAL FEES,857.40,Legal Services.Advocacy.NA
07/04/2015,CHILDREN'S SERVICES,Allied Healthcare (UK) Ltd,DAYCARE - PRIVATE CONTRACTORS PAYMENT,856.24,Social Community Care Supplies & Service.Disabled Children.Care Services
07/04/2015,CHILDREN'S SERVICES,John Dowsett Psychology Ltd,LEGAL FEES,852.33,Legal Services.Specialist Support.NA
07/04/2015,HOUSING MANAGEMENT SERVICES,KNK Building Services Ltd_d,RESPONSIVE REPAIRS - BUILDING,847.60,Building Construction Materials.Paint & Finishing.NA
07/04/2015,HOUSING MANAGEMENT SERVICES,Cory Environmental Ltd,RESPONSIVE REPAIRS - BUILDING,828.77,Environmental Services.Waste Management.Waste Disposal
07/04/2015,ADULT SOCIAL CARE,Harmony Home Aid Services Ltd,DOMICILIARY CARE - THIRD PARTY,826.00,Social Community Care Supplies & Service.Adult.Residential Care
07/04/2015,ADULT SOCIAL CARE,Oasis Care & Training Agency,DOMICILIARY CARE - THIRD PARTY,822.24,Social Community Care Supplies & Service.Adult.Domiciliary Care
07/04/2015,ADULT SOCIAL CARE,Unique Personnel (Uk) Ltd,DOMICILIARY CARE - THIRD PARTY,812.00,Social Community Care Supplies & Service.Disabled Children.NA
07/04/2015,ADULT SOCIAL CARE,L K Recruitment Ltd,DOMICILIARY CARE - THIRD PARTY,794.82,Social Community Care Supplies & Service.Adult.Domiciliary Care
07/04/2015,ADULT SOCIAL CARE,Newham House Supporting People Ltd,DAYCARE - PRIVATE CONTRACTORS PAYMENT,794.49,Social Community Care Supplies & Service.Adult.Residential Care
07/04/2015,ADULT SOCIAL CARE,Oasis Care & Training Agency,DOMICILIARY CARE - THIRD PARTY,791.84,Social Community Care Supplies & Service.Adult.Domiciliary Care
07/04/2015,CORPORATE ITEMS,L K Recruitment Ltd,DOMICILIARY CARE - THIRD PARTY,774.93,Social Community Care Supplies & Service.Adult.Domiciliary Care
07/04/2015,HOUSING MANAGEMENT SERVICES,KNK Building Services Ltd_d,RESPONSIVE REPAIRS - BUILDING,762.84,Building Construction Materials.Paint & Finishing.NA
07/04/2015,ADULT SOCIAL CARE,L K Recruitment Ltd,DOMICILIARY CARE - THIRD PARTY,752.23,Social Community Care Supplies & Service.Adult.Domiciliary Care
07/04/2015,ADULT SOCIAL CARE,Unique Personnel (Uk) Ltd,DOMICILIARY CARE - THIRD PARTY,744.00,Social Community Care Supplies & Service.Disabled Children.NA
07/04/2015,ADULT SOCIAL CARE,Unique Personnel (Uk) Ltd,DOMICILIARY CARE - THIRD PARTY,739.20,Social Community Care Supplies & Service.Disabled Children.NA
07/04/2015,ADULT SOCIAL CARE,Unique Personnel (Uk) Ltd,DOMICILIARY CARE - THIRD PARTY,739.20,Social Community Care Supplies & Service.Disabled Children.NA
07/04/2015,ADULT SOCIAL CARE,Holistic Community Care Ltd,DOMICILIARY CARE - THIRD PARTY,725.53,Social Community Care Supplies & Service.Adult.Domiciliary Care
07/04/2015,CHILDREN'S SERVICES,Allied Healthcare (UK) Ltd,DAYCARE - PRIVATE CONTRACTORS PAYMENT,723.12,Social Community Care Supplies & Service.Disabled Children.Care Services
07/04/2015,"REGENERATION, PLANNING & NEIGHBOURHOODS",Southwark Newspaper Ltd,"ADVERTISING, PUBLICITY AND MARKETING",720.00,Facilities & Management Services.Advertising.Statutory
07/04/2015,"REGENERATION, PLANNING & NEIGHBOURHOODS",Ms Domingas Nhiala,SPECIALIST EQUIPMENT FOR SERVICE PROVISION,720.00,Arts & Leisure Services.Professional Musical Instruments.NA
07/04/2015,CHILDREN'S SERVICES,National Fostering Agency,FOSTERING AGENCY PLACEMENTS - PRIVATE CONTRACTORS PAYMENT,712.14,Social Community Care Supplies & Service.Children.Fostering
07/04/2015,ADULT SOCIAL CARE,Oasis Care & Training Agency,DOMICILIARY CARE - THIRD PARTY,701.40,Social Community Care Supplies & Service.Adult.Domiciliary Care
07/04/2015,ADULT SOCIAL CARE,Oasis Care & Training Agency,DOMICILIARY CARE - THIRD PARTY,701.40,Social Community Care Supplies & Service.Adult.Domiciliary Care
07/04/2015,ADULT SOCIAL CARE,Oasis Care & Training Agency,DOMICILIARY CARE - THIRD PARTY,701.40,Social Community Care Supplies & Service.Adult.Domiciliary Care
07/04/2015,ADULT SOCIAL CARE,Oasis Care & Training Agency,DOMICILIARY CARE - THIRD PARTY,701.40,Social Community Care Supplies & Service.Adult.Domiciliary Care
07/04/2015,ADULT SOCIAL CARE,Oasis Care & Training Agency,DOMICILIARY CARE - THIRD PARTY,701.40,Social Community Care Supplies & Service.Adult.Domiciliary Care
07/04/2015,ADULT SOCIAL CARE,Oasis Care & Training Agency,DOMICILIARY CARE - THIRD PARTY,701.40,Social Community Care Supplies & Service.Adult.Domiciliary Care
07/04/2015,ADULT SOCIAL CARE,Unique Personnel (Uk) Ltd,DOMICILIARY CARE - THIRD PARTY,698.00,Social Community Care Supplies & Service.Disabled Children.NA
07/04/2015,ADULT SOCIAL CARE,Gillian Stringer,TRANSLATORS AND INTERPRETERS,696.00,Social Community Care Supplies & Service.Adult.Residential Care
07/04/2015,ADULT SOCIAL CARE,Gillian Stringer,TRANSLATORS AND INTERPRETERS,696.00,Social Community Care Supplies & Service.Adult.Residential Care
07/04/2015,ADULT SOCIAL CARE,Sunrise Home Care Services Ltd,DOMICILIARY CARE - THIRD PARTY,687.25,Social Community Care Supplies & Service.Adult.Day Care
07/04/2015,ADULT SOCIAL CARE,Sunrise Home Care Services Ltd,DOMICILIARY CARE - THIRD PARTY,687.25,Social Community Care Supplies & Service.Adult.Day Care
07/04/2015,ADULT SOCIAL CARE,Sunrise Home Care Services Ltd,DOMICILIARY CARE - THIRD PARTY,687.25,Social Community Care Supplies & Service.Adult.Day Care
07/04/2015,ADULT SOCIAL CARE,Sunrise Home Care Services Ltd,DOMICILIARY CARE - THIRD PARTY,687.25,Social Community Care Supplies & Service.Adult.Day Care
07/04/2015,ADULT SOCIAL CARE,Sunrise Home Care Services Ltd,DOMICILIARY CARE - THIRD PARTY,687.25,Social Community Care Supplies & Service.Adult.Day Care
07/04/2015,ADULT SOCIAL CARE,Sunrise Home Care Services Ltd,DOMICILIARY CARE - THIRD PARTY,687.25,Social Community Care Supplies & Service.Adult.Day Care
07/04/2015,ADULT SOCIAL CARE,Oasis Care & Training Agency,DOMICILIARY CARE - THIRD PARTY,686.16,Social Community Care Supplies & Service.Adult.Domiciliary Care
07/04/2015,CHILDREN'S SERVICES,University of Greenwich,PROFESSIONAL SERVICES - GENERAL,675.00,Education.Adult & Further Education Services.NA
07/04/2015,CHILDREN'S SERVICES,University of Greenwich,PROFESSIONAL SERVICES - GENERAL,675.00,Education.Adult & Further Education Services.NA
07/04/2015,ADULT SOCIAL CARE,Unique Personnel (Uk) Ltd,DOMICILIARY CARE - THIRD PARTY,667.00,Social Community Care Supplies & Service.Disabled Children.NA
07/04/2015,ADULT SOCIAL CARE,Newham House Supporting People Ltd,DAYCARE - PRIVATE CONTRACTORS PAYMENT,662.07,Social Community Care Supplies & Service.Adult.Residential Care
07/04/2015,ADULT SOCIAL CARE,Plan Personnel Ltd,DOMICILIARY CARE - THIRD PARTY,661.38,Social Community Care Supplies & Service.Adult.Domiciliary Care
07/04/2015,HUMAN RESOURCES AND ORGANISATIONAL DEVELOPMENT,Sara Bubb Associates Ltd,CONSULTANCY FEES,660.00,Consultancy.Business.NA
07/04/2015,ADULT SOCIAL CARE,Unique Personnel (Uk) Ltd,DOMICILIARY CARE - THIRD PARTY,651.00,Social Community Care Supplies & Service.Disabled Children.NA
07/04/2015,CHILDREN'S SERVICES,The Change Agency,STAFF DEVELOPMENT AND TRAINING,650.00,Human Resources.Training & Conferences.Training
07/04/2015,ADULT SOCIAL CARE,Unique Personnel (Uk) Ltd,DOMICILIARY CARE - THIRD PARTY,648.50,Social Community Care Supplies & Service.Disabled Children.NA
07/04/2015,ADULT SOCIAL CARE,Unique Personnel (Uk) Ltd,DOMICILIARY CARE - THIRD PARTY,643.25,Social Community Care Supplies & Service.Disabled Children.NA
07/04/2015,CHILDREN'S SERVICES,Allied Healthcare (UK) Ltd,DAYCARE - PRIVATE CONTRACTORS PAYMENT,640.00,Social Community Care Supplies & Service.Disabled Children.Care Services
07/04/2015,ADULT SOCIAL CARE,Oasis Care & Training Agency,DOMICILIARY CARE - THIRD PARTY,637.52,Social Community Care Supplies & Service.Adult.Domiciliary Care
07/04/2015,ADULT SOCIAL CARE,Oasis Care & Training Agency,DOMICILIARY CARE - THIRD PARTY,633.36,Social Community Care Supplies & Service.Adult.Domiciliary Care
07/04/2015,ADULT SOCIAL CARE,Oasis Care & Training Agency,DOMICILIARY CARE - THIRD PARTY,633.36,Social Community Care Supplies & Service.Adult.Domiciliary Care
07/04/2015,ADULT SOCIAL CARE,Oasis Care & Training Agency,DOMICILIARY CARE - THIRD PARTY,633.36,Social Community Care Supplies & Service.Adult.Domiciliary Care
07/04/2015,STRATEGY & COMMISSIONING - HOUSING & COMMUNITIES (HRA),Blenheim Gardens TMO,INTERNAL RECHARGES,630.05,Housing Management.Arms Length Management Organisations.NA
07/04/2015,EDUCATION & LEARNING,Evolve Housing & Support,HIRE OF ROOMS AND HALLS INCOME - NON VATABLE,630.00,Facilities & Management Services.Room Hire.NA
07/04/2015,CHILDREN'S SERVICES,Allied Healthcare (UK) Ltd,DAYCARE - PRIVATE CONTRACTORS PAYMENT,628.80,Social Community Care Supplies & Service.Disabled Children.Care Services
07/04/2015,HOUSING MANAGEMENT SERVICES,KNK Building Services Ltd_d,RESPONSIVE REPAIRS - MECHANICAL AND ELECTRICAL,627.92,Building Construction Materials.Paint & Finishing.NA
07/04/2015,ADULT SOCIAL CARE,Unique Personnel (Uk) Ltd,DOMICILIARY CARE - THIRD PARTY,627.75,Social Community Care Supplies & Service.Disabled Children.NA
07/04/2015,ADULT SOCIAL CARE,Oasis Care & Training Agency,DOMICILIARY CARE - THIRD PARTY,622.28,Social Community Care Supplies & Service.Adult.Domiciliary Care
07/04/2015,ADULT SOCIAL CARE,Unique Personnel (Uk) Ltd,DOMICILIARY CARE - THIRD PARTY,621.00,Social Community Care Supplies & Service.Disabled Children.NA
07/04/2015,ADULT SOCIAL CARE,Unique Personnel (Uk) Ltd,DOMICILIARY CARE - THIRD PARTY,609.00,Social Community Care Supplies & Service.Disabled Children.NA
07/04/2015,ADULT SOCIAL CARE,Holistic Community Care Ltd,DOMICILIARY CARE - THIRD PARTY,608.09,Social Community Care Supplies & Service.Adult.Domiciliary Care
07/04/2015,ADULT SOCIAL CARE,Unique Personnel (Uk) Ltd,DOMICILIARY CARE - THIRD PARTY,585.50,Social Community Care Supplies & Service.Disabled Children.NA
07/04/2015,ADULT SOCIAL CARE,Holistic Community Care Ltd,DOMICILIARY CARE - THIRD PARTY,584.96,Social Community Care Supplies & Service.Adult.Domiciliary Care
07/04/2015,ADULT SOCIAL CARE,Jane Ramsay,PAYMENT TO HEALTH AUTHORITIES,584.80,Healthcare.Services.NA
07/04/2015,ADULT SOCIAL CARE,Oasis Care & Training Agency,DOMICILIARY CARE - THIRD PARTY,582.96,Social Community Care Supplies & Service.Adult.Domiciliary Care
07/04/2015,ADULT SOCIAL CARE,Oasis Care & Training Agency,DOMICILIARY CARE - THIRD PARTY,580.72,Social Community Care Supplies & Service.Adult.Domiciliary Care
07/04/2015,ADULT SOCIAL CARE,Carewatch (Lambeth),DOMICILIARY CARE - THIRD PARTY,572.79,Social Community Care Supplies & Service.Adult.Domiciliary Care
07/04/2015,ADULT SOCIAL CARE,Courier Cars (London) Ltd,CLIENT TRANSPORT,568.00,Public Transport.Taxi Services.NA
07/04/2015,ADULT SOCIAL CARE,L K Recruitment Ltd,DOMICILIARY CARE - THIRD PARTY,564.54,Social Community Care Supplies & Service.Adult.Domiciliary Care
07/04/2015,ADULT SOCIAL CARE,L K Recruitment Ltd,DOMICILIARY CARE - THIRD PARTY,564.54,Social Community Care Supplies & Service.Adult.Domiciliary Care
07/04/2015,ADULT SOCIAL CARE,Unique Personnel (Uk) Ltd,DOMICILIARY CARE - THIRD PARTY,552.00,Social Community Care Supplies & Service.Disabled Children.NA
07/04/2015,"REGENERATION, PLANNING & NEIGHBOURHOODS",Osborne Richardson Ltd,AGENCY STAFF,549.00,Human Resources.Temporary & Agency Staff.Professional
07/04/2015,CORPORATE AFFAIRS,Legal Services-Urgent Payments,LEGAL FEES,545.00,Legal Services.Advocacy.NA
07/04/2015,BUSINESS & CUSTOMER SERVICES,Computacenter (UK) Ltd,ICT HARDWARE,533.67,Information Communication Technology.Consumables.NA
07/04/2015,ADULT SOCIAL CARE,Newham House Supporting People Ltd,DAYCARE - PRIVATE CONTRACTORS PAYMENT,529.66,Social Community Care Supplies & Service.Adult.Residential Care
07/04/2015,CORPORATE AFFAIRS,Porterhouse Legal & Consultancy Services Ltd,LEGAL FEES,523.40,Legal Services.Specialist Support.NA
07/04/2015,ADULT SOCIAL CARE,Courier Cars (London) Ltd,CLIENT TRANSPORT,520.00,Public Transport.Taxi Services.NA
07/04/2015,CHILDREN'S SERVICES,Catch22,RESIDENTIAL PLACEMENTS - PRIVATE CONTRACTORS PAYMENT,516.00,Social Community Care Supplies & Service.Adult.Residential Homes for Older People
07/04/2015,HOUSING MANAGEMENT SERVICES,KNK Building Services Ltd_d,RESPONSIVE REPAIRS - MECHANICAL AND ELECTRICAL,514.44,Building Construction Materials.Paint & Finishing.NA
07/04/2015,ADULT SOCIAL CARE,Unique Personnel (Uk) Ltd,DOMICILIARY CARE - THIRD PARTY,514.00,Social Community Care Supplies & Service.Disabled Children.NA
07/04/2015,ADULT SOCIAL CARE,Kenward Trust,RESIDENTIAL PLACEMENTS - PRIVATE CONTRACTORS PAYMENT,505.71,Social Community Care Supplies & Service.Adult.Alcohol & Drug Rehabilitation
07/04/2015,EDUCATION & LEARNING,School Business Services,CONSULTANCY FEES,500.00,Consultancy.Business.NA
07/04/2015,ADULT SOCIAL CARE,Bluebird Care Lambeth,DOMICILIARY CARE - THIRD PARTY,"(1,130.00)",Social Community Care Supplies & Service.Adult.Domiciliary Care
07/04/2015,CHILDREN'S SERVICES,Catch22,RESIDENTIAL PLACEMENTS - PRIVATE CONTRACTORS PAYMENT,"(1,160.00)",Social Community Care Supplies & Service.Adult.Residential Care
07/04/2015,ADULT SOCIAL CARE,Stockwellcare Support Services Ltd,DOMICILIARY CARE - THIRD PARTY,"(1,527.06)",Healthcare.Public Health.NA
07/04/2015,ADULT SOCIAL CARE,Bluebird Care Lambeth,DOMICILIARY CARE - THIRD PARTY,"(2,050.00)",Social Community Care Supplies & Service.Adult.Domiciliary Care
07/04/2015,BUSINESS & CUSTOMER SERVICES,Vauxhall One,BUSINESS RATES PAYABLE,"(20,662.62)",Financial Services.Council Tax & Business Rates.NA
07/04/2015,CAPITAL CC,Pellings LLP,BUILDING ALTERATIONS AND MATERIALS,"(24,953.32)","Works - Construction, Repair & Maint.Consultancy.NA"
07/04/2015,MAJOR CAPITAL PROGRAMMES,Focus Education (Lambeth) Ltd,PFI AND PPP SCHEMES,"(68,463.69)",Education.School Services.NA
07/04/2015,MAJOR CAPITAL PROGRAMMES,Focus Education (Lambeth) Ltd,PFI AND PPP SCHEMES,"(209,346.10)",Education.School Services.NA
08/04/2015,HUMAN RESOURCES AND ORGANISATIONAL DEVELOPMENT,Matrix SCM Ltd,AGENCY STAFF,"621,821.55",Human Resources.Temporary & Agency Staff.NA
08/04/2015,"REGENERATION, PLANNING & NEIGHBOURHOODS",Lambeth Lighting Services,ELECTRICITY,"224,571.87",Utilities.Electricity.NA
08/04/2015,ADULT SOCIAL CARE,Allied Healthcare (UK) Ltd,DOMICILIARY CARE - THIRD PARTY,"181,057.12",Social Community Care Supplies & Service.Adult.Domiciliary Care
08/04/2015,ADULT SOCIAL CARE,MiHomecare Ltd,DOMICILIARY CARE - THIRD PARTY,"80,365.78",Social Community Care Supplies & Service.Adult.Domiciliary Care
08/04/2015,ADULT SOCIAL CARE,Allied Healthcare (UK) Ltd,DOMICILIARY CARE - THIRD PARTY,"39,248.25",Social Community Care Supplies & Service.Adult.Domiciliary Care
08/04/2015,CAPITAL CC,Pellings LLP,CONSULTANCY FEES,"35,116.31","Works - Construction, Repair & Maint.Consultancy.NA"
08/04/2015,"STRATEGY & COMMISSIONING - CHILDREN, DISABILITIES & PUBLIC HEALTH",Addaction,PAYMENT TO HEALTH AUTHORITIES,"30,875.00",Healthcare.Public Health.NA
08/04/2015,ADULT SOCIAL CARE,Allied Healthcare (UK) Ltd,DOMICILIARY CARE - THIRD PARTY,"22,851.31",Social Community Care Supplies & Service.Adult.Domiciliary Care
08/04/2015,ADULT SOCIAL CARE,MiHomecare Ltd,DOMICILIARY CARE - THIRD PARTY,"20,911.38",Social Community Care Supplies & Service.Adult.Domiciliary Care
08/04/2015,CORPORATE AFFAIRS,Anthony Gold Solicitors,LEGAL FEES,"18,000.00",Legal Services.Advocacy.NA
08/04/2015,"STRATEGY & COMMISSIONING - CHILDREN, DISABILITIES & PUBLIC HEALTH",Addaction,PAYMENT TO HEALTH AUTHORITIES,"10,844.60",Healthcare.Public Health.NA
08/04/2015,ADULT SOCIAL CARE,Independent Community Care Management,DOMICILIARY CARE - THIRD PARTY,"10,586.00",Social Community Care Supplies & Service.Adult.Domiciliary Care
08/04/2015,ADULT SOCIAL CARE,Allied Healthcare (UK) Ltd,DOMICILIARY CARE - THIRD PARTY,"10,002.72",Social Community Care Supplies & Service.Adult.Domiciliary Care
08/04/2015,CAPITAL CC,Bell Phillips Architects Ltd,"MAINTENANCE - EQUIPMENT, FURNITURE AND MATERIALS","10,000.00","Works - Construction, Repair & Maint.Architect.NA"
08/04/2015,CAPITAL CC,Pellings LLP,CONSULTANCY FEES,"8,396.64","Works - Construction, Repair & Maint.Consultancy.NA"
08/04/2015,EDUCATION & LEARNING,A* Transport Ltd,DIRECT TRANSPORT,"8,232.00",Public Transport.Passenger Transport.NA
08/04/2015,EDUCATION & LEARNING,A* Transport Ltd,DIRECT TRANSPORT,"7,920.00",Public Transport.Passenger Transport.NA
08/04/2015,"REGENERATION, PLANNING & NEIGHBOURHOODS",Douglas Edwards QC,LEGAL FEES,"7,875.00",Legal Services.General Support.NA
08/04/2015,CORPORATE AFFAIRS,Anthony Gold Solicitors,LEGAL FEES,"7,396.86",Legal Services.Advocacy.NA
08/04/2015,CORPORATE AFFAIRS,Anthony Gold Solicitors,LEGAL FEES,"7,316.92",Legal Services.Advocacy.NA
08/04/2015,"REGENERATION, PLANNING & NEIGHBOURHOODS",The Champion Agency Ltd,"ADVERTISING, PUBLICITY AND MARKETING","7,129.00",Facilities & Management Services.Advertising.Promotional & Recruitment
08/04/2015,CAPITAL CC,Cottington Close TMC,BUILDING ALTERATIONS AND MATERIALS,"5,236.83","Works - Construction, Repair & Maint.Buildings.Repair & Maintenance"
08/04/2015,STRATEGY & COMMISSIONING - HOUSING & COMMUNITIES (HRA),Wellington Mills Housing Tmc,PRIVATE CONTRACTORS PAYMENT - OTHER,"5,000.00",Housing Management.Arms Length Management Organisations.NA
08/04/2015,ADULT SOCIAL CARE,Allied Healthcare (UK) Ltd,DOMICILIARY CARE - THIRD PARTY,"4,514.88",Social Community Care Supplies & Service.Adult.Domiciliary Care
08/04/2015,CORPORATE AFFAIRS,Anthony Gold Solicitors,LEGAL FEES,"4,500.00",Legal Services.Advocacy.NA
08/04/2015,CORPORATE AFFAIRS,Anthony Gold Solicitors,LEGAL FEES,"4,500.00",Legal Services.Advocacy.NA
08/04/2015,CAPITAL CC,Cottington Close TMC,BUILDING ALTERATIONS AND MATERIALS,"4,390.57","Works - Construction, Repair & Maint.Buildings.Repair & Maintenance"
08/04/2015,CORPORATE AFFAIRS,Anthony Gold Solicitors,LEGAL FEES,"4,097.02",Legal Services.Advocacy.NA
08/04/2015,CHILDREN'S SERVICES,Brighter Futures Foster Care Ltd,FOSTERING AGENCY PLACEMENTS - PRIVATE CONTRACTORS PAYMENT,"3,936.07",Social Community Care Supplies & Service.Children.Fostering
08/04/2015,ADULT SOCIAL CARE,Tunstall Group Ltd,ICT MAINTENANCE AND SUPPORT,"3,000.00",Information Communication Technology.Call Systems.NA
08/04/2015,ADULT SOCIAL CARE,Snowball Care,DOMICILIARY CARE - THIRD PARTY,"2,993.50",Social Community Care Supplies & Service.Adult.Domiciliary Care
08/04/2015,CORPORATE AFFAIRS,Cubism Law,LEGAL FEES,"2,880.00",Legal Services.Advocacy.NA
08/04/2015,ADULT SOCIAL CARE,Snowball Care,DOMICILIARY CARE - THIRD PARTY,"2,848.00",Social Community Care Supplies & Service.Adult.Domiciliary Care
08/04/2015,ADULT SOCIAL CARE,Snowball Care,DOMICILIARY CARE - THIRD PARTY,"2,744.00",Social Community Care Supplies & Service.Adult.Domiciliary Care
08/04/2015,CORPORATE AFFAIRS,Lambeth Law Centre,LEGAL FEES,"2,696.66",Social Community Care Supplies & Service.Adult.Advice & Counselling Services
08/04/2015,CHILDREN'S SERVICES,Ward Andrews Ltd,LEGAL FEES,"2,553.50",Legal Services.Advocacy.NA
08/04/2015,CHILDREN'S SERVICES,Domestic Violence Intervention Project,PRIVATE CONTRACTORS PAYMENT - OTHER,"2,542.50",Social Community Care Supplies & Service.Adult.Advice & Counselling Services
08/04/2015,ADULT SOCIAL CARE,The Rathbone Centre,DOMICILIARY CARE - THIRD PARTY,"2,485.84",Social Community Care Supplies & Service.Adult.Domiciliary Care
08/04/2015,CORPORATE AFFAIRS,P E Wilson & Co,LEGAL FEES,"2,220.83",Legal Services.Advocacy.NA
08/04/2015,CORPORATE AFFAIRS,P E Wilson & Co,LEGAL FEES,"2,220.83",Legal Services.Advocacy.NA
08/04/2015,CHILDREN'S SERVICES,Domestic Violence Intervention Project,LEGAL FEES,"2,191.74",Social Community Care Supplies & Service.Children.Residential Care
08/04/2015,ADULT SOCIAL CARE,Snowball Care,DOMICILIARY CARE - THIRD PARTY,"2,096.00",Social Community Care Supplies & Service.Adult.Domiciliary Care
08/04/2015,CHILDREN'S SERVICES,HMCTS,LEGAL FEES,"2,055.00",Legal Services.General Support.NA
08/04/2015,ADULT SOCIAL CARE,Snowball Care,DOMICILIARY CARE - THIRD PARTY,"2,048.00",Social Community Care Supplies & Service.Adult.Domiciliary Care
08/04/2015,ADULT SOCIAL CARE,The Rathbone Centre,DOMICILIARY CARE - THIRD PARTY,"1,970.60",Social Community Care Supplies & Service.Adult.Domiciliary Care
08/04/2015,ADULT SOCIAL CARE,Unique Personnel (Uk) Ltd,DOMICILIARY CARE - THIRD PARTY,"1,946.00",Social Community Care Supplies & Service.Disabled Children.NA
08/04/2015,ADULT SOCIAL CARE,Unique Personnel (Uk) Ltd,DOMICILIARY CARE - THIRD PARTY,"1,891.75",Social Community Care Supplies & Service.Disabled Children.NA
08/04/2015,ADULT SOCIAL CARE,Southside Partnership,PRIVATE CONTRACTORS PAYMENT - OTHER,"1,841.63",Social Community Care Supplies & Service.Adult.Mental Health Services
08/04/2015,CORPORATE AFFAIRS,Charles Allotey & Co,LEGAL FEES,"1,750.00",Legal Services.Advocacy.NA
08/04/2015,CHILDREN'S SERVICES,Josephine Ann Tunnard,LEGAL FEES,"1,500.00",Social Community Care Supplies & Service.Supplies.NA
08/04/2015,ADULT SOCIAL CARE,Allied Healthcare (UK) Ltd,DOMICILIARY CARE - THIRD PARTY,"1,400.63",Social Community Care Supplies & Service.Adult.Domiciliary Care
08/04/2015,STRATEGY & COMMISSIONING - HOUSING & COMMUNITIES,Lambert Smith Hampton Group Ltd,CONSULTANCY FEES,"1,335.00",Consultancy.Technical & Feasibility.NA
08/04/2015,CAPITAL CC,Network Rail Infrastructure Ltd,RENTS PAYABLE,"1,250.00",Financial Services.Rents.NA
08/04/2015,STRATEGY & COMMISSIONING - HOUSING & COMMUNITIES,Locality UK,CONSULTANCY FEES,"1,237.00",Consultancy.Business.NA
08/04/2015,CHILDREN'S SERVICES,TV Edwards LLP,LEGAL FEES,"1,224.00",Legal Services.Advocacy.NA
08/04/2015,ADULT SOCIAL CARE,Allied Healthcare (UK) Ltd,DOMICILIARY CARE - THIRD PARTY,"1,082.30",Social Community Care Supplies & Service.Adult.Domiciliary Care
08/04/2015,HOUSING MANAGEMENT SERVICES,B&Q Plc,DECORATION,"1,055.13",Building Construction Materials.Paint & Finishing.NA
08/04/2015,CHILDREN'S SERVICES,Ayeesha Bhutta,LEGAL FEES,"1,055.00",Legal Services.Legal Opinion.NA
08/04/2015,"REGENERATION, PLANNING & NEIGHBOURHOODS",Tesco Stores Ltd,FACILITIES MANAGEMENT,"1,000.00",Facilities & Management Services.Retail.NA
08/04/2015,CORPORATE AFFAIRS,Miss Laura West,LEGAL FEES,"1,000.00",Legal Services.Legal Opinion.NA
08/04/2015,ADULT SOCIAL CARE,Thames Homecare Ltd,DOMICILIARY CARE - THIRD PARTY,941.06,Social Community Care Supplies & Service.Adult.Domiciliary Care
08/04/2015,CAPITAL CC,Cool it Art Ltd,"PURCHASE - EQUIPMENT, FURNITURE AND MATERIALS",868.70,Education.Arts & Crafts.NA
08/04/2015,HOUSING MANAGEMENT SERVICES,Libra Construction Services Ltd,FACILITIES MANAGEMENT,848.00,"Works - Construction, Repair & Maint.Buildings.Repair & Maintenance"
08/04/2015,ADULT SOCIAL CARE,Unique Personnel (Uk) Ltd,DOMICILIARY CARE - THIRD PARTY,842.00,Social Community Care Supplies & Service.Disabled Children.NA
08/04/2015,ADULT SOCIAL CARE,Plan Personnel Ltd,DOMICILIARY CARE - THIRD PARTY,834.05,Social Community Care Supplies & Service.Adult.Domiciliary Care
08/04/2015,CHILDREN'S SERVICES,Deborah Seitler,LEGAL FEES,800.00,Legal Services.Legal Opinion.NA
08/04/2015,ADULT SOCIAL CARE,The Rathbone Centre,DOMICILIARY CARE - THIRD PARTY,758.00,Social Community Care Supplies & Service.Adult.Domiciliary Care
08/04/2015,ADULT SOCIAL CARE,The Rathbone Centre,DOMICILIARY CARE - THIRD PARTY,758.00,Social Community Care Supplies & Service.Adult.Domiciliary Care
08/04/2015,CORPORATE AFFAIRS,Centre 70 Advice Centre,LEGAL FEES,750.00,Social Community Care Supplies & Service.Adult.NA
08/04/2015,STRATEGY & COMMISSIONING - HOUSING & COMMUNITIES (HRA),Steeles (Law) LLP,LEGAL FEES,730.00,Legal Services.General Support.NA
08/04/2015,ADULT SOCIAL CARE,Snowball Care,DOMICILIARY CARE - THIRD PARTY,691.50,Social Community Care Supplies & Service.Adult.Domiciliary Care
08/04/2015,ADULT SOCIAL CARE,Plan Personnel Ltd,DOMICILIARY CARE - THIRD PARTY,684.39,Social Community Care Supplies & Service.Adult.Domiciliary Care
08/04/2015,CHILDREN'S SERVICES,Bisbey Ltd,LEGAL FEES,640.99,Legal Services.Specialist Support.NA
08/04/2015,ADULT SOCIAL CARE,Plan Personnel Ltd,DOMICILIARY CARE - THIRD PARTY,626.75,Social Community Care Supplies & Service.Adult.Domiciliary Care
08/04/2015,CHILDREN'S SERVICES,Ayeesha Bhutta,LEGAL FEES,620.00,Legal Services.Legal Opinion.NA
08/04/2015,ADULT SOCIAL CARE,The Rathbone Centre,DOMICILIARY CARE - THIRD PARTY,606.40,Social Community Care Supplies & Service.Adult.Domiciliary Care
08/04/2015,ADULT SOCIAL CARE,The Rathbone Centre,DOMICILIARY CARE - THIRD PARTY,606.40,Social Community Care Supplies & Service.Adult.Domiciliary Care
08/04/2015,CORPORATE AFFAIRS,Naomi Hawkes,LEGAL FEES,600.00,Legal Services.Legal Opinion.NA
08/04/2015,CORPORATE AFFAIRS,Miss Laura West,LEGAL FEES,600.00,Legal Services.Legal Opinion.NA
08/04/2015,CORPORATE AFFAIRS,Legal Services-Urgent Payments,LEGAL FEES,545.00,Legal Services.Advocacy.NA
08/04/2015,ADULT SOCIAL CARE,Unique Personnel (Uk) Ltd,DOMICILIARY CARE - THIRD PARTY,539.00,Social Community Care Supplies & Service.Disabled Children.NA
08/04/2015,ADULT SOCIAL CARE,Unique Personnel (Uk) Ltd,DOMICILIARY CARE - THIRD PARTY,531.75,Social Community Care Supplies & Service.Disabled Children.NA
08/04/2015,CHILDREN'S SERVICES,Matthew Stott,LEGAL FEES,520.00,Legal Services.Legal Opinion.NA
08/04/2015,ADULT SOCIAL CARE,Snowball Care,DOMICILIARY CARE - THIRD PARTY,512.00,Social Community Care Supplies & Service.Adult.Domiciliary Care
08/04/2015,ADULT SOCIAL CARE,Plan Personnel Ltd,DOMICILIARY CARE - THIRD PARTY,506.00,Social Community Care Supplies & Service.Adult.Domiciliary Care
08/04/2015,ADULT SOCIAL CARE,Plan Personnel Ltd,DOMICILIARY CARE - THIRD PARTY,503.25,Social Community Care Supplies & Service.Adult.Domiciliary Care
08/04/2015,"REGENERATION, PLANNING & NEIGHBOURHOODS",London Borough of Camden_d,STAFF DEVELOPMENT AND TRAINING,500.00,Human Resources.Training & Conferences.Training
09/04/2015,"REGENERATION, PLANNING & NEIGHBOURHOODS",Veolia ES (UK) Ltd,PRIVATE CONTRACTORS PAYMENT - OTHER,"615,405.84",Environmental Services.Waste Management.Waste Collection
09/04/2015,"REGENERATION, PLANNING & NEIGHBOURHOODS",Veolia ES (UK) Ltd,PRIVATE CONTRACTORS PAYMENT - OTHER,"537,710.38",Environmental Services.Waste Management.Waste Collection
09/04/2015,"REGENERATION, PLANNING & NEIGHBOURHOODS",Veolia ES (UK) Ltd,PRIVATE CONTRACTORS PAYMENT - OTHER,"166,096.91",Environmental Services.Waste Management.Waste Collection
09/04/2015,CHILDREN'S SERVICES,Swanstaff Recruitment Ltd,STAFF RECRUITMENT COSTS,"100,000.00",Human Resources.Recruitment & Assessment.NA
09/04/2015,FINANCE,London Councils,MEMBERSHIP AND SUBSCRIPTIONS,"84,006.00",Financial Services.Subscriptions.NA
09/04/2015,EDUCATION & LEARNING,Healthy Minds London CIC,ARTS AND LEISURE COSTS,"60,000.00",Arts & Leisure Services.Organised Activities.NA
09/04/2015,CAPITAL CC,Sky High Technology Ltd,CONSULTANCY FEES,"49,890.00",Consultancy.Technical & Feasibility.NA
09/04/2015,BUSINESS TRANSFORMATION,Specialist Computer Centers Plc,ICT MAINTENANCE AND SUPPORT,"47,966.00",Information Communication Technology.Services.NA
09/04/2015,CAPITAL CC,Pellings LLP,CONSULTANCY FEES,"46,348.79","Works - Construction, Repair & Maint.Consultancy.NA"
09/04/2015,"REGENERATION, PLANNING & NEIGHBOURHOODS",Veolia ES (UK) Ltd,PRIVATE CONTRACTORS PAYMENT - OTHER,"45,034.73",Environmental Services.Waste Management.Waste Collection
09/04/2015,CAPITAL CC,Apollo Property Services Group Ltd,BUILDING ALTERATIONS AND MATERIALS,"40,719.10","Works - Construction, Repair & Maint.Buildings.Construction"
09/04/2015,HOUSING MANAGEMENT SERVICES,Apollo Property Services Group Ltd,GROUNDS MAINTENANCE,"38,006.75","Works - Construction, Repair & Maint.Open Spaces.Repair & Maintenance"
09/04/2015,"REGENERATION, PLANNING & NEIGHBOURHOODS",Veolia ES (UK) Ltd,PRIVATE CONTRACTORS PAYMENT - OTHER,"26,004.29",Environmental Services.Waste Management.Waste Collection
09/04/2015,"REGENERATION, PLANNING & NEIGHBOURHOODS",Veolia ES (UK) Ltd,PRIVATE CONTRACTORS PAYMENT - OTHER,"25,812.97",Environmental Services.Waste Management.Waste Collection
09/04/2015,"REGENERATION, PLANNING & NEIGHBOURHOODS",Veolia ES (UK) Ltd,PRIVATE CONTRACTORS PAYMENT - OTHER,"25,556.95",Environmental Services.Waste Management.Waste Collection
09/04/2015,FINANCE,Apollo Property Services Group Ltd,"MAINTENANCE - EQUIPMENT, FURNITURE AND MATERIALS","19,568.04","Works - Construction, Repair & Maint.Buildings.Construction"
09/04/2015,"REGENERATION, PLANNING & NEIGHBOURHOODS",Roots & Shoots,PREMISES HIRE - FACILITIES,"19,391.00",Facilities & Management Services.Room Hire.NA
09/04/2015,CAPITAL CC,Apollo Property Services Group Ltd,BUILDING ALTERATIONS AND MATERIALS,"14,576.37","Works - Construction, Repair & Maint.Buildings.Construction"
09/04/2015,"REGENERATION, PLANNING & NEIGHBOURHOODS",Veolia ES (UK) Ltd,PRIVATE CONTRACTORS PAYMENT - OTHER,"14,342.51",Environmental Services.Waste Management.Waste Collection
09/04/2015,CAPITAL CC,Apollo Property Services Group Ltd,BUILDING ALTERATIONS AND MATERIALS,"13,490.56","Works - Construction, Repair & Maint.Buildings.Construction"
09/04/2015,BUSINESS TRANSFORMATION,London Grid for Learning,ICT MAINTENANCE AND SUPPORT,"13,456.67",Information Communication Technology.Services.Website Development
09/04/2015,CAPITAL CC,Apollo Property Services Group Ltd,BUILDING ALTERATIONS AND MATERIALS,"8,269.68","Works - Construction, Repair & Maint.Buildings.Construction"
09/04/2015,CAPITAL CC,Easy Tiger Creative Ltd,PROFESSIONAL SERVICES - GENERAL,"8,220.00",Consultancy.Property.NA
09/04/2015,"REGENERATION, PLANNING & NEIGHBOURHOODS",Veolia ES (UK) Ltd,PRIVATE CONTRACTORS PAYMENT - OTHER,"7,786.06",Environmental Services.Waste Management.Waste Collection
09/04/2015,ADULT SOCIAL CARE,Lambeth Mencap_d,DOMICILIARY CARE - THIRD PARTY,"7,400.00",Social Community Care Supplies & Service.Adult.Domiciliary Care
09/04/2015,STRATEGY & COMMISSIONING - HOUSING & COMMUNITIES (HRA),Deloitte LLP,AUDIT FEES,"6,500.00",Financial Services.Audit.NA
09/04/2015,"REGENERATION, PLANNING & NEIGHBOURHOODS",Veolia ES (UK) Ltd,PRIVATE CONTRACTORS PAYMENT - OTHER,"5,906.64",Environmental Services.Waste Management.Waste Collection
09/04/2015,CAPITAL CC,Apollo Property Services Group Ltd,BUILDING ALTERATIONS AND MATERIALS,"4,663.71","Works - Construction, Repair & Maint.Buildings.Construction"
09/04/2015,"STRATEGY & COMMISSIONING - CHILDREN, DISABILITIES & PUBLIC HEALTH",Sefgrove Chemist,PAYMENT TO HEALTH AUTHORITIES,"4,607.20",Healthcare.Public Health.NA
09/04/2015,CAPITAL CC,Richard Ford Consulting Ltd,CONSULTANCY FEES,"4,148.58",Consultancy.Business.NA
09/04/2015,"REGENERATION, PLANNING & NEIGHBOURHOODS",Veolia ES (UK) Ltd,PRIVATE CONTRACTORS PAYMENT - OTHER,"4,084.97",Environmental Services.Waste Management.Waste Collection
09/04/2015,CAPITAL CC,Apollo Property Services Group Ltd,BUILDING ALTERATIONS AND MATERIALS,"3,768.88","Works - Construction, Repair & Maint.Buildings.Construction"
09/04/2015,CAPITAL CC,Pellings LLP,CONSULTANCY FEES,"3,571.74","Works - Construction, Repair & Maint.Consultancy.NA"
09/04/2015,CHILDREN'S SERVICES,Chrysalis Care,IN HOUSE FOSTER CARE PLACEMENTS - PRIVATE CONTRACTORS PAYMENT,"3,425.57",Social Community Care Supplies & Service.Children.Fostering
09/04/2015,CHILDREN'S SERVICES,Chrysalis Care,IN HOUSE FOSTER CARE PLACEMENTS - PRIVATE CONTRACTORS PAYMENT,"3,425.57",Social Community Care Supplies & Service.Children.Fostering
09/04/2015,"REGENERATION, PLANNING & NEIGHBOURHOODS",Lambeth Lighting Services,RESPONSIVE REPAIRS - BUILDING,"3,227.25",Highway Equipment & Materials.Street Lighting.NA
09/04/2015,BUSINESS & CUSTOMER SERVICES,Capita Business Services Ltd,ICT SOFTWARE,"3,224.39",Information Communication Technology.Software.NA
09/04/2015,ADULT SOCIAL CARE,Unique Personnel (Uk) Ltd,DOMICILIARY CARE - THIRD PARTY,"3,135.32",Social Community Care Supplies & Service.Disabled Children.NA
09/04/2015,ADULT SOCIAL CARE,Unique Personnel (Uk) Ltd,DOMICILIARY CARE - THIRD PARTY,"3,135.32",Social Community Care Supplies & Service.Disabled Children.NA
09/04/2015,CHILDREN'S SERVICES,Chrysalis Care,IN HOUSE FOSTER CARE PLACEMENTS - PRIVATE CONTRACTORS PAYMENT,"3,094.00",Social Community Care Supplies & Service.Children.Fostering
09/04/2015,CAPITAL CC,Apollo Property Services Group Ltd,BUILDING ALTERATIONS AND MATERIALS,"2,894.86","Works - Construction, Repair & Maint.Buildings.Construction"
09/04/2015,CAPITAL CC,Apollo Property Services Group Ltd,BUILDING ALTERATIONS AND MATERIALS,"2,795.44","Works - Construction, Repair & Maint.Buildings.Construction"
09/04/2015,ADULT SOCIAL CARE,Lambeth Mencap_d,DOMICILIARY CARE - THIRD PARTY,"2,546.24",Social Community Care Supplies & Service.Adult.Domiciliary Care
09/04/2015,CAPITAL CC,Apollo Property Services Group Ltd,BUILDING ALTERATIONS AND MATERIALS,"2,362.69","Works - Construction, Repair & Maint.Buildings.Construction"
09/04/2015,CHILDREN'S SERVICES,Holmdene Housing Ltd,PRIVATE CONTRACTORS PAYMENT - OTHER,"2,338.53",Social Community Care Supplies & Service.Children.Residential Care
09/04/2015,ADULT SOCIAL CARE,Medacs Homecare,DOMICILIARY CARE - THIRD PARTY,"2,330.16",Social Community Care Supplies & Service.Adult.Domiciliary Care
09/04/2015,ADULT SOCIAL CARE,Lambeth Mencap_d,DOMICILIARY CARE - THIRD PARTY,"2,267.20",Social Community Care Supplies & Service.Adult.Domiciliary Care
09/04/2015,CHILDREN'S SERVICES,Holmdene Housing Ltd,PRIVATE CONTRACTORS PAYMENT - OTHER,"2,159.89",Social Community Care Supplies & Service.Children.NA
09/04/2015,BUSINESS TRANSFORMATION,Specialist Computer Centers Plc,ICT MAINTENANCE AND SUPPORT,"2,015.00",Information Communication Technology.Services.NA
09/04/2015,"REGENERATION, PLANNING & NEIGHBOURHOODS",Access Sport CIO,ARTS AND LEISURE COSTS,"1,680.00",Arts & Leisure Services.Sport & Fitness.NA
09/04/2015,ADULT SOCIAL CARE,Lambeth Mencap_d,DOMICILIARY CARE - THIRD PARTY,"1,604.48",Social Community Care Supplies & Service.Adult.Domiciliary Care
09/04/2015,CAPITAL CC,Apollo Property Services Group Ltd,BUILDING ALTERATIONS AND MATERIALS,"1,590.79","Works - Construction, Repair & Maint.Buildings.Construction"
09/04/2015,CHILDREN'S SERVICES,Holmdene Housing Ltd,PRIVATE CONTRACTORS PAYMENT - OTHER,"1,512.00",Social Community Care Supplies & Service.Children.NA
09/04/2015,CHILDREN'S SERVICES,Chrysalis Care,SUPPORTED OTHER ACCOMMODATION - PRIVATE CONTRACTORS PAYMENT,"1,452.97",Social Community Care Supplies & Service.Children.Fostering
09/04/2015,ADULT SOCIAL CARE,Lambeth Mencap_d,DOMICILIARY CARE - THIRD PARTY,"1,255.68",Social Community Care Supplies & Service.Adult.Domiciliary Care
09/04/2015,ADULT SOCIAL CARE,Lambeth Mencap_d,DOMICILIARY CARE - THIRD PARTY,"1,177.20",Social Community Care Supplies & Service.Adult.Domiciliary Care
09/04/2015,"STRATEGY & COMMISSIONING - CHILDREN, DISABILITIES & PUBLIC HEALTH",Release Legal Emergency & Drug Service Ltd,PAYMENT TO HEALTH AUTHORITIES,"1,158.00",Healthcare.Public Health.NA
09/04/2015,ADULT SOCIAL CARE,Lambeth Mencap_d,DOMICILIARY CARE - THIRD PARTY,"1,116.16",Social Community Care Supplies & Service.Adult.Domiciliary Care
09/04/2015,ADULT SOCIAL CARE,Lambeth Mencap_d,DOMICILIARY CARE - THIRD PARTY,"1,046.40",Social Community Care Supplies & Service.Adult.Domiciliary Care
09/04/2015,CAPITAL CC,Apollo Property Services Group Ltd,BUILDING ALTERATIONS AND MATERIALS,877.42,"Works - Construction, Repair & Maint.Buildings.Construction"
09/04/2015,ADULT SOCIAL CARE,Lambeth Mencap_d,DOMICILIARY CARE - THIRD PARTY,872.00,Social Community Care Supplies & Service.Adult.Domiciliary Care
09/04/2015,ADULT SOCIAL CARE,Lambeth Mencap_d,DOMICILIARY CARE - THIRD PARTY,802.24,Social Community Care Supplies & Service.Adult.Domiciliary Care
09/04/2015,HUMAN RESOURCES AND ORGANISATIONAL DEVELOPMENT,Amy Swinnerton & Associates Ltd,STAFF DEVELOPMENT AND TRAINING,700.00,Human Resources.Training & Conferences.Training
09/04/2015,ADULT SOCIAL CARE,Medacs Homecare,DOMICILIARY CARE - THIRD PARTY,693.52,Social Community Care Supplies & Service.Adult.Domiciliary Care
09/04/2015,ADULT SOCIAL CARE,Stockwellcare Support Services Ltd,DOMICILIARY CARE - THIRD PARTY,685.65,Healthcare.Public Health.NA
09/04/2015,HUMAN RESOURCES AND ORGANISATIONAL DEVELOPMENT,Sara Bubb Associates Ltd,CONSULTANCY FEES,660.00,Consultancy.Business.NA
09/04/2015,"REGENERATION, PLANNING & NEIGHBOURHOODS",Lambeth Lighting Services,RESPONSIVE REPAIRS - BUILDING,648.00,Highway Equipment & Materials.Street Lighting.NA
09/04/2015,ADULT SOCIAL CARE,Lambeth Mencap_d,DOMICILIARY CARE - THIRD PARTY,575.52,Social Community Care Supplies & Service.Adult.Domiciliary Care
09/04/2015,ADULT SOCIAL CARE,Lambeth Mencap_d,DOMICILIARY CARE - THIRD PARTY,558.08,Social Community Care Supplies & Service.Adult.Domiciliary Care
09/04/2015,ADULT SOCIAL CARE,Lambeth Mencap_d,DOMICILIARY CARE - THIRD PARTY,558.08,Social Community Care Supplies & Service.Adult.Domiciliary Care
09/04/2015,HUMAN RESOURCES AND ORGANISATIONAL DEVELOPMENT,S A Associates Management Training Ltd,HEALTH AND SAFETY WORKS,550.00,Health & Safety.Products.NA
09/04/2015,ADULT SOCIAL CARE,Unique Personnel (Uk) Ltd,DOMICILIARY CARE - THIRD PARTY,538.04,Social Community Care Supplies & Service.Disabled Children.NA
09/04/2015,ADULT SOCIAL CARE,Lambeth Mencap_d,DOMICILIARY CARE - THIRD PARTY,523.20,Social Community Care Supplies & Service.Adult.Domiciliary Care
09/04/2015,ADULT SOCIAL CARE,Lambeth Mencap_d,DOMICILIARY CARE - THIRD PARTY,523.20,Social Community Care Supplies & Service.Adult.Domiciliary Care
09/04/2015,"REGENERATION, PLANNING & NEIGHBOURHOODS",Lambeth Lighting Services,RESPONSIVE REPAIRS - BUILDING,(704.40),Highway Equipment & Materials.Street Lighting.NA
09/04/2015,CHILDREN'S SERVICES,Holmdene Housing Ltd,PRIVATE CONTRACTORS PAYMENT - OTHER,"(2,159.89)",Social Community Care Supplies & Service.Children.NA
09/04/2015,"STRATEGY & COMMISSIONING - CHILDREN, DISABILITIES & PUBLIC HEALTH",Sefgrove Chemist,PAYMENT TO HEALTH AUTHORITIES,"(2,244.00)",Healthcare.Public Health.NA
09/04/2015,"REGENERATION, PLANNING & NEIGHBOURHOODS",Lambeth Lighting Services,RESPONSIVE REPAIRS - BUILDING,"(2,412.85)",Highway Equipment & Materials.Street Lighting.NA
10/04/2015,BUSINESS & CUSTOMER SERVICES,Capita Business Services Ltd,CONSULTANCY FEES,"571,709.85",Consultancy.Business.NA
10/04/2015,CAPITAL CC,F M Conway Ltd_d,"MAINTENANCE - EQUIPMENT, FURNITURE AND MATERIALS","122,662.27","Works - Construction, Repair & Maint.Roads.Repair & Maintenance"
10/04/2015,BUSINESS & CUSTOMER SERVICES,Heywood Ltd,ICT SOFTWARE,"73,177.43",Information Communication Technology.Software.Customised & Bespoke
10/04/2015,CAPITAL CC,F M Conway Ltd_d,"MAINTENANCE - EQUIPMENT, FURNITURE AND MATERIALS","58,481.61","Works - Construction, Repair & Maint.Roads.Repair & Maintenance"
10/04/2015,CAPITAL CC,Pellings LLP,BUILDING ALTERATIONS AND MATERIALS,"46,348.79","Works - Construction, Repair & Maint.Consultancy.NA"
10/04/2015,CAPITAL CC,Pellings LLP,CONSULTANCY FEES,"46,348.79","Works - Construction, Repair & Maint.Consultancy.NA"
10/04/2015,CAPITAL CC,F M Conway Ltd_d,BUILDING ALTERATIONS AND MATERIALS,"38,156.45","Works - Construction, Repair & Maint.Roads.Repair & Maintenance"
10/04/2015,ADULT SOCIAL CARE,Allied Healthcare (UK) Ltd,DOMICILIARY CARE - THIRD PARTY,"37,675.22",Social Community Care Supplies & Service.Adult.Domiciliary Care
10/04/2015,CAPITAL CC,F M Conway Ltd_d,"MAINTENANCE - EQUIPMENT, FURNITURE AND MATERIALS","25,660.29","Works - Construction, Repair & Maint.Roads.Repair & Maintenance"
10/04/2015,BUSINESS TRANSFORMATION,Virgin Media Business,ICT HARDWARE,"22,483.94",Information Communication Technology.Hardware.NA
10/04/2015,CAPITAL CC,F M Conway Ltd_d,"MAINTENANCE - EQUIPMENT, FURNITURE AND MATERIALS","21,771.09","Works - Construction, Repair & Maint.Roads.Repair & Maintenance"
10/04/2015,MAJOR CAPITAL PROGRAMMES (HRA),HTA Architects Ltd,"MAINTENANCE - EQUIPMENT, FURNITURE AND MATERIALS","18,170.00","Works - Construction, Repair & Maint.Architect.NA"
10/04/2015,HOUSING MANAGEMENT SERVICES,BT Telephone Payment Centre,LAND LINE TELEPHONE COSTS,"16,174.15",Information Communication Technology.Telecommunications.Fixed
10/04/2015,BUSINESS & CUSTOMER SERVICES,Emmaus South Lambeth Community,OTHER SOCIAL SERVICES TRANSFER PAYMENTS,"15,345.00",Social Community Care Supplies & Service.Adult.Homeless Support
10/04/2015,BUSINESS & CUSTOMER SERVICES,Heywood Ltd,ICT SOFTWARE,"14,700.00",Information Communication Technology.Software.Customised & Bespoke
10/04/2015,CHILDREN'S SERVICES,Holmdene Housing Ltd,PRIVATE CONTRACTORS PAYMENT - OTHER,"13,950.00",Social Community Care Supplies & Service.Children.NA
10/04/2015,"REGENERATION, PLANNING & NEIGHBOURHOODS",F M Conway Ltd_d,"MAINTENANCE - EQUIPMENT, FURNITURE AND MATERIALS","9,978.08","Works - Construction, Repair & Maint.Roads.Repair & Maintenance"
10/04/2015,BUSINESS TRANSFORMATION,Virgin Media Business,ICT MAINTENANCE AND SUPPORT,"9,900.00",Information Communication Technology.Services.NA
10/04/2015,HUMAN RESOURCES AND ORGANISATIONAL DEVELOPMENT,Heywood Ltd,ICT LICENCES,"6,941.61",Information Communication Technology.Services.Maintenance & Support
10/04/2015,ADULT SOCIAL CARE,BT Global Services,LAND LINE TELEPHONE COSTS,"6,795.05",Information Communication Technology.Telecommunications.Fixed
10/04/2015,HOUSING MANAGEMENT SERVICES,Gas Advisory Services Ltd,CYCLICAL/PLANNED MAINTENANCE - MECHANICAL AND ELECTRICAL,"6,165.80","Works - Construction, Repair & Maint.Consultancy.NA"
10/04/2015,POLICY & COMMUNICATIONS,Serious Stages LTD,EVENTS,"6,100.00",Arts & Leisure Services.Events.NA
10/04/2015,"REGENERATION, PLANNING & NEIGHBOURHOODS",British Telecommunications plc,LAND LINE TELEPHONE COSTS,"5,830.50",Information Communication Technology.Telecommunications.NA
10/04/2015,"REGENERATION, PLANNING & NEIGHBOURHOODS",British Telecommunications plc,LAND LINE TELEPHONE COSTS,"5,777.94",Information Communication Technology.Telecommunications.NA
10/04/2015,CHILDREN'S SERVICES,Saint Christopher's Fellowship,FOSTERING AGENCY PLACEMENTS - PRIVATE CONTRACTORS PAYMENT,"5,422.71",Social Community Care Supplies & Service.Children.Fostering
10/04/2015,CHILDREN'S SERVICES,Saint Christopher's Fellowship,FOSTERING AGENCY PLACEMENTS - PRIVATE CONTRACTORS PAYMENT,"5,422.71",Social Community Care Supplies & Service.Children.Fostering
10/04/2015,"REGENERATION, PLANNING & NEIGHBOURHOODS",Thames Water Utilities Ltd_d,WATER AND SEWERAGE,"5,366.78",Environmental Services.Water Assessment & Treatment.NA
10/04/2015,FINANCE,Lambert Smith Hampton Group Ltd,CYCLICAL/PLANNED MAINTENANCE - BUILDING,"4,615.01",Consultancy.Technical & Feasibility.NA
10/04/2015,CAPITAL CC,Pellings LLP,BUILDING ALTERATIONS AND MATERIALS,"4,578.49","Works - Construction, Repair & Maint.Consultancy.NA"
10/04/2015,CAPITAL CC,Pellings LLP,BUILDING ALTERATIONS AND MATERIALS,"4,578.49","Works - Construction, Repair & Maint.Consultancy.NA"
10/04/2015,CAPITAL CC,Euro Contracts (London) Ltd,GRANTS AND CONTRIBUTIONS,"4,551.50",Financial Services.Grants.NA
10/04/2015,"REGENERATION, PLANNING & NEIGHBOURHOODS",British Telecommunications plc,LAND LINE TELEPHONE COSTS,"4,384.35",Information Communication Technology.Telecommunications.NA
10/04/2015,"REGENERATION, PLANNING & NEIGHBOURHOODS",Thames Water Utilities Ltd_d,WATER AND SEWERAGE,"4,196.80",Environmental Services.Water Assessment & Treatment.NA
10/04/2015,STRATEGY & COMMISSIONING - HOUSING & COMMUNITIES,Tailormade Productions,ARTS AND LEISURE COSTS,"3,750.00",Arts & Leisure Services.Organised Activities.NA
10/04/2015,CHILDREN'S SERVICES,Holmdene Housing Ltd,PRIVATE CONTRACTORS PAYMENT - OTHER,"3,746.69",Social Community Care Supplies & Service.Children.NA
10/04/2015,CHILDREN'S SERVICES,Holmdene Housing Ltd,PRIVATE CONTRACTORS PAYMENT - OTHER,"3,746.69",Social Community Care Supplies & Service.Children.NA
10/04/2015,CHILDREN'S SERVICES,Holmdene Housing Ltd,PRIVATE CONTRACTORS PAYMENT - OTHER,"3,746.69",Social Community Care Supplies & Service.Children.NA
10/04/2015,CHILDREN'S SERVICES,Holmdene Housing Ltd,PRIVATE CONTRACTORS PAYMENT - OTHER,"3,746.69",Social Community Care Supplies & Service.Children.NA
10/04/2015,CHILDREN'S SERVICES,Safehouses Ltd,IN HOUSE FOSTER CARE PLACEMENTS - PRIVATE CONTRACTORS PAYMENT,"3,541.75",Social Community Care Supplies & Service.Children.Fostering
10/04/2015,HOUSING MANAGEMENT SERVICES,Gas Advisory Services Ltd,CYCLICAL/PLANNED MAINTENANCE - MECHANICAL AND ELECTRICAL,"3,459.12","Works - Construction, Repair & Maint.Consultancy.NA"
10/04/2015,"REGENERATION, PLANNING & NEIGHBOURHOODS",F M Conway Ltd_d,CYCLICAL/PLANNED MAINTENANCE - BUILDING,"3,425.06","Works - Construction, Repair & Maint.Roads.Repair & Maintenance"
10/04/2015,CHILDREN'S SERVICES,National Fostering Agency,IN HOUSE FOSTER CARE PLACEMENTS - PRIVATE CONTRACTORS PAYMENT,"3,255.00",Social Community Care Supplies & Service.Children.Fostering
10/04/2015,CHILDREN'S SERVICES,Holmdene Housing Ltd,SUPPORTED OTHER ACCOMMODATION - PRIVATE CONTRACTORS PAYMENT,"3,188.69",Social Community Care Supplies & Service.Adult.Residential Homes for Older People
10/04/2015,"STRATEGY & COMMISSIONING - CHILDREN, DISABILITIES & PUBLIC HEALTH",Futures Theatre Company,PAYMENTS TO VOLUNTARY SECTOR,"3,173.00",Financial Services.Grants.NA
10/04/2015,CHILDREN'S SERVICES,NLH Partnership Ltd,STAFF DEVELOPMENT AND TRAINING,"3,160.00",Human Resources.Training & Conferences.Training
10/04/2015,HOUSING MANAGEMENT SERVICES,Japanese Knotweed Ltd,GROUNDS MAINTENANCE,"3,152.00",Horticultural.Weed Control.NA
10/04/2015,CHILDREN'S SERVICES,Sunbeam Fostering Agency Ltd,IN HOUSE FOSTER CARE PLACEMENTS - PRIVATE CONTRACTORS PAYMENT,"3,095.57",Social Community Care Supplies & Service.Children.Fostering
10/04/2015,CHILDREN'S SERVICES,Sunbeam Fostering Agency Ltd,IN HOUSE FOSTER CARE PLACEMENTS - PRIVATE CONTRACTORS PAYMENT,"3,095.57",Social Community Care Supplies & Service.Children.Fostering
10/04/2015,CHILDREN'S SERVICES,Sunbeam Fostering Agency Ltd,FOSTERING AGENCY PLACEMENTS - PRIVATE CONTRACTORS PAYMENT,"3,064.35",Social Community Care Supplies & Service.Children.Fostering
10/04/2015,CHILDREN'S SERVICES,Sunbeam Fostering Agency Ltd,FOSTERING AGENCY PLACEMENTS - PRIVATE CONTRACTORS PAYMENT,"3,064.35",Social Community Care Supplies & Service.Children.Fostering
10/04/2015,CHILDREN'S SERVICES,Sunbeam Fostering Agency Ltd,IN HOUSE FOSTER CARE PLACEMENTS - PRIVATE CONTRACTORS PAYMENT,"3,055.71",Social Community Care Supplies & Service.Children.Fostering
10/04/2015,"REGENERATION, PLANNING & NEIGHBOURHOODS",British Telecommunications plc,LAND LINE TELEPHONE COSTS,"2,928.55",Information Communication Technology.Telecommunications.NA
10/04/2015,HOUSING MANAGEMENT SERVICES,Gas Advisory Services Ltd,RESPONSIVE REPAIRS - BUILDING,"2,862.72","Works - Construction, Repair & Maint.Consultancy.NA"
10/04/2015,HOUSING MANAGEMENT SERVICES,Gas Advisory Services Ltd,RESPONSIVE REPAIRS - BUILDING,"2,803.08","Works - Construction, Repair & Maint.Consultancy.NA"
10/04/2015,"REGENERATION, PLANNING & NEIGHBOURHOODS",British Telecommunications plc,LAND LINE TELEPHONE COSTS,"2,787.01",Information Communication Technology.Telecommunications.NA
10/04/2015,"REGENERATION, PLANNING & NEIGHBOURHOODS",British Telecommunications plc,LAND LINE TELEPHONE COSTS,"2,688.50",Information Communication Technology.Telecommunications.NA
10/04/2015,CHILDREN'S SERVICES,Holmdene Housing Ltd,PRIVATE CONTRACTORS PAYMENT - OTHER,"2,590.79",Social Community Care Supplies & Service.Children.Residential Care
10/04/2015,CHILDREN'S SERVICES,Holmdene Housing Ltd,SUPPORTED OTHER ACCOMMODATION - PRIVATE CONTRACTORS PAYMENT,"2,590.79",Social Community Care Supplies & Service.Adult.Residential Homes for Older People
10/04/2015,CHILDREN'S SERVICES,Holmdene Housing Ltd,PRIVATE CONTRACTORS PAYMENT - OTHER,"2,391.31",Social Community Care Supplies & Service.Children.Residential Care
10/04/2015,CHILDREN'S SERVICES,Holmdene Housing Ltd,PRIVATE CONTRACTORS PAYMENT - OTHER,"2,391.31",Social Community Care Supplies & Service.Children.Residential Care
10/04/2015,CHILDREN'S SERVICES,Holmdene Housing Ltd,SUPPORTED OTHER ACCOMMODATION - PRIVATE CONTRACTORS PAYMENT,"2,391.31",Social Community Care Supplies & Service.Adult.Homeless Support
10/04/2015,CHILDREN'S SERVICES,Holmdene Housing Ltd,PRIVATE CONTRACTORS PAYMENT - OTHER,"2,391.31",Social Community Care Supplies & Service.Children.NA
10/04/2015,CHILDREN'S SERVICES,Holmdene Housing Ltd,PRIVATE CONTRACTORS PAYMENT - OTHER,"2,391.31",Social Community Care Supplies & Service.Children.Residential Care
10/04/2015,"REGENERATION, PLANNING & NEIGHBOURHOODS",Viridor Waste Management Ltd,LEVIES PAID,"2,308.23",Environmental Services.Waste Management.NA
10/04/2015,CHILDREN'S SERVICES,Saint Christopher's Fellowship,IN HOUSE FOSTER CARE PLACEMENTS - PRIVATE CONTRACTORS PAYMENT,"2,172.58",Social Community Care Supplies & Service.Children.Fostering
10/04/2015,ADULT SOCIAL CARE,Unique Personnel (Uk) Ltd,DOMICILIARY CARE - THIRD PARTY,"2,158.50",Social Community Care Supplies & Service.Disabled Children.NA
10/04/2015,CHILDREN'S SERVICES,Holmdene Housing Ltd,SUPPORTED OTHER ACCOMMODATION - PRIVATE CONTRACTORS PAYMENT,"2,112.31",Social Community Care Supplies & Service.Adult.Homeless Support
10/04/2015,BUSINESS & CUSTOMER SERVICES,Emmaus South Lambeth Community,OTHER SOCIAL SERVICES TRANSFER PAYMENTS,"2,085.00",Social Community Care Supplies & Service.Adult.Homeless Support
10/04/2015,HUMAN RESOURCES AND ORGANISATIONAL DEVELOPMENT,The Hay Group Management Ltd,STAFF DEVELOPMENT AND TRAINING,"2,000.00",Human Resources.Training & Conferences.Training
10/04/2015,CHILDREN'S SERVICES,Holmdene Housing Ltd,SUPPORTED OTHER ACCOMMODATION - PRIVATE CONTRACTORS PAYMENT,"1,992.90",Social Community Care Supplies & Service.Adult.Residential Homes for Older People
10/04/2015,CHILDREN'S SERVICES,Holmdene Housing Ltd,SUPPORTED OTHER ACCOMMODATION - PRIVATE CONTRACTORS PAYMENT,"1,873.21",Social Community Care Supplies & Service.Adult.Residential Homes for Older People
10/04/2015,CHILDREN'S SERVICES,Holmdene Housing Ltd,PRIVATE CONTRACTORS PAYMENT - OTHER,"1,873.21",Social Community Care Supplies & Service.Children.NA
10/04/2015,CHILDREN'S SERVICES,Holmdene Housing Ltd,PRIVATE CONTRACTORS PAYMENT - OTHER,"1,873.21",Social Community Care Supplies & Service.Children.Residential Care
10/04/2015,CHILDREN'S SERVICES,Holmdene Housing Ltd,PRIVATE CONTRACTORS PAYMENT - OTHER,"1,873.21",Social Community Care Supplies & Service.Children.NA
10/04/2015,BUSINESS & CUSTOMER SERVICES,Emmaus South Lambeth Community,OTHER SOCIAL SERVICES TRANSFER PAYMENTS,"1,800.00",Social Community Care Supplies & Service.Adult.Homeless Support
10/04/2015,CHILDREN'S SERVICES,Holmdene Housing Ltd,SUPPORTED OTHER ACCOMMODATION - PRIVATE CONTRACTORS PAYMENT,"1,793.69",Social Community Care Supplies & Service.Adult.Residential Homes for Older People
10/04/2015,CHILDREN'S SERVICES,Holmdene Housing Ltd,SUPPORTED OTHER ACCOMMODATION - PRIVATE CONTRACTORS PAYMENT,"1,793.69",Social Community Care Supplies & Service.Adult.Homeless Support
10/04/2015,"REGENERATION, PLANNING & NEIGHBOURHOODS",F M Conway Ltd_d,RESPONSIVE REPAIRS - BUILDING,"1,733.48","Works - Construction, Repair & Maint.Roads.Repair & Maintenance"
10/04/2015,CHILDREN'S SERVICES,Holmdene Housing Ltd,SUPPORTED OTHER ACCOMMODATION - PRIVATE CONTRACTORS PAYMENT,"1,674.00",Social Community Care Supplies & Service.Adult.Homeless Support
10/04/2015,CHILDREN'S SERVICES,Holmdene Housing Ltd,SUPPORTED OTHER ACCOMMODATION - PRIVATE CONTRACTORS PAYMENT,"1,674.00",Social Community Care Supplies & Service.Adult.Residential Homes for Older People
10/04/2015,CHILDREN'S SERVICES,Holmdene Housing Ltd,RESIDENTIAL PLACEMENTS - PRIVATE CONTRACTORS PAYMENT,"1,674.00",Social Community Care Supplies & Service.Adult.Residential Homes for Older People
10/04/2015,CHILDREN'S SERVICES,Holmdene Housing Ltd,RESIDENTIAL PLACEMENTS - PRIVATE CONTRACTORS PAYMENT,"1,674.00",Social Community Care Supplies & Service.Adult.Residential Homes for Older People
10/04/2015,CHILDREN'S SERVICES,Holmdene Housing Ltd,SUPPORTED OTHER ACCOMMODATION - PRIVATE CONTRACTORS PAYMENT,"1,674.00",Social Community Care Supplies & Service.Adult.Homeless Support
10/04/2015,CHILDREN'S SERVICES,Holmdene Housing Ltd,RESIDENTIAL PLACEMENTS - PRIVATE CONTRACTORS PAYMENT,"1,674.00",Social Community Care Supplies & Service.Adult.Residential Care
10/04/2015,CHILDREN'S SERVICES,Holmdene Housing Ltd,RESIDENTIAL PLACEMENTS - PRIVATE CONTRACTORS PAYMENT,"1,674.00",Social Community Care Supplies & Service.Adult.Residential Care
10/04/2015,CHILDREN'S SERVICES,Holmdene Housing Ltd,SUPPORTED OTHER ACCOMMODATION - PRIVATE CONTRACTORS PAYMENT,"1,674.00",Social Community Care Supplies & Service.Adult.Residential Homes for Older People
10/04/2015,CHILDREN'S SERVICES,Holmdene Housing Ltd,SUPPORTED OTHER ACCOMMODATION - PRIVATE CONTRACTORS PAYMENT,"1,674.00",Social Community Care Supplies & Service.Adult.Residential Homes for Older People
10/04/2015,ADULT SOCIAL CARE,Penna Plc,"ADVERTISING, PUBLICITY AND MARKETING","1,630.00",Facilities & Management Services.Advertising.Promotional & Recruitment
10/04/2015,"REGENERATION, PLANNING & NEIGHBOURHOODS (HRA)",The Furnishing Service Ltd,"PURCHASE - EQUIPMENT, FURNITURE AND MATERIALS","1,515.41",Furniture & Soft Furnishings.Domestic Furniture.NA
10/04/2015,HOUSING MANAGEMENT SERVICES,Japanese Knotweed Ltd,GROUNDS MAINTENANCE,"1,422.43",Horticultural.Weed Control.NA
10/04/2015,CHILDREN'S SERVICES,Holmdene Housing Ltd,RESIDENTIAL PLACEMENTS - PRIVATE CONTRACTORS PAYMENT,"1,404.00",Social Community Care Supplies & Service.Adult.Residential Care
10/04/2015,ADULT SOCIAL CARE,Bluebird Care Lambeth,DOMICILIARY CARE - THIRD PARTY,"1,400.00",Social Community Care Supplies & Service.Adult.Domiciliary Care
10/04/2015,ADULT SOCIAL CARE,Stockwellcare Support Services Ltd,DOMICILIARY CARE - THIRD PARTY,"1,379.28",Healthcare.Public Health.NA
10/04/2015,ADULT SOCIAL CARE,Bluebird Care Lambeth,DOMICILIARY CARE - THIRD PARTY,"1,372.00",Social Community Care Supplies & Service.Adult.Domiciliary Care
10/04/2015,CHILDREN'S SERVICES,Kindercare Fostering Ltd,IN HOUSE FOSTER CARE PLACEMENTS - PRIVATE CONTRACTORS PAYMENT,"1,337.05",Social Community Care Supplies & Service.Children.Fostering
10/04/2015,ADULT SOCIAL CARE,BT Global Services,LAND LINE TELEPHONE COSTS,"1,283.62",Information Communication Technology.Telecommunications.Fixed
10/04/2015,"REGENERATION, PLANNING & NEIGHBOURHOODS",Hays Specialist Recruitment,AGENCY STAFF,"1,242.51",Human Resources.Temporary & Agency Staff.NA
10/04/2015,CHILDREN'S SERVICES,Holmdene Housing Ltd,PRIVATE CONTRACTORS PAYMENT - OTHER,"1,195.79",Social Community Care Supplies & Service.Children.NA
10/04/2015,NO RECOURSE TO PUBLIC FUNDS,Family Mosaic,SUPPORTED OTHER ACCOMMODATION - PRIVATE CONTRACTORS PAYMENT,"1,187.04",Social Community Care Supplies & Service.Adult.Homeless Support
10/04/2015,MAJOR CAPITAL PROGRAMMES,Argos Business Solutions,"PURCHASE - EQUIPMENT, FURNITURE AND MATERIALS","1,184.85",Furniture & Soft Furnishings.Office Furniture.NA
10/04/2015,ADULT SOCIAL CARE,Holistic Community Care Ltd,DOMICILIARY CARE - THIRD PARTY,"1,134.47",Social Community Care Supplies & Service.Adult.Domiciliary Care
10/04/2015,ADULT SOCIAL CARE,Holistic Community Care Ltd,DOMICILIARY CARE - THIRD PARTY,"1,078.94",Social Community Care Supplies & Service.Adult.Domiciliary Care
10/04/2015,EDUCATION & LEARNING,Plastor Ltd,PROFESSIONAL SERVICES - GENERAL,"1,057.00",Education.Library Services.NA
10/04/2015,HOUSING MANAGEMENT SERVICES,Gas Advisory Services Ltd,CYCLICAL/PLANNED MAINTENANCE - MECHANICAL AND ELECTRICAL,"1,013.88","Works - Construction, Repair & Maint.Consultancy.NA"
10/04/2015,ADULT SOCIAL CARE,Red Alert Ltd,SECURITY SERVICES (EXCLUDING PREMISES),"1,000.00",Facilities & Management Services.Security.NA
10/04/2015,ADULT SOCIAL CARE,Unique Personnel (Uk) Ltd,DOMICILIARY CARE - THIRD PARTY,997.75,Social Community Care Supplies & Service.Disabled Children.NA
10/04/2015,"REGENERATION, PLANNING & NEIGHBOURHOODS",British Telecommunications plc,LAND LINE TELEPHONE COSTS,977.35,Information Communication Technology.Telecommunications.NA
10/04/2015,EDUCATION & LEARNING,EDF Energy Plc,ELECTRICITY,969.46,Utilities.Electricity.NA
10/04/2015,"REGENERATION, PLANNING & NEIGHBOURHOODS",London Weekly Newspapers Ltd,"ADVERTISING, PUBLICITY AND MARKETING",960.00,Facilities & Management Services.Advertising.Statutory
10/04/2015,POLICY & COMMUNICATIONS,Veolia ES (UK) Ltd,OPEN SPACES WORKS,934.16,"Works - Construction, Repair & Maint.Open Spaces.Repair & Maintenance"
10/04/2015,ADULT SOCIAL CARE,Unique Personnel (Uk) Ltd,DOMICILIARY CARE - THIRD PARTY,866.00,Social Community Care Supplies & Service.Disabled Children.NA
10/04/2015,ADULT SOCIAL CARE,Unique Personnel (Uk) Ltd,DOMICILIARY CARE - THIRD PARTY,858.00,Social Community Care Supplies & Service.Disabled Children.NA
10/04/2015,ADULT SOCIAL CARE,Red Alert Ltd,SECURITY SERVICES (EXCLUDING PREMISES),809.35,Facilities & Management Services.Security.NA
10/04/2015,CHILDREN'S SERVICES,Reconstruct Ltd,STAFF DEVELOPMENT AND TRAINING,800.00,Human Resources.Training & Conferences.Training
10/04/2015,CHILDREN'S SERVICES,Reconstruct Ltd,STAFF DEVELOPMENT AND TRAINING,800.00,Human Resources.Training & Conferences.Training
10/04/2015,CHILDREN'S SERVICES,Reconstruct Ltd,STAFF DEVELOPMENT AND TRAINING,800.00,Human Resources.Training & Conferences.Training
10/04/2015,ADULT SOCIAL CARE,Holistic Community Care Ltd,DOMICILIARY CARE - THIRD PARTY,778.23,Social Community Care Supplies & Service.Adult.Domiciliary Care
10/04/2015,ADULT SOCIAL CARE,Unique Personnel (Uk) Ltd,DOMICILIARY CARE - THIRD PARTY,775.00,Social Community Care Supplies & Service.Disabled Children.NA
10/04/2015,ADULT SOCIAL CARE,Bluebird Care Lambeth,DOMICILIARY CARE - THIRD PARTY,764.00,Social Community Care Supplies & Service.Adult.Domiciliary Care
10/04/2015,BUSINESS & CUSTOMER SERVICES,Age UK Lambeth,OTHER SOCIAL SERVICES TRANSFER PAYMENTS,761.00,Social Community Care Supplies & Service.Adult.Residential Care
10/04/2015,"REGENERATION, PLANNING & NEIGHBOURHOODS",F M Conway Ltd_d,RESPONSIVE REPAIRS - BUILDING,665.75,"Works - Construction, Repair & Maint.Roads.Repair & Maintenance"
10/04/2015,ADULT SOCIAL CARE,Unique Personnel (Uk) Ltd,DOMICILIARY CARE - THIRD PARTY,664.00,Social Community Care Supplies & Service.Disabled Children.NA
10/04/2015,HUMAN RESOURCES AND ORGANISATIONAL DEVELOPMENT,Sara Bubb Associates Ltd,CONSULTANCY FEES,660.00,Consultancy.Business.NA
10/04/2015,ADULT SOCIAL CARE,Bluebird Care Lambeth,DOMICILIARY CARE - THIRD PARTY,616.00,Social Community Care Supplies & Service.Adult.Domiciliary Care
10/04/2015,MAJOR CAPITAL PROGRAMMES,PEP Ltd,EVENTS,615.00,Arts & Leisure Services.Events.NA
10/04/2015,"REGENERATION, PLANNING & NEIGHBOURHOODS",New Economics Foundation,FEES & CHARGES INCOME - OTHER,613.39,Consultancy.Strategic Planning.NA
10/04/2015,EDUCATION & LEARNING,EDF Energy Plc,ELECTRICITY,609.12,Utilities.Electricity.NA
10/04/2015,ADULT SOCIAL CARE,Holistic Community Care Ltd,DOMICILIARY CARE - THIRD PARTY,608.09,Social Community Care Supplies & Service.Adult.Domiciliary Care
10/04/2015,BUSINESS & CUSTOMER SERVICES,Courier Cars (London) Ltd,CLIENT TRANSPORT,596.36,Public Transport.Taxi Services.Non Staff
10/04/2015,ADULT SOCIAL CARE,Unique Personnel (Uk) Ltd,DOMICILIARY CARE - THIRD PARTY,537.75,Social Community Care Supplies & Service.Disabled Children.NA
10/04/2015,ADULT SOCIAL CARE,Stockwellcare Support Services Ltd,DOMICILIARY CARE - THIRD PARTY,525.80,Healthcare.Public Health.NA
10/04/2015,HOUSING MANAGEMENT SERVICES,Gas Advisory Services Ltd,RESPONSIVE REPAIRS - BUILDING,500.00,"Works - Construction, Repair & Maint.Consultancy.NA"
10/04/2015,HOUSING MANAGEMENT SERVICES,Gas Advisory Services Ltd,CYCLICAL/PLANNED MAINTENANCE - MECHANICAL AND ELECTRICAL,500.00,"Works - Construction, Repair & Maint.Consultancy.NA"
10/04/2015,HOUSING MANAGEMENT SERVICES,Gas Advisory Services Ltd,RESPONSIVE REPAIRS - BUILDING,500.00,"Works - Construction, Repair & Maint.Consultancy.NA"
10/04/2015,HOUSING MANAGEMENT SERVICES,Gas Advisory Services Ltd,CYCLICAL/PLANNED MAINTENANCE - MECHANICAL AND ELECTRICAL,500.00,"Works - Construction, Repair & Maint.Consultancy.NA"
10/04/2015,"REGENERATION, PLANNING & NEIGHBOURHOODS",Lambeth Table Tennis Club,ARTS AND LEISURE COSTS,500.00,Arts & Leisure Services.Sport & Fitness.NA
10/04/2015,HOUSING MANAGEMENT SERVICES,Gas Advisory Services Ltd,RESPONSIVE REPAIRS - BUILDING,(500.00),"Works - Construction, Repair & Maint.Consultancy.NA"
10/04/2015,HOUSING MANAGEMENT SERVICES,Gas Advisory Services Ltd,RESPONSIVE REPAIRS - BUILDING,(500.00),"Works - Construction, Repair & Maint.Consultancy.NA"
10/04/2015,CHILDREN'S SERVICES,Holmdene Housing Ltd,PRIVATE CONTRACTORS PAYMENT - OTHER,"(1,674.00)",Social Community Care Supplies & Service.Children.Residential Care
10/04/2015,CHILDREN'S SERVICES,Saint Christopher's Fellowship,FOSTERING AGENCY PLACEMENTS - PRIVATE CONTRACTORS PAYMENT,"(2,172.58)",Social Community Care Supplies & Service.Children.Fostering
10/04/2015,HOUSING MANAGEMENT SERVICES,Gas Advisory Services Ltd,RESPONSIVE REPAIRS - BUILDING,"(2,803.08)","Works - Construction, Repair & Maint.Consultancy.NA"
10/04/2015,HOUSING MANAGEMENT SERVICES,Gas Advisory Services Ltd,RESPONSIVE REPAIRS - BUILDING,"(2,862.72)","Works - Construction, Repair & Maint.Consultancy.NA"
10/04/2015,CHILDREN'S SERVICES,Saint Christopher's Fellowship,FOSTERING AGENCY PLACEMENTS - PRIVATE CONTRACTORS PAYMENT,"(5,422.71)",Social Community Care Supplies & Service.Children.Fostering
10/04/2015,CAPITAL CC,Pellings LLP,BUILDING ALTERATIONS AND MATERIALS,"(46,348.79)","Works - Construction, Repair & Maint.Consultancy.NA"
13/04/2015,CAPITAL CC,Mulalley & Co Ltd,FACILITIES MANAGEMENT,"705,043.66","Works - Construction, Repair & Maint.Buildings.Repair & Maintenance"
13/04/2015,CAPITAL CC,Mulalley & Co Ltd,FACILITIES MANAGEMENT,"310,014.02","Works - Construction, Repair & Maint.Buildings.Repair & Maintenance"
13/04/2015,CAPITAL CC,Mears Ltd,BUILDING ALTERATIONS AND MATERIALS,"307,845.02","Works - Construction, Repair & Maint.Buildings.Repair & Maintenance"
13/04/2015,"REGENERATION, PLANNING & NEIGHBOURHOODS",CVU_d,"MAINTENANCE - EQUIPMENT, FURNITURE AND MATERIALS","192,000.00","Works - Construction, Repair & Maint.Roads.Construction"
13/04/2015,CAPITAL CC,Mitie Property Services (UK) Ltd_d,BUILDING ALTERATIONS AND MATERIALS,"123,156.01","Works - Construction, Repair & Maint.Buildings.Construction"
13/04/2015,CAPITAL CC,Oco Ltd_d,BUILDING ALTERATIONS AND MATERIALS,"113,186.76",Building Construction Materials.Heating & Air Conditioning.NA
13/04/2015,CAPITAL CC,T Brown Group Ltd_d,BUILDING ALTERATIONS AND MATERIALS,"83,311.81",Building Construction Materials.Heating & Air Conditioning.NA
13/04/2015,CAPITAL CC,Morrison Facilities Services Ltd_d,FACILITIES MANAGEMENT,"72,478.93","Works - Construction, Repair & Maint.Buildings.Repair & Maintenance"
13/04/2015,CAPITAL CC,T Brown Group Ltd_d,BUILDING ALTERATIONS AND MATERIALS,"61,581.39",Building Construction Materials.Heating & Air Conditioning.NA
13/04/2015,CAPITAL CC,Oco Ltd_d,BUILDING ALTERATIONS AND MATERIALS,"53,354.80",Building Construction Materials.Heating & Air Conditioning.NA
13/04/2015,FINANCE,Collinstown Construction Ltd,"MAINTENANCE - EQUIPMENT, FURNITURE AND MATERIALS","50,137.96","Works - Construction, Repair & Maint.Buildings.Construction"
13/04/2015,ADULT SOCIAL CARE,South London & Maudsley (nhs) Trust,PRIVATE CONTRACTORS PAYMENT - OTHER,"50,000.00",Social Community Care Supplies & Service.Adult.NA
13/04/2015,SENIOR MANAGEMENT - NEIGHBOURHOODS & GROWTH,Palvinder Kudhail Associates Ltd,CONSULTANCY FEES,"49,000.00",Consultancy.Strategic Planning.NA
13/04/2015,ADULT SOCIAL CARE,Apetito Ltd,MEALS ON WHEELS - PRIVATE CONTRACTORS PAYMENT,"28,368.55",Catering.Social Care.NA
13/04/2015,CAPITAL CC,Morrison Facilities Services Ltd_d,BUILDING ALTERATIONS AND MATERIALS,"27,924.37","Works - Construction, Repair & Maint.Buildings.Repair & Maintenance"
13/04/2015,"REGENERATION, PLANNING & NEIGHBOURHOODS",CVU_d,"MAINTENANCE - EQUIPMENT, FURNITURE AND MATERIALS","24,000.00","Works - Construction, Repair & Maint.Roads.Construction"
13/04/2015,CAPITAL CC,Mitie Property Services (UK) Ltd_d,BUILDING ALTERATIONS AND MATERIALS,"19,371.44","Works - Construction, Repair & Maint.Buildings.Construction"
13/04/2015,CAPITAL CC,Virgin Media Business,ICT HARDWARE,"18,362.50",Information Communication Technology.Hardware.NA
13/04/2015,BUSINESS TRANSFORMATION,Virgin Media Business,LAND LINE TELEPHONE COSTS,"17,788.84",Information Communication Technology.Telecommunications.NA
13/04/2015,CAPITAL CC,Apollo Property Services Group Ltd,BUILDING ALTERATIONS AND MATERIALS,"17,610.63","Works - Construction, Repair & Maint.Buildings.Construction"
13/04/2015,HOUSING MANAGEMENT SERVICES,Morrison Facilities Services Ltd_d,DECORATION,"15,344.00",Building Construction Materials.Paint & Finishing.NA
13/04/2015,CAPITAL CC,Mitie Property Services (UK) Ltd_d,BUILDING ALTERATIONS AND MATERIALS,"13,823.27","Works - Construction, Repair & Maint.Buildings.Construction"
13/04/2015,BUSINESS TRANSFORMATION,Virgin Media Business,ICT MAINTENANCE AND SUPPORT,"13,485.00",Information Communication Technology.Services.NA
13/04/2015,HOUSING MANAGEMENT SERVICES,Morrison Facilities Services Ltd_d,DECORATION,"12,544.00",Building Construction Materials.Paint & Finishing.NA
13/04/2015,EDUCATION & LEARNING,The Link Primary School,PROFESSIONAL SERVICES - GENERAL,"11,379.00",Education.School Services.NA
13/04/2015,CAPITAL CC,F M Conway Ltd_d,"MAINTENANCE - EQUIPMENT, FURNITURE AND MATERIALS","11,316.35","Works - Construction, Repair & Maint.Roads.Repair & Maintenance"
13/04/2015,EDUCATION & LEARNING,Integrated Services Programme,IN HOUSE FOSTER CARE PLACEMENTS - PRIVATE CONTRACTORS PAYMENT,"10,499.97",Social Community Care Supplies & Service.Children.Fostering
13/04/2015,CAPITAL CC,J & U Services,BUILDING ALTERATIONS AND MATERIALS,"10,166.85",Building Construction Materials.Heating & Air Conditioning.NA
13/04/2015,HOUSING MANAGEMENT SERVICES,Playdale Playgrounds Ltd,"MAINTENANCE - EQUIPMENT, FURNITURE AND MATERIALS","10,015.00","Works - Construction, Repair & Maint.Buildings.Construction"
13/04/2015,"REGENERATION, PLANNING & NEIGHBOURHOODS",Westminster City Council,CONSULTANCY FEES,"10,000.00",Consultancy.Business.NA
13/04/2015,"REGENERATION, PLANNING & NEIGHBOURHOODS",South Bank Employers Group,CONSULTANCY FEES,"10,000.00",Consultancy.Strategic Planning.NA
13/04/2015,ADULT SOCIAL CARE,South London & Maudsley (nhs) Trust,AGENCY STAFF,"9,692.75",Human Resources.Temporary & Agency Staff.NA
13/04/2015,BUSINESS TRANSFORMATION,Vodafone Ltd,LAND LINE TELEPHONE COSTS,"9,100.00",Information Communication Technology.Telecommunications.Airwave
13/04/2015,HOUSING MANAGEMENT SERVICES,Lambeth Mediation Service,GRANTS AND CONTRIBUTIONS,"8,970.00",Human Resources.Training & Conferences.Training
13/04/2015,CAPITAL CC,Euro Contracts (London) Ltd,GRANTS AND CONTRIBUTIONS,"8,545.50",Financial Services.Grants.NA
13/04/2015,"REGENERATION, PLANNING & NEIGHBOURHOODS",IDOX Software Ltd,ICT SOFTWARE,"7,355.00",Information Communication Technology.Software.Customised & Bespoke
13/04/2015,STRATEGY & COMMISSIONING - HOUSING & COMMUNITIES,Centre for Econonic and Social Inclusion,FACILITIES MANAGEMENT,"5,937.00",Facilities & Management Services.Retail.NA
13/04/2015,"STRATEGY & COMMISSIONING - CHILDREN, DISABILITIES & PUBLIC HEALTH",CLPE - Centre for Literacy in Primary Education,PAYMENTS TO VOLUNTARY SECTOR,"5,714.25",Financial Services.Grants.NA
13/04/2015,"STRATEGY & COMMISSIONING - CHILDREN, DISABILITIES & PUBLIC HEALTH",CLPE - Centre for Literacy in Primary Education,PAYMENTS TO VOLUNTARY SECTOR,"5,714.25",Financial Services.Grants.NA
13/04/2015,CHILDREN'S SERVICES,Sankofa Care Ltd,IN HOUSE FOSTER CARE PLACEMENTS - PRIVATE CONTRACTORS PAYMENT,"5,544.66",Social Community Care Supplies & Service.Children.Fostering
13/04/2015,CHILDREN'S SERVICES,Sankofa Care Ltd,IN HOUSE FOSTER CARE PLACEMENTS - PRIVATE CONTRACTORS PAYMENT,"5,544.66",Social Community Care Supplies & Service.Children.Fostering
13/04/2015,CHILDREN'S SERVICES,Sankofa Care Ltd,IN HOUSE FOSTER CARE PLACEMENTS - PRIVATE CONTRACTORS PAYMENT,"5,544.66",Social Community Care Supplies & Service.Children.Fostering
13/04/2015,CHILDREN'S SERVICES,Sankofa Care Ltd,IN HOUSE FOSTER CARE PLACEMENTS - PRIVATE CONTRACTORS PAYMENT,"5,008.08",Social Community Care Supplies & Service.Children.Fostering
13/04/2015,HOUSING MANAGEMENT SERVICES,Morrison Facilities Services Ltd_d,DECORATION,"4,816.00",Building Construction Materials.Paint & Finishing.NA
13/04/2015,CAPITAL CC,Euro Contracts (London) Ltd,GRANTS AND CONTRIBUTIONS,"4,507.75",Financial Services.Grants.NA
13/04/2015,ADULT SOCIAL CARE,South London & Maudsley (nhs) Trust,PRIVATE CONTRACTORS PAYMENT - OTHER,"4,350.21",Social Community Care Supplies & Service.Adult.NA
13/04/2015,ADULT SOCIAL CARE,South London & Maudsley (nhs) Trust,PRIVATE CONTRACTORS PAYMENT - OTHER,"4,350.21",Social Community Care Supplies & Service.Adult.NA
13/04/2015,FINANCE,The Dulwich Estate,RENTS PAYABLE,"3,937.50",Financial Services.Rents.NA
13/04/2015,CAPITAL CC,Gardiner & Theobald LLP,PROFESSIONAL SERVICES - GENERAL,"3,000.00",Consultancy.Property.NA
13/04/2015,CAPITAL CC,Gardiner & Theobald LLP,PROFESSIONAL SERVICES - GENERAL,"3,000.00",Consultancy.Property.NA
13/04/2015,EDUCATION & LEARNING,W F Howes Ltd,"PURCHASE - EQUIPMENT, FURNITURE AND MATERIALS","2,715.30",Education.Literature.NA
13/04/2015,HUMAN RESOURCES AND ORGANISATIONAL DEVELOPMENT,Hitherfield Primary School,PROFESSIONAL SERVICES - GENERAL,"2,530.00",Education.School Services.NA
13/04/2015,STRATEGY & COMMISSIONING - NEIGHBOURHOODS,Merton & Lambeth Citizens Advice Bureaux Ltd,LEGAL FEES,"2,400.00",Legal Services.General Support.NA
13/04/2015,CHILDREN'S SERVICES,Sankofa Care Ltd,IN HOUSE FOSTER CARE PLACEMENTS - PRIVATE CONTRACTORS PAYMENT,"2,325.18",Social Community Care Supplies & Service.Children.Fostering
13/04/2015,ADULT SOCIAL CARE,L K Recruitment Ltd,DOMICILIARY CARE - THIRD PARTY,"2,141.72",Social Community Care Supplies & Service.Adult.Domiciliary Care
13/04/2015,"REGENERATION, PLANNING & NEIGHBOURHOODS",Keltic Ltd,"CLOTHES, UNIFORM AND LAUNDRY","2,141.70",Clothing.Protective.NA
13/04/2015,ADULT SOCIAL CARE,L K Recruitment Ltd,DOMICILIARY CARE - THIRD PARTY,"2,119.60",Social Community Care Supplies & Service.Adult.Domiciliary Care
13/04/2015,ADULT SOCIAL CARE,Carewatch (Lambeth),DOMICILIARY CARE - THIRD PARTY,"2,035.60",Social Community Care Supplies & Service.Adult.Domiciliary Care
13/04/2015,"STRATEGY & COMMISSIONING - CHILDREN, DISABILITIES & PUBLIC HEALTH",Blackfriars Settlement,PRIVATE CONTRACTORS PAYMENT - OTHER,"1,983.34",Social Community Care Supplies & Service.Children.Childcare Services
13/04/2015,STRATEGY & COMMISSIONING - NEIGHBOURHOODS,The Hay Group Management Ltd,STAFF DEVELOPMENT AND TRAINING,"1,923.10",Human Resources.Training & Conferences.Training
13/04/2015,ADULT SOCIAL CARE,Carewatch (Lambeth),DOMICILIARY CARE - THIRD PARTY,"1,769.60",Social Community Care Supplies & Service.Adult.Domiciliary Care
13/04/2015,STRATEGY & COMMISSIONING - NEIGHBOURHOODS,Age UK Lambeth,PRIVATE CONTRACTORS PAYMENT - OTHER,"1,700.00",Social Community Care Supplies & Service.Adult.NA
13/04/2015,ADULT SOCIAL CARE,Carewatch (Lambeth),DOMICILIARY CARE - THIRD PARTY,"1,613.12",Social Community Care Supplies & Service.Adult.Domiciliary Care
13/04/2015,ADULT SOCIAL CARE,L K Recruitment Ltd,DOMICILIARY CARE - THIRD PARTY,"1,589.64",Social Community Care Supplies & Service.Adult.Domiciliary Care
13/04/2015,ADULT SOCIAL CARE,L K Recruitment Ltd,DOMICILIARY CARE - THIRD PARTY,"1,589.64",Social Community Care Supplies & Service.Adult.Domiciliary Care
13/04/2015,FINANCE,British Gas Business,ELECTRICITY,"1,556.25",Utilities.Electricity.NA
13/04/2015,CORPORATE AFFAIRS,Tanya Callman,LEGAL FEES,"1,510.50",Legal Services.General Support.NA
13/04/2015,CHILDREN'S SERVICES,Kids & Play Mobile Creche,PRIVATE CONTRACTORS PAYMENT - OTHER,"1,399.60",Social Community Care Supplies & Service.Children.Creches
13/04/2015,ADULT SOCIAL CARE,Carewatch (Lambeth),DOMICILIARY CARE - THIRD PARTY,"1,347.12",Social Community Care Supplies & Service.Adult.Domiciliary Care
13/04/2015,HUMAN RESOURCES AND ORGANISATIONAL DEVELOPMENT,Penna Plc,"ADVERTISING, PUBLICITY AND MARKETING","1,120.00",Facilities & Management Services.Advertising.Promotional & Recruitment
13/04/2015,ADULT SOCIAL CARE,Carewatch (Lambeth),DOMICILIARY CARE - THIRD PARTY,"1,041.96",Social Community Care Supplies & Service.Adult.Domiciliary Care
13/04/2015,"REGENERATION, PLANNING & NEIGHBOURHOODS",F M Conway Ltd_d,RESPONSIVE REPAIRS - BUILDING,"1,028.28","Works - Construction, Repair & Maint.Roads.Repair & Maintenance"
13/04/2015,STRATEGY & COMMISSIONING - NEIGHBOURHOODS,Waterloo Action Centre,PRIVATE CONTRACTORS PAYMENT - OTHER,"1,000.00",Social Community Care Supplies & Service.Adult.Advice & Counselling Services
13/04/2015,HOUSING MANAGEMENT SERVICES,B&Q Plc,DECORATION,960.15,Building Construction Materials.Paint & Finishing.NA
13/04/2015,ADULT SOCIAL CARE,L K Recruitment Ltd,DOMICILIARY CARE - THIRD PARTY,896.16,Social Community Care Supplies & Service.Adult.Domiciliary Care
13/04/2015,"STRATEGY & COMMISSIONING - CHILDREN, DISABILITIES & PUBLIC HEALTH",Hertfordshire County Council,SPECIALIST EQUIPMENT FOR SERVICE PROVISION,849.95,Social Community Care Supplies & Service.Supplies.Equipment
13/04/2015,ADULT SOCIAL CARE,L K Recruitment Ltd,DOMICILIARY CARE - THIRD PARTY,846.00,Social Community Care Supplies & Service.Adult.Domiciliary Care
13/04/2015,ADULT SOCIAL CARE,Carewatch (Lambeth),DOMICILIARY CARE - THIRD PARTY,836.50,Social Community Care Supplies & Service.Adult.Domiciliary Care
13/04/2015,ADULT SOCIAL CARE,Carewatch (Lambeth),DOMICILIARY CARE - THIRD PARTY,804.72,Social Community Care Supplies & Service.Adult.Domiciliary Care
13/04/2015,HOUSING MANAGEMENT SERVICES,Rodenhurst Freehold Comapny Ltd,PAYMENT TO PRIVATE SECTOR LANDLORDS (PSL),795.00,Housing Management.Letting Agents.NA
13/04/2015,"REGENERATION, PLANNING & NEIGHBOURHOODS",London Weekly Newspapers Ltd,"ADVERTISING, PUBLICITY AND MARKETING",768.00,Facilities & Management Services.Advertising.Statutory
13/04/2015,CHILDREN'S SERVICES,Safe & Sound,STAFF DEVELOPMENT AND TRAINING,735.00,Human Resources.Training & Conferences.Training
13/04/2015,"STRATEGY & COMMISSIONING - CHILDREN, DISABILITIES & PUBLIC HEALTH",Safe & Sound,STAFF DEVELOPMENT AND TRAINING,735.00,Human Resources.Training & Conferences.Training
13/04/2015,ADULT SOCIAL CARE,L K Recruitment Ltd,DOMICILIARY CARE - THIRD PARTY,718.20,Social Community Care Supplies & Service.Adult.Domiciliary Care
13/04/2015,"REGENERATION, PLANNING & NEIGHBOURHOODS",SDP Training Solutions Ltd.,CONSULTANCY FEES,681.42,Consultancy.Strategic Planning.NA
13/04/2015,CHILDREN'S SERVICES,Lambeth Accord,PREMISES HIRE - FACILITIES,645.00,Facilities & Management Services.Room Hire.NA
13/04/2015,ADULT SOCIAL CARE,L K Recruitment Ltd,DOMICILIARY CARE - THIRD PARTY,619.96,Social Community Care Supplies & Service.Adult.Domiciliary Care
13/04/2015,ADULT SOCIAL CARE,Carewatch (Lambeth),DOMICILIARY CARE - THIRD PARTY,606.44,Social Community Care Supplies & Service.Adult.Domiciliary Care
13/04/2015,ADULT SOCIAL CARE,Bluebird Care Lambeth,DOMICILIARY CARE - THIRD PARTY,595.00,Social Community Care Supplies & Service.Adult.Domiciliary Care
13/04/2015,ADULT SOCIAL CARE,Carewatch (Lambeth),DOMICILIARY CARE - THIRD PARTY,586.50,Social Community Care Supplies & Service.Adult.Domiciliary Care
13/04/2015,"REGENERATION, PLANNING & NEIGHBOURHOODS",Lorraine Whyte,ARTS AND LEISURE COSTS,537.50,Arts & Leisure Services.Sport & Fitness.NA
13/04/2015,EDUCATION & LEARNING,Catsfield Services Ltd,CONSULTANCY FEES,525.00,Human Resources.Temporary & Agency Staff.Social & Community Care
13/04/2015,EDUCATION & LEARNING,Catsfield Services Ltd,CONSULTANCY FEES,525.00,Human Resources.Temporary & Agency Staff.Social & Community Care
13/04/2015,ADULT SOCIAL CARE,Bluebird Care Lambeth,DOMICILIARY CARE - THIRD PARTY,(595.00),Social Community Care Supplies & Service.Adult.Domiciliary Care
13/04/2015,ADULT SOCIAL CARE,Apetito Ltd,ADULT PAID MEALS INCOME,"(12,861.00)",Catering.Social Care.NA
13/04/2015,CAPITAL CC,J & U Services,BUILDING ALTERATIONS AND MATERIALS,"(109,454.45)",Building Construction Materials.Heating & Air Conditioning.NA
14/04/2015,HUMAN RESOURCES AND ORGANISATIONAL DEVELOPMENT,Matrix SCM Ltd,AGENCY STAFF,"609,060.97",Human Resources.Temporary & Agency Staff.NA
14/04/2015,BUSINESS TRANSFORMATION,Capgemini UK Plc,ICT MAINTENANCE AND SUPPORT,"61,094.20",Information Communication Technology.Services.Maintenance & Support
14/04/2015,CAPITAL CC,ISG Construction Ltd,"MAINTENANCE - EQUIPMENT, FURNITURE AND MATERIALS","55,385.00","Works - Construction, Repair & Maint.Buildings.Construction"
14/04/2015,BUSINESS TRANSFORMATION,Capgemini UK Plc,ICT MAINTENANCE AND SUPPORT,"54,984.78",Information Communication Technology.Services.Maintenance & Support
14/04/2015,CAPITAL CC,Capgemini UK Plc,ICT SOFTWARE,"30,547.10",Information Communication Technology.Software.NA
14/04/2015,CAPITAL CC,Capgemini UK Plc,ICT SOFTWARE,"27,492.39",Information Communication Technology.Software.NA
14/04/2015,CAPITAL CC,Civica UK Ltd,ICT SOFTWARE,"26,412.48",Information Communication Technology.Software.Customised & Bespoke
14/04/2015,CAPITAL CC,Civica UK Ltd,ICT SOFTWARE,"26,412.48",Information Communication Technology.Software.NA
14/04/2015,CORPORATE AFFAIRS,Anthony Gold Solicitors,LEGAL FEES,"21,000.00",Legal Services.Advocacy.NA
14/04/2015,CAPITAL CC,Civica UK Ltd,ICT SOFTWARE,"18,770.36",Information Communication Technology.Software.Customised & Bespoke
14/04/2015,CAPITAL CC,Civica UK Ltd,ICT SOFTWARE,"18,770.36",Information Communication Technology.Software.NA
14/04/2015,ADULT SOCIAL CARE,Royal Borough of Kensington & Chelsea,CONSULTANCY FEES,"13,800.00",Consultancy.Business.NA
14/04/2015,STRATEGY & COMMISSIONING - NEIGHBOURHOODS,Designs for Lighting Ltd,BUILDING ALTERATIONS AND MATERIALS,"12,607.50",Building Construction Materials.Lighting.NA
14/04/2015,CORPORATE AFFAIRS,Fisher Meredith Solicitors,LEGAL FEES,"9,073.80",Social Community Care Supplies & Service.Adult.Advice & Counselling Services
14/04/2015,ADULT SOCIAL CARE,KWAS Ltd,RESIDENTIAL PLACEMENTS - PRIVATE CONTRACTORS PAYMENT,"8,437.16","Social Community Care Supplies & Service.Adult.Temporary Accommodation, Long Stay"
14/04/2015,ADULT SOCIAL CARE,KWAS Ltd,RESIDENTIAL PLACEMENTS - PRIVATE CONTRACTORS PAYMENT,"8,008.16","Social Community Care Supplies & Service.Adult.Temporary Accommodation, Long Stay"
14/04/2015,"REGENERATION, PLANNING & NEIGHBOURHOODS",Waterloo Community Development Group,GRANTS AND CONTRIBUTIONS,"7,802.25",Financial Services.Grants.NA
14/04/2015,HOUSING MANAGEMENT SERVICES,KNK Building Services Ltd_d,RESPONSIVE REPAIRS - MECHANICAL AND ELECTRICAL,"7,187.50",Building Construction Materials.Paint & Finishing.NA
14/04/2015,EDUCATION & LEARNING,Healthcare & Transport Services,CLIENT TRANSPORT,"7,094.65",Public Transport.Taxi Services.NA
14/04/2015,HUMAN RESOURCES AND ORGANISATIONAL DEVELOPMENT,The London Nautical School,PROFESSIONAL SERVICES - GENERAL,"6,918.54",Education.School Services.NA
14/04/2015,CHILDREN'S SERVICES,Care 2 Share 1 Ltd,PRIVATE CONTRACTORS PAYMENT - OTHER,"6,857.14",Social Community Care Supplies & Service.Adult.Residential Care
14/04/2015,CHILDREN'S SERVICES,Care 2 Share 1 Ltd,PRIVATE CONTRACTORS PAYMENT - OTHER,"6,000.00",Social Community Care Supplies & Service.Adult.Residential Care
14/04/2015,"REGENERATION, PLANNING & NEIGHBOURHOODS",Atkins Ltd,CONSULTANCY FEES,"5,865.00",Consultancy.Technical & Feasibility.NA
14/04/2015,EDUCATION & LEARNING,Kelvin Grove Primary School,CONSULTANCY FEES,"4,500.00",Consultancy.Business.NA
14/04/2015,CAPITAL CC,AND Projects LLP,OPEN SPACES WORKS,"4,450.00","Works - Construction, Repair & Maint.Open Spaces.Repair & Maintenance"
14/04/2015,HOUSING MANAGEMENT SERVICES,KNK Building Services Ltd_d,RESPONSIVE REPAIRS - BUILDING,"4,067.96",Building Construction Materials.Paint & Finishing.NA
14/04/2015,ADULT SOCIAL CARE,S J Catering & Chemicals,CATERING EQUIPMENT,"3,096.00",Catering.Equipment & Utensils.Repairs
14/04/2015,ADULT SOCIAL CARE,Holistic Community Care Ltd,DOMICILIARY CARE - THIRD PARTY,"3,037.92",Social Community Care Supplies & Service.Adult.Domiciliary Care
14/04/2015,CHILDREN'S SERVICES,National Fostering Agency,FOSTERING AGENCY PLACEMENTS - PRIVATE CONTRACTORS PAYMENT,"3,036.76",Social Community Care Supplies & Service.Children.Fostering
14/04/2015,CHILDREN'S SERVICES,National Fostering Agency,FOSTERING AGENCY PLACEMENTS - PRIVATE CONTRACTORS PAYMENT,"3,036.76",Social Community Care Supplies & Service.Children.Fostering
14/04/2015,CHILDREN'S SERVICES,National Fostering Agency,FOSTERING AGENCY PLACEMENTS - PRIVATE CONTRACTORS PAYMENT,"3,036.76",Social Community Care Supplies & Service.Children.Fostering
14/04/2015,CHILDREN'S SERVICES,Care 2 Share 1 Ltd,PRIVATE CONTRACTORS PAYMENT - OTHER,"3,000.00",Social Community Care Supplies & Service.Adult.Residential Care
14/04/2015,CHILDREN'S SERVICES,Care 2 Share 1 Ltd,PRIVATE CONTRACTORS PAYMENT - OTHER,"3,000.00",Social Community Care Supplies & Service.Adult.Residential Care
14/04/2015,CHILDREN'S SERVICES,Care 2 Share 1 Ltd,PRIVATE CONTRACTORS PAYMENT - OTHER,"3,000.00",Social Community Care Supplies & Service.Adult.Residential Care
14/04/2015,CHILDREN'S SERVICES,Care 2 Share 1 Ltd,PRIVATE CONTRACTORS PAYMENT - OTHER,"3,000.00",Social Community Care Supplies & Service.Adult.Residential Care
14/04/2015,CHILDREN'S SERVICES,Care 2 Share 1 Ltd,PRIVATE CONTRACTORS PAYMENT - OTHER,"3,000.00",Social Community Care Supplies & Service.Adult.Residential Care
14/04/2015,CHILDREN'S SERVICES,Care 2 Share 1 Ltd,PRIVATE CONTRACTORS PAYMENT - OTHER,"3,000.00",Social Community Care Supplies & Service.Adult.Residential Care
14/04/2015,CHILDREN'S SERVICES,Care 2 Share 1 Ltd,PRIVATE CONTRACTORS PAYMENT - OTHER,"3,000.00",Social Community Care Supplies & Service.Adult.Residential Care
14/04/2015,CHILDREN'S SERVICES,Care 2 Share 1 Ltd,PRIVATE CONTRACTORS PAYMENT - OTHER,"3,000.00",Social Community Care Supplies & Service.Adult.Residential Care
14/04/2015,CHILDREN'S SERVICES,Capstone Foster Care (South East) Ltd,IN HOUSE FOSTER CARE PLACEMENTS - PRIVATE CONTRACTORS PAYMENT,"2,999.92",Social Community Care Supplies & Service.Children.Fostering
14/04/2015,CHILDREN'S SERVICES,National Fostering Agency,FOSTERING AGENCY PLACEMENTS - PRIVATE CONTRACTORS PAYMENT,"2,938.80",Social Community Care Supplies & Service.Children.Fostering
14/04/2015,CHILDREN'S SERVICES,Optima Social Care Ltd,PRIVATE CONTRACTORS PAYMENT - OTHER,"2,800.00",Social Community Care Supplies & Service.Adult.Residential Care
14/04/2015,CHILDREN'S SERVICES,National Fostering Agency,FOSTERING AGENCY PLACEMENTS - PRIVATE CONTRACTORS PAYMENT,"2,742.88",Social Community Care Supplies & Service.Children.Fostering
14/04/2015,HOUSING MANAGEMENT SERVICES,KNK Building Services Ltd_d,RESPONSIVE REPAIRS - BUILDING,"2,686.88",Building Construction Materials.Paint & Finishing.NA
14/04/2015,ADULT SOCIAL CARE,Westminster Homecare Limited,DOMICILIARY CARE - THIRD PARTY,"2,648.88",Social Community Care Supplies & Service.Adult.Domiciliary Care
14/04/2015,CHILDREN'S SERVICES,Melrope Ltd,NURSING HOMES - PRIVATE CONTRACTORS PAYMENT,"2,532.57",Social Community Care Supplies & Service.Adult.Nursing Homes
14/04/2015,CHILDREN'S SERVICES,Inclusive Care Support Ltd,SUPPORTED OTHER ACCOMMODATION - PRIVATE CONTRACTORS PAYMENT,"2,371.50",Social Community Care Supplies & Service.Adult.Residential Homes for Older People
14/04/2015,CHILDREN'S SERVICES,Inclusive Care Support Ltd,SUPPORTED OTHER ACCOMMODATION - PRIVATE CONTRACTORS PAYMENT,"2,295.00",Social Community Care Supplies & Service.Adult.Residential Homes for Older People
14/04/2015,EDUCATION & LEARNING,Healthcare & Transport Services,CLIENT TRANSPORT,"2,254.25",Public Transport.Taxi Services.NA
14/04/2015,ADULT SOCIAL CARE,Oasis Care & Training Agency,DOMICILIARY CARE - THIRD PARTY,"2,216.76",Social Community Care Supplies & Service.Adult.Domiciliary Care
14/04/2015,HOUSING MANAGEMENT SERVICES,KNK Building Services Ltd_d,RESPONSIVE REPAIRS - MECHANICAL AND ELECTRICAL,"2,180.83",Building Construction Materials.Paint & Finishing.NA
14/04/2015,CHILDREN'S SERVICES,HMCTS,LEGAL FEES,"2,055.00",Legal Services.General Support.NA
14/04/2015,CHILDREN'S SERVICES,HMCTS,LEGAL FEES,"2,055.00",Legal Services.General Support.NA
14/04/2015,CHILDREN'S SERVICES,HMCTS,LEGAL FEES,"2,055.00",Legal Services.General Support.NA
14/04/2015,EDUCATION & LEARNING,On Track Education Services Limited,PROFESSIONAL SERVICES - GENERAL,"2,040.00",Education.Educational Placements.NA
14/04/2015,EDUCATION & LEARNING,On Track Education Services Limited,PROFESSIONAL SERVICES - GENERAL,"2,040.00",Education.Educational Placements.NA
14/04/2015,EDUCATION & LEARNING,On Track Education Services Limited,PROFESSIONAL SERVICES - GENERAL,"2,040.00",Education.Educational Placements.NA
14/04/2015,EDUCATION & LEARNING,On Track Education Services Limited,PROFESSIONAL SERVICES - GENERAL,"2,040.00",Education.Educational Placements.NA
14/04/2015,EDUCATION & LEARNING,On Track Education Services Limited,PROFESSIONAL SERVICES - GENERAL,"2,040.00",Education.Educational Placements.NA
14/04/2015,EDUCATION & LEARNING,On Track Education Services Limited,PROFESSIONAL SERVICES - GENERAL,"2,000.00",Education.Educational Placements.NA
14/04/2015,EDUCATION & LEARNING,On Track Education Services Limited,PROFESSIONAL SERVICES - GENERAL,"2,000.00",Education.Educational Placements.NA
14/04/2015,ADULT SOCIAL CARE,Oasis Care & Training Agency,DOMICILIARY CARE - THIRD PARTY,"1,825.04",Social Community Care Supplies & Service.Adult.Domiciliary Care
14/04/2015,CAPITAL CC,Lambert Smith Hampton Group Ltd,GRANTS AND CONTRIBUTIONS,"1,800.00",Financial Services.Grants.NA
14/04/2015,CHILDREN'S SERVICES,National Fostering Agency,FOSTERING AGENCY PLACEMENTS - PRIVATE CONTRACTORS PAYMENT,"1,800.00",Social Community Care Supplies & Service.Children.Fostering
14/04/2015,CHILDREN'S SERVICES,National Fostering Agency,FOSTERING AGENCY PLACEMENTS - PRIVATE CONTRACTORS PAYMENT,"1,800.00",Social Community Care Supplies & Service.Children.Fostering
14/04/2015,ADULT SOCIAL CARE,Thames Homecare Ltd,DOMICILIARY CARE - THIRD PARTY,"1,762.65",Social Community Care Supplies & Service.Adult.Domiciliary Care
14/04/2015,ADULT SOCIAL CARE,Stockwellcare Support Services Ltd,DOMICILIARY CARE - THIRD PARTY,"1,477.80",Healthcare.Public Health.NA
14/04/2015,NO RECOURSE TO PUBLIC FUNDS,Norbury Property Services (London) Ltd,BED & BREAKFAST - PRIVATE CONTRACTORS PAYMENT,"1,440.00","Social Community Care Supplies & Service.Adult.Temporary Accommodation, Long Stay"
14/04/2015,NO RECOURSE TO PUBLIC FUNDS,Norbury Property Services (London) Ltd,BED & BREAKFAST - PRIVATE CONTRACTORS PAYMENT,"1,440.00","Social Community Care Supplies & Service.Adult.Temporary Accommodation, Long Stay"
14/04/2015,NO RECOURSE TO PUBLIC FUNDS,Norbury Property Services (London) Ltd,BED & BREAKFAST - PRIVATE CONTRACTORS PAYMENT,"1,440.00","Social Community Care Supplies & Service.Adult.Temporary Accommodation, Long Stay"
14/04/2015,NO RECOURSE TO PUBLIC FUNDS,Alpha UK Properties Ltd,BED & BREAKFAST - PRIVATE CONTRACTORS PAYMENT,"1,400.00","Social Community Care Supplies & Service.Adult.Temporary Accommodation, Long Stay"
14/04/2015,NO RECOURSE TO PUBLIC FUNDS,Alpha UK Properties Ltd,BED & BREAKFAST - PRIVATE CONTRACTORS PAYMENT,"1,400.00","Social Community Care Supplies & Service.Adult.Temporary Accommodation, Long Stay"
14/04/2015,ADULT SOCIAL CARE,Carewatch (Lambeth),DOMICILIARY CARE - THIRD PARTY,"1,363.97",Social Community Care Supplies & Service.Adult.Domiciliary Care
14/04/2015,ADULT SOCIAL CARE,Holistic Community Care Ltd,DOMICILIARY CARE - THIRD PARTY,"1,340.28",Social Community Care Supplies & Service.Adult.Domiciliary Care
14/04/2015,ADULT SOCIAL CARE,Stockwellcare Support Services Ltd,DOMICILIARY CARE - THIRD PARTY,"1,292.66",Healthcare.Public Health.NA
14/04/2015,ADULT SOCIAL CARE,Thames Water Utilities Ltd_d,WATER AND SEWERAGE,"1,237.39",Environmental Services.Water Assessment & Treatment.NA
14/04/2015,ADULT SOCIAL CARE,Westminster Homecare Limited,DOMICILIARY CARE - THIRD PARTY,"1,203.68",Social Community Care Supplies & Service.Adult.Domiciliary Care
14/04/2015,HOUSING MANAGEMENT SERVICES,KNK Building Services Ltd_d,RESPONSIVE REPAIRS - BUILDING,"1,186.64",Building Construction Materials.Paint & Finishing.NA
14/04/2015,ADULT SOCIAL CARE,Westminster Homecare Limited,DOMICILIARY CARE - THIRD PARTY,"1,103.14",Social Community Care Supplies & Service.Adult.Domiciliary Care
14/04/2015,NO RECOURSE TO PUBLIC FUNDS,Alpha UK Properties Ltd,BED & BREAKFAST - PRIVATE CONTRACTORS PAYMENT,"1,103.00","Social Community Care Supplies & Service.Adult.Temporary Accommodation, Long Stay"
14/04/2015,ADULT SOCIAL CARE,Norbury Hall Residential Care Home,RESPITE CARE - PRIVATE CONTRACTORS PAYMENT,"1,100.00",Social Community Care Supplies & Service.Adult.Residential Care
14/04/2015,ADULT SOCIAL CARE,Westminster Homecare Limited,DOMICILIARY CARE - THIRD PARTY,"1,085.16",Social Community Care Supplies & Service.Adult.Domiciliary Care
14/04/2015,HOUSING MANAGEMENT SERVICES,KNK Building Services Ltd_d,RESPONSIVE REPAIRS - BUILDING,"1,078.47",Building Construction Materials.Paint & Finishing.NA
14/04/2015,CHILDREN'S SERVICES,National Fostering Agency,FOSTERING AGENCY PLACEMENTS - PRIVATE CONTRACTORS PAYMENT,"1,000.00",Social Community Care Supplies & Service.Children.Fostering
14/04/2015,ADULT SOCIAL CARE,Holistic Community Care Ltd,DOMICILIARY CARE - THIRD PARTY,979.26,Social Community Care Supplies & Service.Adult.Domiciliary Care
14/04/2015,ADULT SOCIAL CARE,Oasis Care & Training Agency,DOMICILIARY CARE - THIRD PARTY,937.16,Social Community Care Supplies & Service.Adult.Domiciliary Care
14/04/2015,STRATEGY & COMMISSIONING - HOUSING & COMMUNITIES (HRA),Metropolitan Housing Trust London,PRIVATE CONTRACTORS PAYMENT - OTHER,929.10,Social Community Care Supplies & Service.Adult.Residential Care
14/04/2015,ADULT SOCIAL CARE,Unique Personnel (Uk) Ltd,DOMICILIARY CARE - THIRD PARTY,918.00,Social Community Care Supplies & Service.Disabled Children.NA
14/04/2015,ADULT SOCIAL CARE,Oasis Care & Training Agency,DOMICILIARY CARE - THIRD PARTY,912.52,Social Community Care Supplies & Service.Adult.Domiciliary Care
14/04/2015,NO RECOURSE TO PUBLIC FUNDS,Norbury Property Services (London) Ltd,BED & BREAKFAST - PRIVATE CONTRACTORS PAYMENT,899.00,"Social Community Care Supplies & Service.Adult.Temporary Accommodation, Short Stay"
14/04/2015,ADULT SOCIAL CARE,Westminster Homecare Limited,DOMICILIARY CARE - THIRD PARTY,885.60,Social Community Care Supplies & Service.Adult.Domiciliary Care
14/04/2015,CAPITAL CC,AND Projects LLP,OPEN SPACES WORKS,880.00,"Works - Construction, Repair & Maint.Open Spaces.Repair & Maintenance"
14/04/2015,ADULT SOCIAL CARE,Oasis Care & Training Agency,DOMICILIARY CARE - THIRD PARTY,858.20,Social Community Care Supplies & Service.Adult.Domiciliary Care
14/04/2015,CHILDREN'S SERVICES,Allied Healthcare (UK) Ltd,DAYCARE - PRIVATE CONTRACTORS PAYMENT,856.24,Social Community Care Supplies & Service.Disabled Children.Care Services
14/04/2015,ADULT SOCIAL CARE,Holistic Community Care Ltd,DOMICILIARY CARE - THIRD PARTY,822.97,Social Community Care Supplies & Service.Adult.Domiciliary Care
14/04/2015,ADULT SOCIAL CARE,Julie-Ann Gillitt,CLIENT EXPENSES - THIRD PARTY,800.00,Social Community Care Supplies & Service.Adult.NA
14/04/2015,CHILDREN'S SERVICES,National Fostering Agency,FOSTERING AGENCY PLACEMENTS - PRIVATE CONTRACTORS PAYMENT,800.00,Social Community Care Supplies & Service.Children.Fostering
14/04/2015,ADULT SOCIAL CARE,Unique Personnel (Uk) Ltd,DOMICILIARY CARE - THIRD PARTY,789.00,Social Community Care Supplies & Service.Disabled Children.NA
14/04/2015,ADULT SOCIAL CARE,Unique Personnel (Uk) Ltd,DOMICILIARY CARE - THIRD PARTY,783.00,Social Community Care Supplies & Service.Disabled Children.NA
14/04/2015,"REGENERATION, PLANNING & NEIGHBOURHOODS",District Surveyors Association Ltd,STAFF DEVELOPMENT AND TRAINING,750.00,Human Resources.Training & Conferences.Training
14/04/2015,HOUSING MANAGEMENT SERVICES,KNK Building Services Ltd_d,RESPONSIVE REPAIRS - BUILDING,728.52,Building Construction Materials.Paint & Finishing.NA
14/04/2015,ADULT SOCIAL CARE,Stockwellcare Support Services Ltd,DOMICILIARY CARE - THIRD PARTY,716.93,Healthcare.Public Health.NA
14/04/2015,ADULT SOCIAL CARE,Westminster Homecare Limited,DOMICILIARY CARE - THIRD PARTY,691.84,Social Community Care Supplies & Service.Adult.Domiciliary Care
14/04/2015,ADULT SOCIAL CARE,Unique Personnel (Uk) Ltd,DOMICILIARY CARE - THIRD PARTY,675.00,Social Community Care Supplies & Service.Disabled Children.NA
14/04/2015,CORPORATE AFFAIRS,De Vos Consultancy Ltd,LEGAL FEES,660.00,Legal Services.Advocacy.NA
14/04/2015,ADULT SOCIAL CARE,Holistic Community Care Ltd,DOMICILIARY CARE - THIRD PARTY,657.01,Social Community Care Supplies & Service.Adult.Domiciliary Care
14/04/2015,CORPORATE AFFAIRS,Charles Allotey & Co,LEGAL FEES,655.00,Legal Services.Advocacy.NA
14/04/2015,ADULT SOCIAL CARE,Unique Personnel (Uk) Ltd,DOMICILIARY CARE - THIRD PARTY,642.00,Social Community Care Supplies & Service.Disabled Children.NA
14/04/2015,ADULT SOCIAL CARE,Oasis Care & Training Agency,DOMICILIARY CARE - THIRD PARTY,613.17,Social Community Care Supplies & Service.Adult.Domiciliary Care
14/04/2015,ADULT SOCIAL CARE,Westminster Homecare Limited,DOMICILIARY CARE - THIRD PARTY,607.04,Social Community Care Supplies & Service.Adult.Domiciliary Care
14/04/2015,ADULT SOCIAL CARE,Westminster Homecare Limited,DOMICILIARY CARE - THIRD PARTY,606.32,Social Community Care Supplies & Service.Adult.Domiciliary Care
14/04/2015,ADULT SOCIAL CARE,Thames Homecare Ltd,DOMICILIARY CARE - THIRD PARTY,597.50,Social Community Care Supplies & Service.Adult.Domiciliary Care
14/04/2015,ADULT SOCIAL CARE,Unique Personnel (Uk) Ltd,DOMICILIARY CARE - THIRD PARTY,585.00,Social Community Care Supplies & Service.Disabled Children.NA
14/04/2015,HOUSING MANAGEMENT SERVICES,KNK Building Services Ltd_d,RESPONSIVE REPAIRS - MECHANICAL AND ELECTRICAL,578.28,Building Construction Materials.Paint & Finishing.NA
14/04/2015,CHILDREN'S SERVICES,Faraday Forensics Ltd,LEGAL FEES,576.00,Legal Services.Advocacy.NA
14/04/2015,HOUSING MANAGEMENT SERVICES,KNK Building Services Ltd_d,RESPONSIVE REPAIRS - MECHANICAL AND ELECTRICAL,567.99,Building Construction Materials.Paint & Finishing.NA
14/04/2015,ADULT SOCIAL CARE,Oasis Care & Training Agency,DOMICILIARY CARE - THIRD PARTY,554.80,Social Community Care Supplies & Service.Adult.Domiciliary Care
14/04/2015,HOUSING MANAGEMENT SERVICES,KNK Building Services Ltd_d,RESPONSIVE REPAIRS - MECHANICAL AND ELECTRICAL,548.76,Building Construction Materials.Paint & Finishing.NA
14/04/2015,ADULT SOCIAL CARE,Thames Homecare Ltd,DOMICILIARY CARE - THIRD PARTY,528.79,Social Community Care Supplies & Service.Adult.Domiciliary Care
14/04/2015,MAJOR CAPITAL PROGRAMMES,Camelot Property Management,SECURITY SERVICES (EXCLUDING PREMISES),525.00,Facilities & Management Services.Security.NA
14/04/2015,MAJOR CAPITAL PROGRAMMES,Camelot Property Management,SECURITY SERVICES (EXCLUDING PREMISES),525.00,Facilities & Management Services.Security.NA
14/04/2015,MAJOR CAPITAL PROGRAMMES,Camelot Property Management,FACILITIES MANAGEMENT,525.00,"Works - Construction, Repair & Maint.Buildings.Repair & Maintenance"
14/04/2015,HOUSING MANAGEMENT SERVICES,KNK Building Services Ltd_d,RESPONSIVE REPAIRS - MECHANICAL AND ELECTRICAL,517.50,Building Construction Materials.Paint & Finishing.NA
14/04/2015,HOUSING MANAGEMENT SERVICES,KNK Building Services Ltd_d,DECORATION,505.44,Building Construction Materials.Paint & Finishing.NA
14/04/2015,ADULT SOCIAL CARE,Thames Homecare Ltd,DOMICILIARY CARE - THIRD PARTY,501.90,Social Community Care Supplies & Service.Adult.Domiciliary Care
14/04/2015,MAJOR CAPITAL PROGRAMMES,Camelot Property Management,SECURITY SERVICES (EXCLUDING PREMISES),(525.00),Facilities & Management Services.Security.NA
14/04/2015,MAJOR CAPITAL PROGRAMMES,Camelot Property Management,SECURITY SERVICES (EXCLUDING PREMISES),(525.00),Facilities & Management Services.Security.NA
14/04/2015,CHILDREN'S SERVICES,Charmaine Fannis_d,IN HOUSE FOSTER CARE PLACEMENTS - PRIVATE CONTRACTORS PAYMENT,(552.92),Social Community Care Supplies & Service.Children.Fostering
14/04/2015,CAPITAL CC,Civica UK Ltd,ICT SOFTWARE,"(18,770.36)",Information Communication Technology.Software.NA
14/04/2015,CAPITAL CC,Civica UK Ltd,ICT SOFTWARE,"(26,412.48)",Information Communication Technology.Software.NA
15/04/2015,HUMAN RESOURCES AND ORGANISATIONAL DEVELOPMENT,Matrix SCM Ltd,AGENCY STAFF,"614,169.85",Human Resources.Temporary & Agency Staff.NA
15/04/2015,ADULT SOCIAL CARE,Allied Healthcare (UK) Ltd,DOMICILIARY CARE - THIRD PARTY,"183,050.26",Social Community Care Supplies & Service.Adult.Domiciliary Care
15/04/2015,CHILDREN'S SERVICES,Supporting Futures Ltd,PRIVATE CONTRACTORS PAYMENT - OTHER,"19,928.55",Social Community Care Supplies & Service.Children.Residential Care
15/04/2015,CHILDREN'S SERVICES,Supporting Futures Ltd,PRIVATE CONTRACTORS PAYMENT - OTHER,"19,285.70",Social Community Care Supplies & Service.Children.Residential Care
15/04/2015,CHILDREN'S SERVICES,Supporting Futures Ltd,PRIVATE CONTRACTORS PAYMENT - OTHER,"18,000.00",Social Community Care Supplies & Service.Children.Residential Care
15/04/2015,CHILDREN'S SERVICES,Quality Protects Children Ltd,PRIVATE CONTRACTORS PAYMENT - OTHER,"13,928.57",Social Community Care Supplies & Service.Children.NA
15/04/2015,HUMAN RESOURCES AND ORGANISATIONAL DEVELOPMENT,Dillon-White Consultancy Ltd,PROFESSIONAL SERVICES - GENERAL,"13,275.00",Education.Adult & Further Education Services.NA
15/04/2015,ADULT SOCIAL CARE,Lambeth Crossroads_d,DOMICILIARY CARE - THIRD PARTY,"13,006.92",Social Community Care Supplies & Service.Adult.Residential Care
15/04/2015,FINANCE,Thebigword,TRANSLATORS AND INTERPRETERS,"12,997.75",Human Resources.Interpretation & Translation.NA
15/04/2015,"SENIOR MANAGEMENT - CHILDREN, ADULTS AND HEALTH",Edith Cavell Surgery,CONSULTANCY FEES,"12,403.15",Consultancy.Business.NA
15/04/2015,ADULT SOCIAL CARE,Lambeth Crossroads_d,DOMICILIARY CARE - THIRD PARTY,"11,992.36",Social Community Care Supplies & Service.Adult.Residential Care
15/04/2015,HUMAN RESOURCES AND ORGANISATIONAL DEVELOPMENT,Disabled Living Foundation,STAFF DEVELOPMENT AND TRAINING,"9,900.00",Human Resources.Training & Conferences.Training
15/04/2015,STRATEGY & COMMISSIONING - HOUSING & COMMUNITIES,Sport England,"MAINTENANCE - EQUIPMENT, FURNITURE AND MATERIALS","8,700.00",Sports & Playground Equipment & Maint.Sports & Playground & Pool Maintenance.NA
15/04/2015,HUMAN RESOURCES AND ORGANISATIONAL DEVELOPMENT,Dillon-White Consultancy Ltd,PROFESSIONAL SERVICES - GENERAL,"6,750.00",Education.Adult & Further Education Services.NA
15/04/2015,"STRATEGY & COMMISSIONING - CHILDREN, DISABILITIES & PUBLIC HEALTH",Learning Unlimited,PAYMENTS TO VOLUNTARY SECTOR,"6,560.00",Financial Services.Grants.NA
15/04/2015,CAPITAL CC,Pellings LLP,CONSULTANCY FEES,"6,398.59","Works - Construction, Repair & Maint.Consultancy.NA"
15/04/2015,ADULT SOCIAL CARE,Southside Partnership,DOMICILIARY CARE - THIRD PARTY,"5,590.20",Social Community Care Supplies & Service.Adult.Mental Health Services
15/04/2015,ADULT SOCIAL CARE,Southside Partnership,DOMICILIARY CARE - THIRD PARTY,"5,590.20",Social Community Care Supplies & Service.Adult.Mental Health Services
15/04/2015,"SENIOR MANAGEMENT - CHILDREN, ADULTS AND HEALTH",The Norwood Surgery,CONSULTANCY FEES,"5,415.00",Consultancy.Business.NA
15/04/2015,CAPITAL CC,Stannah Lift Services Ltd_d,GRANTS AND CONTRIBUTIONS,"5,394.00",Financial Services.Grants.NA
15/04/2015,CAPITAL CC,Pellings LLP,CONSULTANCY FEES,"5,277.72","Works - Construction, Repair & Maint.Consultancy.NA"
15/04/2015,ADULT SOCIAL CARE,Southside Partnership,DOMICILIARY CARE - THIRD PARTY,"5,054.40",Social Community Care Supplies & Service.Adult.Mental Health Services
15/04/2015,ADULT SOCIAL CARE,Southside Partnership,DOMICILIARY CARE - THIRD PARTY,"5,054.40",Social Community Care Supplies & Service.Adult.Mental Health Services
15/04/2015,ADULT SOCIAL CARE,Southside Partnership,DOMICILIARY CARE - THIRD PARTY,"4,857.92",Social Community Care Supplies & Service.Adult.Mental Health Services
15/04/2015,ADULT SOCIAL CARE,Southside Partnership,DOMICILIARY CARE - THIRD PARTY,"4,857.92",Social Community Care Supplies & Service.Adult.Mental Health Services
15/04/2015,ADULT SOCIAL CARE,Southside Partnership,DOMICILIARY CARE - THIRD PARTY,"4,857.92",Social Community Care Supplies & Service.Adult.Mental Health Services
15/04/2015,HUMAN RESOURCES AND ORGANISATIONAL DEVELOPMENT,Dillon-White Consultancy Ltd,PROFESSIONAL SERVICES - GENERAL,"4,425.00",Education.Adult & Further Education Services.NA
15/04/2015,CHILDREN'S SERVICES,Children of All Nations,IN HOUSE FOSTER CARE PLACEMENTS - PRIVATE CONTRACTORS PAYMENT,"4,207.14",Social Community Care Supplies & Service.Children.Fostering
15/04/2015,CHILDREN'S SERVICES,Children of All Nations,IN HOUSE FOSTER CARE PLACEMENTS - PRIVATE CONTRACTORS PAYMENT,"4,028.00",Social Community Care Supplies & Service.Children.Fostering
15/04/2015,"REGENERATION, PLANNING & NEIGHBOURHOODS",Gem Couriers,POSTAGE AND COURIER SERVICES,"3,300.00",Mail Services.Couriers.NA
15/04/2015,CHILDREN'S SERVICES,Kindercare Fostering Ltd,FOSTERING AGENCY PLACEMENTS - PRIVATE CONTRACTORS PAYMENT,"3,160.45",Social Community Care Supplies & Service.Children.Fostering
15/04/2015,CHILDREN'S SERVICES,The Adolescent and Children's Trust (TACT),FOSTERING AGENCY PLACEMENTS - PRIVATE CONTRACTORS PAYMENT,"3,026.27",Social Community Care Supplies & Service.Children.Fostering
15/04/2015,ADULT SOCIAL CARE,Lambeth Crossroads_d,DOMICILIARY CARE - THIRD PARTY,"2,880.96",Social Community Care Supplies & Service.Adult.Residential Care
15/04/2015,FINANCE,Lex Autolease Ltd,VEHICLE LEASES,"2,854.92",Vehicle Management.Leasing.NA
15/04/2015,"REGENERATION, PLANNING & NEIGHBOURHOODS",Liberty Printers Ltd,PRINTING,"2,754.00",Facilities & Management Services.Printing.NA
15/04/2015,CHILDREN'S SERVICES,Children of All Nations,IN HOUSE FOSTER CARE PLACEMENTS - PRIVATE CONTRACTORS PAYMENT,"2,578.49",Social Community Care Supplies & Service.Children.Fostering
15/04/2015,ADULT SOCIAL CARE,Lambeth Crossroads_d,DOMICILIARY CARE - THIRD PARTY,"2,568.06",Social Community Care Supplies & Service.Adult.Residential Care
15/04/2015,CHILDREN'S SERVICES,Race Equality Foundation,PRIVATE CONTRACTORS PAYMENT - OTHER,"2,500.00",Social Community Care Supplies & Service.Adult.Advice & Counselling Services
15/04/2015,CHILDREN'S SERVICES,Race Equality Foundation,PROFESSIONAL SERVICES - GENERAL,"2,500.00","Works - Construction, Repair & Maint.Engineering.NA"
15/04/2015,CHILDREN'S SERVICES,Race Equality Foundation,PROFESSIONAL SERVICES - GENERAL,"2,500.00","Works - Construction, Repair & Maint.Engineering.NA"
15/04/2015,CAPITAL CC,Atelier Works LLP,BUILDING ALTERATIONS AND MATERIALS,"2,065.00",Consultancy.Business.NA
15/04/2015,CAPITAL CC,Pellings LLP,CONSULTANCY FEES,"2,045.22","Works - Construction, Repair & Maint.Consultancy.NA"
15/04/2015,CHILDREN'S SERVICES,Race Equality Foundation,PRIVATE CONTRACTORS PAYMENT - OTHER,"2,000.00",Social Community Care Supplies & Service.Adult.Advice & Counselling Services
15/04/2015,CHILDREN'S SERVICES,Race Equality Foundation,PRIVATE CONTRACTORS PAYMENT - OTHER,"2,000.00",Social Community Care Supplies & Service.Adult.Advice & Counselling Services
15/04/2015,CAPITAL CC,Pellings LLP,CONSULTANCY FEES,"1,936.23","Works - Construction, Repair & Maint.Consultancy.NA"
15/04/2015,HUMAN RESOURCES AND ORGANISATIONAL DEVELOPMENT,Aspire Wellbeing,DAYCARE - PRIVATE CONTRACTORS PAYMENT,"1,840.00",Social Community Care Supplies & Service.Adult.Day Care
15/04/2015,HUMAN RESOURCES AND ORGANISATIONAL DEVELOPMENT,Dillon-White Consultancy Ltd,PROFESSIONAL SERVICES - GENERAL,"1,687.00",Education.Adult & Further Education Services.NA
15/04/2015,CHILDREN'S SERVICES,Metropolitan Housing Trust London,PRIVATE CONTRACTORS PAYMENT - OTHER,"1,500.00",Social Community Care Supplies & Service.Adult.Residential Care
15/04/2015,ADULT SOCIAL CARE,Allied Healthcare (UK) Ltd,DOMICILIARY CARE - THIRD PARTY,"1,478.46",Social Community Care Supplies & Service.Adult.Domiciliary Care
15/04/2015,"REGENERATION, PLANNING & NEIGHBOURHOODS",Henry Weston,PROFESSIONAL SERVICES - GENERAL,"1,425.00",Human Resources.Professional & Advisory Services.NA
15/04/2015,NO RECOURSE TO PUBLIC FUNDS,Norbury Property Services (London) Ltd,BED & BREAKFAST - PRIVATE CONTRACTORS PAYMENT,"1,400.00",Social Community Care Supplies & Service.Adult.Homeless Support
15/04/2015,"REGENERATION, PLANNING & NEIGHBOURHOODS",LaSCoT,DIRECT TRANSPORT,"1,297.90",Public Transport.Passenger Transport.NA
15/04/2015,CHILDREN'S SERVICES,Wrixon Care Services,PRIVATE CONTRACTORS PAYMENT - OTHER,"1,259.04",Social Community Care Supplies & Service.Children.Youth Offending Services
15/04/2015,ADULT SOCIAL CARE,Shomik Datta,LEGAL FEES,"1,250.00",Legal Services.Legal Opinion.NA
15/04/2015,ADULT SOCIAL CARE,Shomik Datta,LEGAL FEES,"1,250.00",Legal Services.Legal Opinion.NA
15/04/2015,ADULT SOCIAL CARE,Shomik Datta,LEGAL FEES,"1,250.00",Legal Services.Legal Opinion.NA
15/04/2015,"REGENERATION, PLANNING & NEIGHBOURHOODS",Hays Specialist Recruitment,AGENCY STAFF,"1,242.52",Human Resources.Temporary & Agency Staff.NA
15/04/2015,"REGENERATION, PLANNING & NEIGHBOURHOODS",Hays Specialist Recruitment,AGENCY STAFF,"1,242.51",Human Resources.Temporary & Agency Staff.NA
15/04/2015,FINANCE,Thebigword,TRANSLATORS AND INTERPRETERS,"1,195.28",Human Resources.Interpretation & Translation.NA
15/04/2015,"REGENERATION, PLANNING & NEIGHBOURHOODS",LaSCoT,DIRECT TRANSPORT,"1,178.90",Public Transport.Passenger Transport.NA
15/04/2015,CHILDREN'S SERVICES,Race Equality Foundation,PRIVATE CONTRACTORS PAYMENT - OTHER,"1,000.00",Social Community Care Supplies & Service.Adult.Advice & Counselling Services
15/04/2015,CHILDREN'S SERVICES,Race Equality Foundation,PROFESSIONAL SERVICES - GENERAL,"1,000.00","Works - Construction, Repair & Maint.Engineering.NA"
15/04/2015,CHILDREN'S SERVICES,Race Equality Foundation,PROFESSIONAL SERVICES - GENERAL,"1,000.00","Works - Construction, Repair & Maint.Engineering.NA"
15/04/2015,CORPORATE AFFAIRS,Shomik Datta,LEGAL FEES,"1,000.00",Legal Services.Legal Opinion.NA
15/04/2015,"REGENERATION, PLANNING & NEIGHBOURHOODS",St Matthews Project,ARTS AND LEISURE COSTS,"1,000.00",Arts & Leisure Services.Sport & Fitness.NA
15/04/2015,CHILDREN'S SERVICES,Race Equality Foundation,PRIVATE CONTRACTORS PAYMENT - OTHER,"1,000.00",Social Community Care Supplies & Service.Adult.Advice & Counselling Services
15/04/2015,NO RECOURSE TO PUBLIC FUNDS,Norbury Property Services (London) Ltd,BED & BREAKFAST - PRIVATE CONTRACTORS PAYMENT,998.20,"Social Community Care Supplies & Service.Adult.Temporary Accommodation, Long Stay"
15/04/2015,NO RECOURSE TO PUBLIC FUNDS,Norbury Property Services (London) Ltd,BED & BREAKFAST - PRIVATE CONTRACTORS PAYMENT,998.20,"Social Community Care Supplies & Service.Adult.Temporary Accommodation, Long Stay"
15/04/2015,NO RECOURSE TO PUBLIC FUNDS,Norbury Property Services (London) Ltd,BED & BREAKFAST - PRIVATE CONTRACTORS PAYMENT,998.20,"Social Community Care Supplies & Service.Adult.Temporary Accommodation, Long Stay"
15/04/2015,NO RECOURSE TO PUBLIC FUNDS,Norbury Property Services (London) Ltd,BED & BREAKFAST - PRIVATE CONTRACTORS PAYMENT,930.00,"Social Community Care Supplies & Service.Adult.Temporary Accommodation, Short Stay"
15/04/2015,NO RECOURSE TO PUBLIC FUNDS,Norbury Property Services (London) Ltd,BED & BREAKFAST - PRIVATE CONTRACTORS PAYMENT,930.00,"Social Community Care Supplies & Service.Adult.Temporary Accommodation, Short Stay"
